Workbook

Sheet PARARA Sum 27JUL21
B2: Peregrine Invoice Summary | C2: As of 27JUL21
B3: Invoice # | C3: Inv Date | D3: Due Date | E3: Paid Date | F3: Amount | G3: Description
B4: 004-20 | C4: 2020-07-05 | D4: 2020-08-01 | E4: 2020-07-31 | F4: 6000 | G4: Monthly Retainer
B5: 005-20 | C5: 2020-07-05 | D5: 2020-09-01 | E5: 2020-09-08 | F5: 6000 | G5: Monthly Retainer
B6: 006-20 | C6: 2020-09-16 | D6: 2020-10-01 | E6: 2020-10-01 | F6: 6000 | G6: Monthly Retainer
B7: 007-20 | C7: 2020-10-16 | D7: 2020-11-01 | E7: 2020-11-03 | F7: 6000 | G7: Monthly Retainer
B8: 008-20 | C8: 2020-11-30 | D8: 2020-12-01 | E8: 2021-01-04 | F8: 6000 | G8: Monthly Retainer
B9: 009-20 | C9: 2020-12-17 | D9: 2021-01-01 | E9: 2021-01-22 | F9: 6000 | G9: Monthly Retainer
B10: 010-20 | C10: 2020-12-30 | D10: 2021-01-01 | E10: 2021-01-22 | F10: 6285 | G10: Monthly Retainer + Expenses
B11: 011-21 | C11: 2021-01-21 | D11: 2021-02-01 | E11: 2021-01-25 | F11: 6000 | G11: Monthly Retainer
B12: 012-21 | C12: 2021-02-17 | D12: 2021-03-01 | E12: 2021-03-18 | F12: 6000 | G12: Monthly Retainer
B13: 013-21 | C13: 2021-03-15 | D13: 2021-04-01 | E13: 2021-04-02 | F13: 6000 | G13: Monthly Retainer
B14: 015-21 | C14: 2021-03-13 | D14: 2021-05-01 | E14: 2021-05-24 | F14: 541.85 | G14: Expenses (Paid with monthly retainer)
B15: 016-21 | C15: 2021-04-15 | D15: 2021-05-01 | E15: 2021-05-24 | F15: 6000 | G15: Monthly Retainer
B16: 019-21 | C16: 2021-05-15 | D16: 2021-06-01 | F16: 6000 | G16: Monthly Retainer (LAST of the series)
B17: 019-21 | E17: 2021-07-15 | F17: 3000 | G17: Partial Payment
B18: 020-21 | C18: 2021-06-15 | D18: 2021-07-01 | F18: 1500 | G18: WWW Monthly Retainer
B19: 021-21 | C19: 2021-06-15 | D19: 2021-07-01 | F19: 105.98 | G19: Expenses - Mailchimp
B20: 022-21 | C20: 2021-07-01 | D20: 2021-07-01 | F20: 5692.3 | G20: Expenses - LC AEA 21 Support
B21: 023-21 | C21: 2021-07-15 | D21: 2021-08-01 | F21: 1500 | G21: WWW Monthly Retainer
B22: Total Rev | F22: =SUM(F4:F21) -> 84625.13 | G22: To Date

Sheet Sales Invoice Sum 2020
A1: AGG Customer Invoices
B2: DELIVERY Yr. | C2: Invoice Date | D2: Invoice Number | E2: Company | F2: Region | G2: Description | H2: $ Invoice Amt. | I2: Type | J2: Received amount | K2: Past Due Date / Due / Pay Date | L2: Remarks
A3: 1st Quarter 2020
A4: January 2020 Invoices:
B5: 2019 | C5: 2019-09-22 | D5: 002-19 | E5: FFS | F5: US | G5: D Walker - Project Pine Needles | H5: 664.9 | I5: Expense | K5: ='AGGFFIR ER Inv 002-19 22SEP19'!G16 -> 22Oct19
B6: 2019 | C6: 2019-11-25 | D6: 003-19 | E6: FFS | F6: US | G6: AGG Consulting Agmt 12APR19 | H6: 20000 | I6: Services | J6: =H6 -> 20000 | K6: 2020-01-24
B7: 2019 | C7: 2019-11-25 | D7: 004-19 | E7: FFS | F7: US | G7: AGG Consulting Agmt 12APR19 | H7: 1455.67 | I7: Expenses | J7: =H7 -> 1455.67 | K7: 2020-01-24
C9: TOTAL | H9: 0 | J9: =SUM(J5:J7) -> 21455.67
A10: February 2020 Invoices:
B11: 2020 | C11: 2020-02-03 | D11: 001-20 | E11: RAMI | F11: EU | G11: EU Sales Support & Planning/ MRO | H11: ='AGGRAMIGH ER Inv 001-20 03FEB20'!G36 -> 2983.66 | I11: Expenses | K11: ='AGGRAMIGH ER Inv 001-20 03FEB20'!G16 -> 18 February 2020
B12: 2020 | C12: 2020-02-03 | D12: 002-20 | E12: RAMI | F12: EU | G12: EU Sales Support/ Becker, TBM | H12: ='AGGRAMIGH ER Inv 002-20 03FEB20'!G36 -> 2030.92 | I12: Expenses | K12: ='AGGRAMIGH ER Inv 002-20 03FEB20'!G16 -> 18 February 2020
C14: TOTAL | H14: =SUM(H11:H12) -> 5014.58 | J14: =SUM(J11:J12) -> 0
A15: March 2020 Invoices:
C19: TOTAL | H19: =SUM(H16:H18) -> 0 | J19: =SUM(J16:J18) -> 0
A20: TOTAL 1st Quarter 2020 | H20: =SUM(H9+H14+H19) -> 5014.58 | J20: =SUM(J19,J14,J9) -> 21455.67
A21: 2nd Quarter 2020
A22: April 2020 Invoices:
C25: TOTAL | H25: =SUM(H23:H24) -> 0 | J25: =SUM(J23:J24) -> 0
A26: May 2020 Invoices:
C29: TOTAL | H29: =SUM(H27:H28) -> 0 | J29: =SUM(J27:J28) -> 0
A30: June 2020 Invoices:
C33: TOTAL Income | H33: =SUM(H31:H32) -> 0 | J33: =SUM(J31:J32) -> 0
A34: TOTAL 2nd Quarter 2020 | H34: =SUM(H25+H29+H33) -> 0 | J34: =SUM(J25+J29+J33) -> 0
A35: 3rd Quarter 2020
A36: July 2020 Invoices:
B37: 2020 | C37: 2020-07-08 | D37: 003-20 | E37: RAMI | F37: EU | G37: Fees, AGG Agmt 12APR19, pg 5of12, para 3 & 4 | H37: ='AGGRAMIGH Inv 003-20 08JUL 2020'!G38 -> 20000 | I37: Services | K37: ='AGGRAMIGH Inv 003-20 08JUL 2020'!G16 -> 18 July 2020
B38: 2020 | C38: 2020-07-17 | D38: 004-20 | E38: Peregrine Avionics, LLC | F38: USA | G38: Monthly Retainer | H38: ='AGGPERAPA Inv 004-20 17JUL20'!G36 -> 6000 | I38: Services | K38: ='AGGPERAPA Inv 004-20 17JUL20'!G16 -> 01 August 2020
C39: TOTAL | H39: =SUM(H37:H38) -> 26000 | J39: =SUM(J37:J38) -> 0
A40: August 2020 Invoices:
C43: TOTAL | H43: =SUM(H41:H42) -> 0 | J43: =SUM(J41:J42) -> 0
A44: September 2020 Invoices:
C47: TOTAL Income | H47: =SUM(H45:H46) -> 0 | J47: =SUM(J45:J46) -> 0
A48: TOTAL 3rd Quarter 2020 | H48: =SUM(H43+H39+H47) -> 26000 | J48: =SUM(J39+J43+J47) -> 0
A49: 4th Quarter 2020
A50: October 2020 Invoices:
C53: TOTAL | H53: =SUM(H51:H52) -> 0 | J53: =SUM(J51:J52) -> 0
A54: November 2020 Invoices:
C57: TOTAL | H57: =SUM(H55:H56) -> 0 | J57: =SUM(J55:J56) -> 0
A58: December 2020 Invoices:
C61: TOTAL Income | H61: =SUM(H59:H60) -> 0 | J61: =SUM(J59:J60) -> 0
A62: TOTAL 4th Quarter 2020 | H62: =SUM(H53+H57+H61) -> 0 | J62: =SUM(J53+J57+J61) -> 0
A63: TOTAL 2020 Income: | H63: =H34+H20+H48+H62 -> 31014.58 | J63: =J20+J34+J48+J62 -> 21455.67 | K63: =H5+H11+H12+H37 -> 25679.48 | L63: Past Due

Sheet AGG Intl Inv MAS v01
J2: Customer IDs
A3: AviaGlobal Group, LLC | J3: FreeFlight Systems
A4: 33210 North 12th Street | D4: INVOICE NO. | E4: [100] | J4: FFSIR = FFS Irving
A5: Phoenix, Arizona USA 85085-7708 | D5: DATE | E5: =TODAY() -> 2025-02-18 | J5: FFSWA = FFS Waco
A6: +1.623.229.3995 | C6: CUSTOMER ID | E6: [ABC12345] | J6: FFSFR= FFS France
A7: hal.adams@aviaglobalgroup.com | J7: RAMI
J8: RAMGH = RAMI Grand Haven
A9: TO | B9: [Name] | D9: SHIP TO | E9: [Name] | J9: RAMFR = RAMI, France
B10: [Company Name] | E10: [Company Name] | J10: Appareo Systems
B11: [Street Address] | E11: [Street Address] | J11: ASFAR = Appareo Fargo
B12: [City, ST ZIP Code] | E12: [City, ST ZIP Code] | J12: Power Aviation Strategies
B13: [Phone] | E13: [Phone] | J13: PASRI = PAS Rhode Island
J14: Helicopter Specialties Inc
A15: AGG Acct POC | B15: Customer PO Reference | C15: SHIPPING METHOD | D15: SHIPPING TERMS | E15: DELIVERY DATE | F15: PAYMENT TERMS | G15: DUE DATE | J15: HSIJA = HSI Janesville
J16: Thommen Aircraft Equipment AG
J17: TAEMSR = TAE Muttenz, Switzerland
A18: QTY | B18: ITEM # | C18: DESCRIPTION | E18: UNIT PRICE | F18: DISCOUNT | G18: LINE TOTAL
G19: =IF(SUM(A19)>0,SUM((A19*E19)-F19),"") -> 
G20: =IF(SUM(A20)>0,SUM((A20*E20)-F20),"") -> 
D36: TOTAL DISCOUNT | F36: =IF(SUM(F19:F35)>0,SUM(F19:F35),"") -> 
A37: Payment by Check in US Dollars - Payable to AviaGlobal Group, LLC Payment by International Wire in US Dollars Pay to the order of Bank of America, NA – AviaGlobal Group, LLC Account - 375020979998 - SWIFT Code BOFAUS3N Bank of America, NA - 555 California Street - San Francisco, CA USA 94104 | F37: SUBTOTAL | G37: =IF(SUM(G19:G35)>0,SUM(G19:G35),"") -> 
F38: SALES TAX
F39: TOTAL | G39: =IF(SUM(G37)>0,SUM((G37*G38)+G37),"") -> 
F41: =IF(SUM(F39)>0,SUM((F39*F40)+F39),"") -> 

Sheet AGG USA Inv MAS v01
A3: AviaGlobal Group, LLC
A4: 33210 North 12th Street | D4: INVOICE NO. | E4: [100]
A5: Phoenix, Arizona USA 85085-7708 | D5: DATE | E5: =TODAY() -> 2025-02-18
A6: +1.623.229.3995 | C6: CUSTOMER ID | E6: [ABC12345]
A7: hal.adams@aviaglobalgroup.com | J7: Customer IDs
J8: FreeFlight Systems
A9: TO | B9: [Name] | D9: SHIP TO | E9: [Name] | J9: FFSIR = FFS Irving
B10: [Company Name] | E10: [Company Name] | J10: FFSWA = FFS Waco
B11: [Street Address] | E11: [Street Address] | J11: FFSFR= FFS France
B12: [City, ST ZIP Code] | E12: [City, ST ZIP Code] | J12: RAMI
B13: [Phone] | E13: [Phone] | J13: RAMGH = RAMI Grand Haven
J14: RAMFR = RAMI, France
A15: AGG Acct POC | B15: Customer PO Reference | C15: SHIPPING METHOD | D15: SHIPPING TERMS | E15: DELIVERY DATE | F15: PAYMENT TERMS | G15: DUE DATE | J15: Appareo Systems
J16: ASFAR = Appareo Fargo
J17: Power Aviation Strategies
A18: QTY | B18: ITEM # | C18: DESCRIPTION | E18: UNIT PRICE | F18: DISCOUNT | G18: LINE TOTAL | J18: PASRI = PAS Rhode Island
G19: =IF(SUM(A19)>0,SUM((A19*E19)-F19),"") ->  | J19: Helicopter Specialties Inc
G20: =IF(SUM(A20)>0,SUM((A20*E20)-F20),"") ->  | J20: HSIJA = HSI Janesville
J21: Thommen Aircraft Equipment AG
J22: TAEMSR = TAE Muttenz, Switzerland
D36: TOTAL DISCOUNT | F36: =IF(SUM(F19:F35)>0,SUM(F19:F35),"") -> 
A37: Payment by Check in US Dollars - Payable to AviaGlobal Group, LLC Payment by ACH - Account Number 375020979998, Routing Number 072000805 Payment by Domestic USA Wire in US Dollars Pay to the order of Bank of America, NA – AviaGlobal Group, LLC Account - 375020979998 - Routing Number 026009593 Bank of America, NA - 222 Broadway - New York, New York USA 10038 | F37: SUBTOTAL | G37: =IF(SUM(G19:G35)>0,SUM(G19:G35),"") -> 
F38: SALES TAX
F39: TOTAL | G39: =IF(SUM(G37)>0,SUM((G37*G38)+G37),"") -> 
F41: =IF(SUM(F39)>0,SUM((F39*F40)+F39),"") -> 

Sheet AGGFFIR ER Inv 002-19 22SEP19
A3: AviaGlobal Group, LLC
A4: 33210 North 12th Street | D4: INVOICE NO. | E4: 002-19
A5: Phoenix, Arizona USA 85085-7708 | D5: DATE | E5: 2019-09-22
A6: +1.623.434.1750 | C6: CUSTOMER ID | E6: FFSIR
A7: hal.adams@aviaglobalgroup.com
A9: TO | B9: Pete Ring, VP BD/ CSO | D9: SHIP TO | E9: Pete Ring, VP BD/ CSO
B10: FreeFlight Systems | E10: FreeFlight Systems
B11: 8080 Tristar Drive, Ste 100 | E11: 880 Tristar Drive, Ste 100
B12: Irving, TX 75063 | E12: Irving, TX 75063
B13: +1.254.495.3077 | E13: +1.254.495.3077
A15: AGG Acct POC | B15: Customer PO Reference | C15: SHIPPING METHOD | D15: SHIPPING TERMS | E15: DELIVERY DATE | F15: PAYMENT TERMS | G15: DUE DATE
A16: H. Adams | B16: AGG Consulting Agmt 13JUN19 | F16: Per Consulting Agreement | G16: 22Oct19
A18: QTY | B18: ITEM # | C18: DESCRIPTION | E18: UNIT PRICE | F18: DISCOUNT | G18: LINE TOTAL
A19: 1 | B19: Expenses | C19: Don Walker/ Re FAA/ RTCA Info | E19: 664.9 | G19: =IF(SUM(A19)>0,SUM((A19*E19)-F19),"") -> 664.9
C20: (Per Attached ExpRpt: HEA AGG ER | G20: =IF(SUM(A20)>0,SUM((A20*E20)-F20),"") -> 
C21: 06-2019 - FFSIR; plus receipts)
C22: Project Pine Needles Research
D34: TOTAL DISCOUNT | F34: =IF(SUM(F19:F33)>0,SUM(F19:F33),"") -> 
A35: Payment by Check in US Dollars - Payable to AviaGlobal Group, LLC Payment by ACH - Account Number 375020979998, Routing Number 072000805 Payment by Domestic USA Wire in US Dollars Pay to the order of Bank of America, NA – AviaGlobal Group, LLC Account - 375020979998 - Routing Number 026009593 Bank of America, NA - 222 Broadway - New York, New York USA 10038 | F35: SUBTOTAL | G35: =IF(SUM(G19:G33)>0,SUM(G19:G33),"") -> 664.9
F36: SALES TAX
F37: TOTAL | G37: =IF(SUM(G35)>0,SUM((G35*G36)+G35),"") -> 664.9
F39: =IF(SUM(F37)>0,SUM((F37*F38)+F37),"") -> 

Sheet AGGFFIR Inv 003-19 25NOV19
A3: AviaGlobal Group, LLC
A4: 33210 North 12th Street | D4: INVOICE NO. | E4: 003-19
A5: Phoenix, Arizona USA 85085-7708 | D5: DATE | E5: 2019-11-25
A6: +1.623.434.1750 | C6: CUSTOMER ID | E6: FFSIR
A7: hal.adams@aviaglobalgroup.com
A9: TO | B9: Pete Ring, VP BD/ CSO | D9: SHIP TO | E9: Pete Ring, VP BD/ CSO
B10: FreeFlight Systems | E10: FreeFlight Systems
B11: 8080 Tristar Drive, Ste 100 | E11: 880 Tristar Drive, Ste 100
B12: Irving, TX 75063 | E12: Irving, TX 75063
B13: +1.254.495.3077 | E13: +1.254.495.3077
A15: AGG Acct POC | B15: Customer PO Reference | C15: SHIPPING METHOD | D15: SHIPPING TERMS | E15: DELIVERY DATE | F15: PAYMENT TERMS | G15: DUE DATE
A16: H. Adams | B16: AGG Consulting Agmt 13JUN19 | F16: Per Consulting Agreement | G16: 25 December 2019
A18: QTY | B18: ITEM # | C18: DESCRIPTION | E18: UNIT PRICE | F18: DISCOUNT | G18: LINE TOTAL
A19: 1 | B19: Compensation, 1st SubPara | C19: Compenstaion, Pg 5of11, AGG Agmt 12APR19 | E19: 20000 | G19: =IF(SUM(A19)>0,SUM((A19*E19)-F19),"") -> 20000
C20: Pine Needles Final Report Delivery | G20: =IF(SUM(A20)>0,SUM((A20*E20)-F20),"") -> 
D34: TOTAL DISCOUNT | F34: =IF(SUM(F19:F33)>0,SUM(F19:F33),"") -> 
A35: Payment by Check in US Dollars - Payable to AviaGlobal Group, LLC Payment by ACH - Account Number 375020979998, Routing Number 072000805 Payment by Domestic USA Wire in US Dollars Pay to the order of Bank of America, NA – AviaGlobal Group, LLC Account - 375020979998 - Routing Number 026009593 Bank of America, NA - 222 Broadway - New York, New York USA 10038 | F35: SUBTOTAL | G35: =IF(SUM(G19:G33)>0,SUM(G19:G33),"") -> 20000
F36: SALES TAX
F37: TOTAL | G37: =IF(SUM(G35)>0,SUM((G35*G36)+G35),"") -> 20000
F39: =IF(SUM(F37)>0,SUM((F37*F38)+F37),"") -> 

Sheet AGGFFIR ER Inv 004-19 25NOV19
A3: AviaGlobal Group, LLC
A4: 33210 North 12th Street | D4: INVOICE NO. | E4: 004-19
A5: Phoenix, Arizona USA 85085-7708 | D5: DATE | E5: 2019-11-25
A6: +1.623.434.1750 | C6: CUSTOMER ID | E6: FFSIR
A7: hal.adams@aviaglobalgroup.com
A9: TO | B9: Pete Ring, VP BD/ CSO | D9: SHIP TO | E9: Pete Ring, VP BD/ CSO
B10: FreeFlight Systems | E10: FreeFlight Systems
B11: 8080 Tristar Drive, Ste 100 | E11: 880 Tristar Drive, Ste 100
B12: Irving, TX 75063 | E12: Irving, TX 75063
B13: +1.254.495.3077 | E13: +1.254.495.3077
A15: AGG Acct POC | B15: Customer PO Reference | C15: SHIPPING METHOD | D15: SHIPPING TERMS | E15: DELIVERY DATE | F15: PAYMENT TERMS | G15: DUE DATE
A16: H. Adams | B16: AGG Consulting Agmt 13JUN19 | F16: Per Consulting Agreement | G16: 25 December 2019
A18: QTY | B18: ITEM # | C18: DESCRIPTION | E18: UNIT PRICE | F18: DISCOUNT | G18: LINE TOTAL
A19: 1 | B19: Expenses | C19: Fargo, ND Trip | E19: 1455.67 | G19: =IF(SUM(A19)>0,SUM((A19*E19)-F19),"") -> 1455.67
C20: (Per Attached ExpRpt: 190823 - AGG LRC ER 11-2019 Fargo, plus receipts) | G20: =IF(SUM(A20)>0,SUM((A20*E20)-F20),"") -> 
C22: Project Pine Needles Research
D32: TOTAL DISCOUNT | F32: =IF(SUM(F19:F31)>0,SUM(F19:F31),"") -> 
A33: Payment by Check in US Dollars - Payable to AviaGlobal Group, LLC Payment by ACH - Account Number 375020979998, Routing Number 072000805 Payment by Domestic USA Wire in US Dollars Pay to the order of Bank of America, NA – AviaGlobal Group, LLC Account - 375020979998 - Routing Number 026009593 Bank of America, NA - 222 Broadway - New York, New York USA 10038 | F33: SUBTOTAL | G33: =IF(SUM(G19:G31)>0,SUM(G19:G31),"") -> 1455.67
F34: SALES TAX
F35: TOTAL | G35: =IF(SUM(G33)>0,SUM((G33*G34)+G33),"") -> 1455.67
F37: =IF(SUM(F35)>0,SUM((F35*F36)+F35),"") -> 

Sheet AGGRAMIGH ER Inv 001-20 03FEB20
A3: AviaGlobal Group, LLC
A4: 33210 North 12th Street | D4: INVOICE NO. | E4: 001-20 | K4: =UPPER(TEXT(E5,"DDMMMYY"))&"/ "&E6&" "&E4 -> 03FEB20/ RAMGH 001-20
A5: Phoenix, Arizona USA 85085-7708 | D5: DATE | E5: 2020-02-03
A6: +1.623.434.1750 | C6: CUSTOMER ID | E6: RAMGH
A7: hal.adams@aviaglobalgroup.com
A9: TO | B9: Attn: Robert Payne, General Manager | D9: SHIP TO | E9: Attn: Robert Payne, General Manager
B10: R.A. Miller Industries, Inc. (RAMI) | E10: R.A. Miller Industries, Inc. (RAMI)
B11: 14500 168th Avenue | E11: 14500 168th Avenue
B12: Grand Haven, Michigan USA 49417 | E12: Grand Haven, Michigan USA 49417
B13: +1.616.842.9450 | E13: +1.616.842.9450
A15: AGG Acct POC | B15: Customer PO Reference | C15: SHIPPING METHOD | D15: SHIPPING TERMS | E15: DELIVERY DATE | F15: PAYMENT TERMS | G15: DUE DATE
A16: F. Colliver | B16: AGG Consulting Agmt 12APR19 | F16: Per Consulting Agreement | G16: 18 February 2020
A17: QTY | B17: ITEM # | C17: DESCRIPTION | E17: UNIT PRICE | F17: DISCOUNT | G17: LINE TOTAL
A18: 1 | B18: Expenses | C18: EU Sales Support & Planning/ MRO | E18: 2983.66 | G18: =IF(SUM(A18)>0,SUM((A18*E18)-F18),"") -> 2983.66
C19: (Per Attached ExpRpt + Receipts) | G19: =IF(SUM(A19)>0,SUM((A19*E19)-F19),"") -> 
D33: TOTAL DISCOUNT | F33: =IF(SUM(F18:F32)>0,SUM(F18:F32),"") -> 
A34: Payment by Check in US Dollars - Payable to AviaGlobal Group, LLC Payment by ACH - Account Number 375020979998, Routing Number 072000805 Payment by Domestic USA Wire in US Dollars Pay to the order of Bank of America, NA – AviaGlobal Group, LLC Account - 375020979998 - Routing Number 026009593 Bank of America, NA - 222 Broadway - New York, New York USA 10038 | F34: SUBTOTAL | G34: =IF(SUM(G18:G32)>0,SUM(G18:G32),"") -> 2983.66
F35: SALES TAX
F36: TOTAL | G36: =IF(SUM(G34)>0,SUM((G34*G35)+G34),"") -> 2983.66

Sheet AGGRAMIGH ER Inv 002-20 03FEB20
A3: AviaGlobal Group, LLC
A4: 33210 North 12th Street | D4: INVOICE NO. | E4: 002-20 | K4: =UPPER(TEXT(E5,"DDMMMYY"))&"/ "&E6&" "&E4 -> 03FEB20/ RAMGH 002-20
A5: Phoenix, Arizona USA 85085-7708 | D5: DATE | E5: 2020-02-03
A6: +1.623.434.1750 | C6: CUSTOMER ID | E6: RAMGH
A7: hal.adams@aviaglobalgroup.com
A9: TO | B9: Attn: Robert Payne, General Manager | D9: SHIP TO | E9: Attn: Robert Payne, General Manager
B10: R.A. Miller Industries, Inc. (RAMI) | E10: R.A. Miller Industries, Inc. (RAMI)
B11: 14500 168th Avenue | E11: 14500 168th Avenue
B12: Grand Haven, Michigan USA 49417 | E12: Grand Haven, Michigan USA 49417
B13: +1.616.842.9450 | E13: +1.616.842.9450
A15: AGG Acct POC | B15: Customer PO Reference | C15: SHIPPING METHOD | D15: SHIPPING TERMS | E15: DELIVERY DATE | F15: PAYMENT TERMS | G15: DUE DATE
A16: F. Colliver | B16: AGG Consulting Agmt 12APR19 | F16: Per Consulting Agreement | G16: 18 February 2020
A17: QTY | B17: ITEM # | C17: DESCRIPTION | E17: UNIT PRICE | F17: DISCOUNT | G17: LINE TOTAL
A18: 1 | B18: Expenses | C18: EU Sales Support/ Becker, TBM | E18: 2030.92 | G18: =IF(SUM(A18)>0,SUM((A18*E18)-F18),"") -> 2030.92
C19: (Per Attached ExpRpt + Receipts) | G19: =IF(SUM(A19)>0,SUM((A19*E19)-F19),"") -> 
D33: TOTAL DISCOUNT | F33: =IF(SUM(F18:F32)>0,SUM(F18:F32),"") -> 
A34: Payment by Check in US Dollars - Payable to AviaGlobal Group, LLC Payment by ACH - Account Number 375020979998, Routing Number 072000805 Payment by Domestic USA Wire in US Dollars Pay to the order of Bank of America, NA – AviaGlobal Group, LLC Account - 375020979998 - Routing Number 026009593 Bank of America, NA - 222 Broadway - New York, New York USA 10038 | F34: SUBTOTAL | G34: =IF(SUM(G18:G32)>0,SUM(G18:G32),"") -> 2030.92
F35: SALES TAX
F36: TOTAL | G36: =IF(SUM(G34)>0,SUM((G34*G35)+G34),"") -> 2030.92

Sheet AGGRAMIGH Inv 003-20 08JUL 2020
A3: AviaGlobal Group, LLC
A4: 33210 North 12th Street | D4: INVOICE NO. | E4: 003-20 | K4: =UPPER(TEXT(E5,"DDMMMYY"))&"/ "&E6&" "&E4 -> 08JUL20/ RAMGH 003-20
A5: Phoenix, Arizona USA 85085-7708 | D5: DATE | E5: 2020-07-08
A6: +1.623.434.1750 | C6: CUSTOMER ID | E6: RAMGH
A7: hal.adams@aviaglobalgroup.com
A9: TO | B9: Attn: Robert Payne, General Manager | D9: SHIP TO | E9: Attn: Robert Payne, General Manager
B10: R.A. Miller Industries, Inc. (RAMI) | E10: R.A. Miller Industries, Inc. (RAMI)
B11: 14500 168th Avenue | E11: 14500 168th Avenue
B12: Grand Haven, Michigan USA 49417 | E12: Grand Haven, Michigan USA 49417
B13: +1.616.842.9450 | E13: +1.616.842.9450
A15: AGG Acct POC | B15: Customer PO Reference | C15: SHIPPING METHOD | D15: SHIPPING TERMS | E15: DELIVERY DATE | F15: PAYMENT TERMS | G15: DUE DATE
A16: F. Colliver | B16: AGG Consulting Agmt 12APR19 | F16: Per Consulting Agreement | G16: 18 July 2020
A17: QTY | B17: ITEM # | C17: DESCRIPTION | E17: UNIT PRICE | F17: DISCOUNT | G17: LINE TOTAL
A18: 1 | B18: Fees, Para 3. | C18: Fees, Pg 5of12, AGG Agmt 12APR19 | E18: 10000 | G18: =IF(SUM(A18)>0,SUM((A18*E18)-F18),"") -> 10000
A19: 1 | B19: Fees, Para 4. | C19: Fees, Pg 5of12, AGG Agmt 12APR19 | E19: 10000 | G19: =IF(SUM(A19)>0,SUM((A19*E19)-F19),"") -> 10000
G20: =IF(SUM(A20)>0,SUM((A20*E20)-F20),"") -> 
D35: TOTAL DISCOUNT | F35: =IF(SUM(F18:F34)>0,SUM(F18:F34),"") -> 
A36: Payment by Check in US Dollars - Payable to AviaGlobal Group, LLC Payment by ACH - Account Number 375020979998, Routing Number 072000805 Payment by Domestic USA Wire in US Dollars Pay to the order of Bank of America, NA – AviaGlobal Group, LLC Account - 375020979998 - Routing Number 026009593 Bank of America, NA - 222 Broadway - New York, New York USA 10038 | F36: SUBTOTAL | G36: =IF(SUM(G18:G34)>0,SUM(G18:G34),"") -> 20000
F37: SALES TAX
F38: TOTAL | G38: =IF(SUM(G36)>0,SUM((G36*G37)+G36),"") -> 20000

Sheet AGGRAMIGH ER Inv 004-20 15DEC20
A3: AviaGlobal Group, LLC
A4: 33210 North 12th Street | D4: INVOICE NO. | E4: 004-20 | K4: =UPPER(TEXT(E5,"DDMMMYY"))&"/ "&E6&" "&E4 -> 15DEC20/ RAMGH 004-20
A5: Phoenix, Arizona USA 85085-7708 | D5: DATE | E5: 2020-12-15
A6: +1.623.434.1750 | C6: CUSTOMER ID | E6: RAMGH
A7: hal.adams@aviaglobalgroup.com
A9: TO | B9: Attn: Robert Payne, General Manager | D9: SHIP TO | E9: Attn: Robert Payne, General Manager
B10: R.A. Miller Industries, Inc. (RAMI) | E10: R.A. Miller Industries, Inc. (RAMI)
B11: 14500 168th Avenue | E11: 14500 168th Avenue
B12: Grand Haven, Michigan USA 49417 | E12: Grand Haven, Michigan USA 49417
B13: +1.616.842.9450 | E13: +1.616.842.9450
A15: AGG Acct POC | B15: Customer PO Reference | C15: SHIPPING METHOD | D15: SHIPPING TERMS | E15: DELIVERY DATE | F15: PAYMENT TERMS | G15: DUE DATE
A16: F. Colliver | B16: AGG Consulting Agmt 12APR19 | F16: Per Consulting Agreement | G16: 15 December 2020
A17: QTY | B17: ITEM # | C17: DESCRIPTION | E17: UNIT PRICE | F17: DISCOUNT | G17: LINE TOTAL
A18: 1 | B18: Expenses | C18: EU M&A Support/ Becker France | E18: 1938.54 | G18: =IF(SUM(A18)>0,SUM((A18*E18)-F18),"") -> 1938.54
C19: (Per Attached ExpRpt + Receipts) | G19: =IF(SUM(A19)>0,SUM((A19*E19)-F19),"") -> 
D33: TOTAL DISCOUNT | F33: =IF(SUM(F18:F32)>0,SUM(F18:F32),"") -> 
A34: Payment by Check in US Dollars - Payable to AviaGlobal Group, LLC Payment by ACH - Account Number 375020979998, Routing Number 072000805 Payment by Domestic USA Wire in US Dollars Pay to the order of Bank of America, NA – AviaGlobal Group, LLC Account - 375020979998 - Routing Number 026009593 Bank of America, NA - 222 Broadway - New York, New York USA 10038 | F34: SUBTOTAL | G34: =IF(SUM(G18:G32)>0,SUM(G18:G32),"") -> 1938.54
F35: SALES TAX
F36: TOTAL | G36: =IF(SUM(G34)>0,SUM((G34*G35)+G34),"") -> 1938.54

Sheet AGGPERAPA Inv 004-20 17JUL20
A3: AviaGlobal Group, LLC
A4: 33210 North 12th Street | D4: INVOICE NO. | E4: 004-20 | K4: =UPPER(TEXT(E5,"DDMMMYY"))&"/ "&E6&" "&E4 -> 18FEB25/ PERAPA 004-20
A5: Phoenix, Arizona USA 85085-7708 | D5: DATE | E5: =TODAY() -> 2025-02-18
A6: +1.623.434.1750 | C6: CUSTOMER ID | E6: PERAPA
A7: hal.adams@aviaglobalgroup.com
A9: TO | B9: David Rankin | D9: SHIP TO | E9: David Rankin
B10: Peregrine Avionics, LLC | E10: [Company Name]
B11: 7385 S Peoria St Unit C4 | E11: 7385 S Peoria St Unit C4
B12: Egnlewood, CO USA 80112 | E12: Egnlewood, CO USA 80112
B13: 303-325-3873 | E13: 303-325-3873
A15: AGG Acct POC | B15: Customer PO Reference | C15: SHIPPING METHOD | D15: SHIPPING TERMS | E15: DELIVERY DATE | F15: PAYMENT TERMS | G15: DUE DATE
A16: L. Carlson | B16: AGG Mktg Agmt 10JUL20 | F16: Per Mktg Agmt | G16: 01 August 2020
A18: QTY | B18: ITEM # | C18: DESCRIPTION | E18: UNIT PRICE | F18: DISCOUNT | G18: LINE TOTAL
A19: 1 | C19: Monthly Retainer | E19: 6000 | G19: =IF(SUM(A19)>0,SUM((A19*E19)-F19),"") -> 6000
G20: =IF(SUM(A20)>0,SUM((A20*E20)-F20),"") -> 
G21: =IF(SUM(A21)>0,SUM((A21*E21)-F21),"") -> 
G22: =IF(SUM(A22)>0,SUM((A22*E22)-F22),"") -> 
D33: TOTAL DISCOUNT | F33: =IF(SUM(F19:F32)>0,SUM(F19:F32),"") -> 
A34: Payment by Check in US Dollars - Payable to AviaGlobal Group, LLC Payment by ACH - Account Number 375020979998, Routing Number 072000805 Payment by Domestic USA Wire in US Dollars Pay to the order of Bank of America, NA – AviaGlobal Group, LLC Account - 375020979998 - Routing Number 026009593 Bank of America, NA - 222 Broadway - New York, New York USA 10038 | F34: SUBTOTAL | G34: =IF(SUM(G19:G32)>0,SUM(G19:G32),"") -> 6000
F35: SALES TAX
F36: TOTAL | G36: =IF(SUM(G34)>0,SUM((G34*G35)+G34),"") -> 6000
F38: =IF(SUM(F36)>0,SUM((F36*F37)+F36),"") -> 

Sheet AGGPERAPA Inv 005-20 31AUG20
A3: AviaGlobal Group, LLC
A4: 33210 North 12th Street | D4: INVOICE NO. | E4: 005-20 | K4: =UPPER(TEXT(E5,"DDMMMYY"))&"/ "&E6&" "&E4 -> 18FEB25/ PERAPA 005-20
A5: Phoenix, Arizona USA 85085-7708 | D5: DATE | E5: =TODAY() -> 2025-02-18
A6: +1.623.434.1750 | C6: CUSTOMER ID | E6: PERAPA
A7: hal.adams@aviaglobalgroup.com
A9: TO | B9: David Rankin | D9: SHIP TO | E9: David Rankin
B10: Peregrine Avionics, LLC | E10: [Company Name]
B11: 7385 S Peoria St Unit C4 | E11: 7385 S Peoria St Unit C4
B12: Egnlewood, CO USA 80112 | E12: Egnlewood, CO USA 80112
B13: 303-325-3873 | E13: 303-325-3873
A15: AGG Acct POC | B15: Customer PO Reference | C15: SHIPPING METHOD | D15: SHIPPING TERMS | E15: DELIVERY DATE | F15: PAYMENT TERMS | G15: DUE DATE
A16: L. Carlson | B16: AGG Mktg Agmt 10JUL20 | F16: Per Mktg Agmt | G16: 01 September 2020
A18: QTY | B18: ITEM # | C18: DESCRIPTION | E18: UNIT PRICE | F18: DISCOUNT | G18: LINE TOTAL
A19: 1 | C19: Monthly Retainer | E19: 6000 | G19: =IF(SUM(A19)>0,SUM((A19*E19)-F19),"") -> 6000
G20: =IF(SUM(A20)>0,SUM((A20*E20)-F20),"") -> 
D33: TOTAL DISCOUNT | F33: =IF(SUM(F19:F32)>0,SUM(F19:F32),"") -> 
A34: Payment by Check in US Dollars - Payable to AviaGlobal Group, LLC Payment by ACH - Account Number 375020979998, Routing Number 072000805 Payment by Domestic USA Wire in US Dollars Pay to the order of Bank of America, NA – AviaGlobal Group, LLC Account - 375020979998 - Routing Number 026009593 Bank of America, NA - 222 Broadway - New York, New York USA 10038 | F34: SUBTOTAL | G34: =IF(SUM(G19:G32)>0,SUM(G19:G32),"") -> 6000
F35: SALES TAX
F36: TOTAL | G36: =IF(SUM(G34)>0,SUM((G34*G35)+G34),"") -> 6000
F38: =IF(SUM(F36)>0,SUM((F36*F37)+F36),"") -> 

Sheet AGGPERAPA Inv 006-20 16SEP20
A3: AviaGlobal Group, LLC
A4: 33210 North 12th Street | D4: INVOICE NO. | E4: 006-20 | K4: =UPPER(TEXT(E5,"DDMMMYY"))&"/ "&E6&" "&E4 -> 16SEP20/ PERAPA 006-20
A5: Phoenix, Arizona USA 85085-7708 | D5: DATE | E5: 2020-09-16
A6: +1.623.434.1750 | C6: CUSTOMER ID | E6: PERAPA
A7: hal.adams@aviaglobalgroup.com
A9: TO | B9: David Rankin | D9: SHIP TO | E9: David Rankin
B10: Peregrine Avionics, LLC | E10: Peregrine Avionics, LLC
B11: 7385 S Peoria St Unit C4 | E11: 7385 S Peoria St Unit C4
B12: Egnlewood, CO USA 80112 | E12: Egnlewood, CO USA 80112
B13: 303-325-3873 | E13: 303-325-3873
A15: AGG Acct POC | B15: Customer PO Reference | C15: SHIPPING METHOD | D15: SHIPPING TERMS | E15: DELIVERY DATE | F15: PAYMENT TERMS | G15: DUE DATE
A16: L. Carlson | B16: AGG Mktg Agmt 10JUL20 | F16: Per Mktg Agmt | G16: 01 October 2020
A18: QTY | B18: ITEM # | C18: DESCRIPTION | E18: UNIT PRICE | F18: DISCOUNT | G18: LINE TOTAL
A19: 1 | C19: Monthly Retainer | E19: 6000 | G19: =IF(SUM(A19)>0,SUM((A19*E19)-F19),"") -> 6000
G20: =IF(SUM(A20)>0,SUM((A20*E20)-F20),"") -> 
D33: TOTAL DISCOUNT | F33: =IF(SUM(F19:F32)>0,SUM(F19:F32),"") -> 
A34: Payment by Check in US Dollars - Payable to AviaGlobal Group, LLC Payment by ACH - Account Number 375020979998, Routing Number 072000805 Payment by Domestic USA Wire in US Dollars Pay to the order of Bank of America, NA – AviaGlobal Group, LLC Account - 375020979998 - Routing Number 026009593 Bank of America, NA - 222 Broadway - New York, New York USA 10038 | F34: SUBTOTAL | G34: =IF(SUM(G19:G32)>0,SUM(G19:G32),"") -> 6000
F35: SALES TAX
F36: TOTAL | G36: =IF(SUM(G34)>0,SUM((G34*G35)+G34),"") -> 6000
F38: =IF(SUM(F36)>0,SUM((F36*F37)+F36),"") -> 

Sheet AGGPERAPA Inv 007-20 16OCT20
A3: AviaGlobal Group, LLC
A4: 33210 North 12th Street | D4: INVOICE NO. | E4: 007-20 | K4: =UPPER(TEXT(E5,"DDMMMYY"))&"/ "&E6&" "&E4 -> 16OCT20/ PERAPA 007-20
A5: Phoenix, Arizona USA 85085-7708 | D5: DATE | E5: 2020-10-16
A6: +1.623.229.3995 | C6: CUSTOMER ID | E6: PERAPA
A7: hal.adams@aviaglobalgroup.com
A9: TO | B9: David Rankin | D9: SHIP TO | E9: David Rankin
B10: Peregrine Avionics, LLC | E10: Peregrine Avionics, LLC
B11: 7385 S Peoria St Unit C4 | E11: 7385 S Peoria St Unit C4
B12: Egnlewood, CO USA 80112 | E12: Egnlewood, CO USA 80112
B13: 303-325-3873 | E13: 303-325-3873
A15: AGG Acct POC | B15: Customer PO Reference | C15: SHIPPING METHOD | D15: SHIPPING TERMS | E15: DELIVERY DATE | F15: PAYMENT TERMS | G15: DUE DATE
A16: L. Carlson | B16: AGG Mktg Agmt 10JUL20 | F16: Per Mktg Agmt | G16: 01 November 2020
A18: QTY | B18: ITEM # | C18: DESCRIPTION | E18: UNIT PRICE | F18: DISCOUNT | G18: LINE TOTAL
A19: 1 | C19: Monthly Retainer | E19: 6000 | G19: =IF(SUM(A19)>0,SUM((A19*E19)-F19),"") -> 6000
G20: =IF(SUM(A20)>0,SUM((A20*E20)-F20),"") -> 
D33: TOTAL DISCOUNT | F33: =IF(SUM(F19:F32)>0,SUM(F19:F32),"") -> 
A34: Payment by Check in US Dollars - Payable to AviaGlobal Group, LLC Payment by ACH - Account Number 375020979998, Routing Number 072000805 Payment by Domestic USA Wire in US Dollars Pay to the order of Bank of America, NA – AviaGlobal Group, LLC Account - 375020979998 - Routing Number 026009593 Bank of America, NA - 222 Broadway - New York, New York USA 10038 | F34: SUBTOTAL | G34: =IF(SUM(G19:G32)>0,SUM(G19:G32),"") -> 6000
F35: SALES TAX
F36: TOTAL | G36: =IF(SUM(G34)>0,SUM((G34*G35)+G34),"") -> 6000
F38: =IF(SUM(F36)>0,SUM((F36*F37)+F36),"") -> 

Sheet AGGPERAPA Inv 008-20 30NOV20
A3: AviaGlobal Group, LLC
A4: 33210 North 12th Street | D4: INVOICE NO. | E4: 008-20 | K4: =UPPER(TEXT(E5,"DDMMMYY"))&"/ "&E6&" "&E4 -> 30NOV20/ PERAPA 008-20
A5: Phoenix, Arizona USA 85085-7708 | D5: DATE | E5: 2020-11-30
A6: +1.623.229.3995 | C6: CUSTOMER ID | E6: PERAPA
A7: hal.adams@aviaglobalgroup.com
A9: TO | B9: David Rankin | D9: SHIP TO | E9: David Rankin
B10: Peregrine Avionics, LLC | E10: Peregrine Avionics, LLC
B11: 7385 S Peoria St Unit C4 | E11: 7385 S Peoria St Unit C4
B12: Egnlewood, CO USA 80112 | E12: Egnlewood, CO USA 80112
B13: 303-325-3873 | E13: 303-325-3873
A15: AGG Acct POC | B15: Customer PO Reference | C15: SHIPPING METHOD | D15: SHIPPING TERMS | E15: DELIVERY DATE | F15: PAYMENT TERMS | G15: DUE DATE
A16: L. Carlson | B16: AGG Mktg Agmt 10JUL20 | F16: Per Mktg Agmt | G16: 01 December 2020
A18: QTY | B18: ITEM # | C18: DESCRIPTION | E18: UNIT PRICE | F18: DISCOUNT | G18: LINE TOTAL
A19: 1 | C19: Monthly Retainer | E19: 6000 | G19: =IF(SUM(A19)>0,SUM((A19*E19)-F19),"") -> 6000
G20: =IF(SUM(A20)>0,SUM((A20*E20)-F20),"") -> 
D33: TOTAL DISCOUNT | F33: =IF(SUM(F19:F32)>0,SUM(F19:F32),"") -> 
A34: Payment by Check in US Dollars - Payable to AviaGlobal Group, LLC Payment by ACH - Account Number 375020979998, Routing Number 072000805 Payment by Domestic USA Wire in US Dollars Pay to the order of Bank of America, NA – AviaGlobal Group, LLC Account - 375020979998 - Routing Number 026009593 Bank of America, NA - 222 Broadway - New York, New York USA 10038 | F34: SUBTOTAL | G34: =IF(SUM(G19:G32)>0,SUM(G19:G32),"") -> 6000
F35: SALES TAX
F36: TOTAL | G36: =IF(SUM(G34)>0,SUM((G34*G35)+G34),"") -> 6000
F38: =IF(SUM(F36)>0,SUM((F36*F37)+F36),"") -> 

Sheet AGGPERAPA Inv 009-20 17DEC20
A3: AviaGlobal Group, LLC
A4: 33210 North 12th Street | D4: INVOICE NO. | E4: 009-20 | K4: =UPPER(TEXT(E5,"DDMMMYY"))&"/ "&E6&" "&E4 -> 17DEC20/ PERAPA 009-20
A5: Phoenix, Arizona USA 85085-7708 | D5: DATE | E5: 2020-12-17
A6: +1.623.229.3995 | C6: CUSTOMER ID | E6: PERAPA
A7: hal.adams@aviaglobalgroup.com
A9: TO | B9: David Rankin | D9: SHIP TO | E9: David Rankin
B10: Peregrine Avionics, LLC | E10: Peregrine Avionics, LLC
B11: 7385 S Peoria St Unit C4 | E11: 7385 S Peoria St Unit C4
B12: Egnlewood, CO USA 80112 | E12: Egnlewood, CO USA 80112
B13: 303-325-3873 | E13: 303-325-3873
A15: AGG Acct POC | B15: Customer PO Reference | C15: SHIPPING METHOD | D15: SHIPPING TERMS | E15: DELIVERY DATE | F15: PAYMENT TERMS | G15: DUE DATE
A16: L. Carlson | B16: AGG Mktg Agmt 10JUL20 | F16: Per Mktg Agmt | G16: 01 January 2020
A18: QTY | B18: ITEM # | C18: DESCRIPTION | E18: UNIT PRICE | F18: DISCOUNT | G18: LINE TOTAL
A19: 1 | C19: Monthly Retainer | E19: 6000 | G19: =IF(SUM(A19)>0,SUM((A19*E19)-F19),"") -> 6000
G20: =IF(SUM(A20)>0,SUM((A20*E20)-F20),"") -> 
D33: TOTAL DISCOUNT | F33: =IF(SUM(F19:F32)>0,SUM(F19:F32),"") -> 
A34: Payment by Check in US Dollars - Payable to AviaGlobal Group, LLC Payment by ACH - Account Number 375020979998, Routing Number 072000805 Payment by Domestic USA Wire in US Dollars Pay to the order of Bank of America, NA – AviaGlobal Group, LLC Account - 375020979998 - Routing Number 026009593 Bank of America, NA - 222 Broadway - New York, New York USA 10038 | F34: SUBTOTAL | G34: =IF(SUM(G19:G32)>0,SUM(G19:G32),"") -> 6000
F35: SALES TAX
F36: TOTAL | G36: =IF(SUM(G34)>0,SUM((G34*G35)+G34),"") -> 6000
F38: =IF(SUM(F36)>0,SUM((F36*F37)+F36),"") -> 

Sheet AGGPERAPA ER Inv 010-20
A3: AviaGlobal Group, LLC
A4: 33210 North 12th Street | D4: INVOICE NO. | E4: 010-20 | K4: =UPPER(TEXT(E5,"DDMMMYY"))&"/ "&E6&" "&E4 -> 30DEC20/ PERAPA 010-20
A5: Phoenix, Arizona USA 85085-7708 | D5: DATE | E5: 2020-12-30
A6: +1.623.229.3995 | C6: CUSTOMER ID | E6: PERAPA
A7: hal.adams@aviaglobalgroup.com
A9: TO | B9: David Rankin | D9: SHIP TO | E9: David Rankin
B10: Peregrine Avionics, LLC | E10: Peregrine Avionics, LLC
B11: 7385 S Peoria St Unit C4 | E11: 7385 S Peoria St Unit C4
B12: Egnlewood, CO USA 80112 | E12: Egnlewood, CO USA 80112
B13: 303-325-3873 | E13: 303-325-3873
A15: AGG Acct POC | B15: Customer PO Reference | C15: SHIPPING METHOD | D15: SHIPPING TERMS | E15: DELIVERY DATE | F15: PAYMENT TERMS | G15: DUE DATE
A16: L. Carlson | B16: AGG Mktg Agmt 10JUL20 | F16: Per Mktg Agmt | G16: 01 January 2020
A18: QTY | B18: ITEM # | C18: DESCRIPTION | E18: UNIT PRICE | F18: DISCOUNT | G18: LINE TOTAL
A19: 1 | B19: inmotion hosting | C19: New Peregrine Web Hosting | E19: 179.88 | G19: =IF(SUM(A19)>0,SUM((A19*E19)-F19),"") -> 179.88 | H19: FWC ER 11-2020/ Paid to FWC on 30DEC20
B20: Applications | C20: Hosting, IP Address, Backup Mgr | G20: =IF(SUM(A20)>0,SUM((A20*E20)-F20),"") -> 
B21: One Year | C21: IMH-414-1451828-1
C22: (Per attached receipt)
A24: 1 | B24: New Web Images | C24: Subscription to download images | E24: 125 | F24: 19 | G24: =IF(SUM(A24)>0,SUM((A24*E24)-F24),"") -> 106 | H24: LRC Debit card chg to AGG direct
C25: (Per attached receipt)
D33: TOTAL DISCOUNT | F33: =IF(SUM(F19:F32)>0,SUM(F19:F32),"") -> 19
A34: Payment by Check in US Dollars - Payable to AviaGlobal Group, LLC Payment by ACH - Account Number 375020979998, Routing Number 072000805 Payment by Domestic USA Wire in US Dollars Pay to the order of Bank of America, NA – AviaGlobal Group, LLC Account - 375020979998 - Routing Number 026009593 Bank of America, NA - 222 Broadway - New York, New York USA 10038 | F34: SUBTOTAL | G34: =IF(SUM(G19:G32)>0,SUM(G19:G32),"") -> 285.88
F35: SALES TAX
F36: TOTAL | G36: =IF(SUM(G34)>0,SUM((G34*G35)+G34),"") -> 285.88
F38: =IF(SUM(F36)>0,SUM((F36*F37)+F36),"") -> 

Sheet AGGPERAPA Inv 011-21 21JAN21
A3: AviaGlobal Group, LLC
A4: 33210 North 12th Street | D4: INVOICE NO. | E4: 011-21 | K4: =UPPER(TEXT(E5,"DDMMMYY"))&"/ "&E6&" "&E4 -> 21JAN21/ PERAPA 011-21
A5: Phoenix, Arizona USA 85085-7708 | D5: DATE | E5: 2021-01-21
A6: +1.623.229.3995 | C6: CUSTOMER ID | E6: PERAPA
A7: hal.adams@aviaglobalgroup.com
A9: TO | B9: David Rankin | D9: SHIP TO | E9: David Rankin
B10: Peregrine Avionics, LLC | E10: Peregrine Avionics, LLC
B11: 7385 S Peoria St Unit C4 | E11: 7385 S Peoria St Unit C4
B12: Egnlewood, CO USA 80112 | E12: Egnlewood, CO USA 80112
B13: 303-325-3873 | E13: 303-325-3873
A15: AGG Acct POC | B15: Customer PO Reference | C15: SHIPPING METHOD | D15: SHIPPING TERMS | E15: DELIVERY DATE | F15: PAYMENT TERMS | G15: DUE DATE
A16: L. Carlson | B16: AGG Mktg Agmt 10JUL20 | F16: Per Mktg Agmt | G16: 01 February 2020
A18: QTY | B18: ITEM # | C18: DESCRIPTION | E18: UNIT PRICE | F18: DISCOUNT | G18: LINE TOTAL
A19: 1 | C19: Monthly Retainer | E19: 6000 | G19: =IF(SUM(A19)>0,SUM((A19*E19)-F19),"") -> 6000
G20: =IF(SUM(A20)>0,SUM((A20*E20)-F20),"") -> 
D33: TOTAL DISCOUNT | F33: =IF(SUM(F19:F32)>0,SUM(F19:F32),"") -> 
A34: Payment by Check in US Dollars - Payable to AviaGlobal Group, LLC Payment by ACH - Account Number 375020979998, Routing Number 072000805 Payment by Domestic USA Wire in US Dollars Pay to the order of Bank of America, NA – AviaGlobal Group, LLC Account - 375020979998 - Routing Number 026009593 Bank of America, NA - 222 Broadway - New York, New York USA 10038 | F34: SUBTOTAL | G34: =IF(SUM(G19:G32)>0,SUM(G19:G32),"") -> 6000
F35: SALES TAX
F36: TOTAL | G36: =IF(SUM(G34)>0,SUM((G34*G35)+G34),"") -> 6000
F38: =IF(SUM(F36)>0,SUM((F36*F37)+F36),"") -> 

Sheet AGGPERAPA ER Inv 011-21
A3: AviaGlobal Group, LLC
A4: 33210 North 12th Street | D4: INVOICE NO. | E4: 011-21 | K4: =UPPER(TEXT(E5,"DDMMMYY"))&"/ "&E6&" "&E4 -> 12APR21/ PERAPA 011-21
A5: Phoenix, Arizona USA 85085-7708 | D5: DATE | E5: 2021-04-12
A6: +1.623.229.3995 | C6: CUSTOMER ID | E6: PERAPA
A7: hal.adams@aviaglobalgroup.com
A9: TO | B9: David Rankin | D9: SHIP TO | E9: David Rankin
B10: Peregrine Avionics, LLC | E10: Peregrine Avionics, LLC
B11: 7385 S Peoria St Unit C4 | E11: 7385 S Peoria St Unit C4
B12: Egnlewood, CO USA 80112 | E12: Egnlewood, CO USA 80112
B13: 303-325-3873 | E13: 303-325-3873
A15: AGG Acct POC | B15: Customer PO Reference | C15: SHIPPING METHOD | D15: SHIPPING TERMS | E15: DELIVERY DATE | F15: PAYMENT TERMS | G15: DUE DATE
A16: L. Carlson | B16: AGG Mktg Agmt 10JUL20 | F16: Per Mktg Agmt | G16: 01 May 2021
A18: QTY | B18: ITEM # | C18: DESCRIPTION | E18: UNIT PRICE | F18: DISCOUNT | G18: LINE TOTAL
A19: 1 | B19: inmotion hosting | C19: New Peregrine Web Hosting | E19: 179.88 | G19: =IF(SUM(A19)>0,SUM((A19*E19)-F19),"") -> 179.88
B20: Applications | C20: Hosting, IP Address, Backup Mgr | G20: =IF(SUM(A20)>0,SUM((A20*E20)-F20),"") -> 
B21: One Year | C21: IMH-414-1451828-1
C22: (Per attached receipt)
D33: TOTAL DISCOUNT | F33: =IF(SUM(F19:F32)>0,SUM(F19:F32),"") -> 
A34: Payment by Check in US Dollars - Payable to AviaGlobal Group, LLC Payment by ACH - Account Number 375020979998, Routing Number 072000805 Payment by Domestic USA Wire in US Dollars Pay to the order of Bank of America, NA – AviaGlobal Group, LLC Account - 375020979998 - Routing Number 026009593 Bank of America, NA - 222 Broadway - New York, New York USA 10038 | F34: SUBTOTAL | G34: =IF(SUM(G19:G32)>0,SUM(G19:G32),"") -> 179.88
F35: SALES TAX
F36: TOTAL | G36: =IF(SUM(G34)>0,SUM((G34*G35)+G34),"") -> 179.88
F38: =IF(SUM(F36)>0,SUM((F36*F37)+F36),"") -> 

Sheet AGGPERAPA Inv 012-21 17FEB21
A3: AviaGlobal Group, LLC
A4: 33210 North 12th Street | D4: INVOICE NO. | E4: 012-21 | K4: =UPPER(TEXT(E5,"DDMMMYY"))&"/ "&E6&" "&E4 -> 17FEB21/ PERAPA 012-21
A5: Phoenix, Arizona USA 85085-7708 | D5: DATE | E5: 2021-02-17
A6: +1.623.229.3995 | C6: CUSTOMER ID | E6: PERAPA
A7: hal.adams@aviaglobalgroup.com
A9: TO | B9: David Rankin | D9: SHIP TO | E9: David Rankin
B10: Peregrine Avionics, LLC | E10: Peregrine Avionics, LLC
B11: 7385 S Peoria St Unit C4 | E11: 7385 S Peoria St Unit C4
B12: Egnlewood, CO USA 80112 | E12: Egnlewood, CO USA 80112
B13: 303-325-3873 | E13: 303-325-3873
A15: AGG Acct POC | B15: Customer PO Reference | C15: SHIPPING METHOD | D15: SHIPPING TERMS | E15: DELIVERY DATE | F15: PAYMENT TERMS | G15: DUE DATE
A16: L. Carlson | B16: AGG Mktg Agmt 10JUL20 | F16: Per Mktg Agmt | G16: 01 March 2021
A18: QTY | B18: ITEM # | C18: DESCRIPTION | E18: UNIT PRICE | F18: DISCOUNT | G18: LINE TOTAL
A19: 1 | C19: Monthly Retainer | E19: 6000 | G19: =IF(SUM(A19)>0,SUM((A19*E19)-F19),"") -> 6000
G20: =IF(SUM(A20)>0,SUM((A20*E20)-F20),"") -> 
D33: TOTAL DISCOUNT | F33: =IF(SUM(F19:F32)>0,SUM(F19:F32),"") -> 
A34: Payment by Check in US Dollars - Payable to AviaGlobal Group, LLC Payment by ACH - Account Number 375020979998, Routing Number 072000805 Payment by Domestic USA Wire in US Dollars Pay to the order of Bank of America, NA – AviaGlobal Group, LLC Account - 375020979998 - Routing Number 026009593 Bank of America, NA - 222 Broadway - New York, New York USA 10038 | F34: SUBTOTAL | G34: =IF(SUM(G19:G32)>0,SUM(G19:G32),"") -> 6000
F35: SALES TAX
F36: TOTAL | G36: =IF(SUM(G34)>0,SUM((G34*G35)+G34),"") -> 6000
F38: =IF(SUM(F36)>0,SUM((F36*F37)+F36),"") -> 

Sheet AGGPERAPA Inv 013-21 15MAR21
A3: AviaGlobal Group, LLC
A4: 33210 North 12th Street | D4: INVOICE NO. | E4: 013-21 | K4: =UPPER(TEXT(E5,"DDMMMYY"))&"/ "&E6&" "&E4 -> 15MAR21/ PERAPA 013-21
A5: Phoenix, Arizona USA 85085-7708 | D5: DATE | E5: 2021-03-15
A6: +1.623.229.3995 | C6: CUSTOMER ID | E6: PERAPA
A7: hal.adams@aviaglobalgroup.com
A9: TO | B9: David Rankin | D9: SHIP TO | E9: David Rankin
B10: Peregrine Avionics, LLC | E10: Peregrine Avionics, LLC
B11: 7385 S Peoria St Unit C4 | E11: 7385 S Peoria St Unit C4
B12: Egnlewood, CO USA 80112 | E12: Egnlewood, CO USA 80112
B13: 303-325-3873 | E13: 303-325-3873
A15: AGG Acct POC | B15: Customer PO Reference | C15: SHIPPING METHOD | D15: SHIPPING TERMS | E15: DELIVERY DATE | F15: PAYMENT TERMS | G15: DUE DATE
A16: L. Carlson | B16: AGG Mktg Agmt 10JUL20 | F16: Per Mktg Agmt | G16: 01 April 2021
A18: QTY | B18: ITEM # | C18: DESCRIPTION | E18: UNIT PRICE | F18: DISCOUNT | G18: LINE TOTAL
A19: 1 | C19: Monthly Retainer | E19: 6000 | G19: =IF(SUM(A19)>0,SUM((A19*E19)-F19),"") -> 6000
G20: =IF(SUM(A20)>0,SUM((A20*E20)-F20),"") -> 
D33: TOTAL DISCOUNT | F33: =IF(SUM(F19:F32)>0,SUM(F19:F32),"") -> 
A34: Payment by Check in US Dollars - Payable to AviaGlobal Group, LLC Payment by ACH - Account Number 375020979998, Routing Number 072000805 Payment by Domestic USA Wire in US Dollars Pay to the order of Bank of America, NA – AviaGlobal Group, LLC Account - 375020979998 - Routing Number 026009593 Bank of America, NA - 222 Broadway - New York, New York USA 10038 | F34: SUBTOTAL | G34: =IF(SUM(G19:G32)>0,SUM(G19:G32),"") -> 6000
F35: SALES TAX
F36: TOTAL | G36: =IF(SUM(G34)>0,SUM((G34*G35)+G34),"") -> 6000
F38: =IF(SUM(F36)>0,SUM((F36*F37)+F36),"") -> 

Sheet AGGASFAR ER Inv 014-21
A3: AviaGlobal Group, LLC
A4: 33210 North 12th Street | D4: INVOICE NO. | E4: 014-2021 | K4: =UPPER(TEXT(E5,"DDMMMYY"))&"/ "&E6&" "&E4 -> 18FEB25/ ASFAR 014-2021
A5: Phoenix, Arizona USA 85085-7708 | D5: DATE | E5: =TODAY() -> 2025-02-18
A6: +1.623.229.3995 | C6: CUSTOMER ID | E6: ASFAR
A7: hal.adams@aviaglobalgroup.com
A9: TO | B9: Kristofer Garberg | D9: SHIP TO | E9: Kristofer Garberg
B10: Appareo Systems, LLC | E10: Appareo Systems, LLC
B11: 1810 NDSU Research Circle North | E11: 1810 NDSU Research Circle North
B12: Fargo, ND USA 58102 | E12: Fargo, ND USA 58102
B13: +1 701.630.4103 | E13: +1 701.630.4103
A15: AGG Acct POC | B15: Customer PO Reference | C15: SHIPPING METHOD | D15: SHIPPING TERMS | E15: DELIVERY DATE | F15: PAYMENT TERMS | G15: DUE DATE
A16: Hal Adams | B16: 38622 | E16: 2020-04-12 | F16: Net 15 Days | G16: 2021-05-01
A18: QTY | B18: ITEM # | C18: DESCRIPTION | E18: UNIT PRICE | F18: DISCOUNT | G18: LINE TOTAL
A19: 1 | B19: AGGASFAR | C19: Travel Expenses PHX-DFW | E19: 398.98 | G19: =IF(SUM(A19)>0,SUM((A19*E19)-F19),"") -> 398.98
B20: ER Inv 014-21 | C20: (Attached ER HEA AGG ER 02-2021) | G20: =IF(SUM(A20)>0,SUM((A20*E20)-F20),"") -> 
D34: TOTAL DISCOUNT | F34: =IF(SUM(F19:F33)>0,SUM(F19:F33),"") -> 
A35: Payment by Check in US Dollars - Payable to AviaGlobal Group, LLC Payment by ACH - Account Number 375020979998, Routing Number 072000805 Payment by Domestic USA Wire in US Dollars Pay to the order of Bank of America, NA – AviaGlobal Group, LLC Account - 375020979998 - Routing Number 026009593 Bank of America, NA - 222 Broadway - New York, New York USA 10038 | F35: SUBTOTAL | G35: =IF(SUM(G19:G33)>0,SUM(G19:G33),"") -> 398.98
F36: SALES TAX
F37: TOTAL | G37: =IF(SUM(G35)>0,SUM((G35*G36)+G35),"") -> 398.98
F39: =IF(SUM(F37)>0,SUM((F37*F38)+F37),"") -> 

Sheet AGGPERAPA ER Inv 015-21
A3: AviaGlobal Group, LLC
A4: 33210 North 12th Street | D4: INVOICE NO. | E4: 015-21 | K4: =UPPER(TEXT(E5,"DDMMMYY"))&"/ "&E6&" "&E4 -> 13APR21/ PERAPA 015-21
A5: Phoenix, Arizona USA 85085-7708 | D5: DATE | E5: 2021-04-13
A6: +1.623.229.3995 | C6: CUSTOMER ID | E6: PERAPA
A7: hal.adams@aviaglobalgroup.com
A9: TO | B9: David Rankin | D9: SHIP TO | E9: David Rankin
B10: Peregrine Avionics, LLC | E10: Peregrine Avionics, LLC
B11: 7385 S Peoria St Unit C4 | E11: 7385 S Peoria St Unit C4
B12: Egnlewood, CO USA 80112 | E12: Egnlewood, CO USA 80112
B13: 303-325-3873 | E13: 303-325-3873
A15: AGG Acct POC | B15: Customer PO Reference | C15: SHIPPING METHOD | D15: SHIPPING TERMS | E15: DELIVERY DATE | F15: PAYMENT TERMS | G15: DUE DATE
A16: L. Carlson/ F. Colliver | B16: AGG Mktg Agmt 10JUL20 | F16: Per Mktg Agmt | G16: 01 May 2021
A18: QTY | B18: ITEM # | C18: DESCRIPTION | E18: UNIT PRICE | F18: DISCOUNT | G18: LINE TOTAL
A19: 1 | B19: AGG Expenses FWC AGG Peregine ER 01-2021 (Attached) | C19: New Peregrine Web Hosting - Various Per Exp Rpt Details | E19: 359.88 | G19: =IF(SUM(A19)>0,SUM((A19*E19)-F19),"") -> 359.88
A20: 1 | B20: AGG Expenses 210408 LRC ADS_BG ER (Attached) | C20: New Peregrine Web Hosting - Various Per Exp Rpt Details | E20: 181.97 | G20: =IF(SUM(A20)>0,SUM((A20*E20)-F20),"") -> 181.97
G21: =IF(SUM(A21)>0,SUM((A21*E21)-F21),"") -> 
D22: TOTAL DISCOUNT | F22: =IF(SUM(F19:F21)>0,SUM(F19:F21),"") -> 
A23: Payment by Check in US Dollars - Payable to AviaGlobal Group, LLC Payment by ACH - Account Number 375020979998, Routing Number 072000805 Payment by Domestic USA Wire in US Dollars Pay to the order of Bank of America, NA – AviaGlobal Group, LLC Account - 375020979998 - Routing Number 026009593 Bank of America, NA - 222 Broadway - New York, New York USA 10038 | F23: SUBTOTAL | G23: =IF(SUM(G19:G21)>0,SUM(G19:G21),"") -> 541.85
F24: SALES TAX
F25: TOTAL | G25: =IF(SUM(G23)>0,SUM((G23*G24)+G23),"") -> 541.85
F27: =IF(SUM(F25)>0,SUM((F25*F26)+F25),"") -> 

Sheet AGGPERAPA Inv 016-21 16APR21
A3: AviaGlobal Group, LLC
A4: 33210 North 12th Street | D4: INVOICE NO. | E4: 016-21 | K4: =UPPER(TEXT(E5,"DDMMMYY"))&"/ "&E6&" "&E4 -> 15APR21/ PERAPA 016-21
A5: Phoenix, Arizona USA 85085-7708 | D5: DATE | E5: 2021-04-15
A6: +1.623.229.3995 | C6: CUSTOMER ID | E6: PERAPA
A7: hal.adams@aviaglobalgroup.com
A9: TO | B9: David Rankin | D9: SHIP TO | E9: David Rankin
B10: Peregrine Avionics, LLC | E10: Peregrine Avionics, LLC
B11: 7385 S Peoria St Unit C4 | E11: 7385 S Peoria St Unit C4
B12: Egnlewood, CO USA 80112 | E12: Egnlewood, CO USA 80112
B13: 303-325-3873 | E13: 303-325-3873
A15: AGG Acct POC | B15: Customer PO Reference | C15: SHIPPING METHOD | D15: SHIPPING TERMS | E15: DELIVERY DATE | F15: PAYMENT TERMS | G15: DUE DATE
A16: L. Carlson | B16: AGG Mktg Agmt 10JUL20 | F16: Per Mktg Agmt | G16: 01 May 2021
A18: QTY | B18: ITEM # | C18: DESCRIPTION | E18: UNIT PRICE | F18: DISCOUNT | G18: LINE TOTAL
A19: 1 | C19: Monthly Retainer | E19: 6000 | G19: =IF(SUM(A19)>0,SUM((A19*E19)-F19),"") -> 6000
G20: =IF(SUM(A20)>0,SUM((A20*E20)-F20),"") -> 
D33: TOTAL DISCOUNT | F33: =IF(SUM(F19:F32)>0,SUM(F19:F32),"") -> 
A34: Payment by Check in US Dollars - Payable to AviaGlobal Group, LLC Payment by ACH - Account Number 375020979998, Routing Number 072000805 Payment by Domestic USA Wire in US Dollars Pay to the order of Bank of America, NA – AviaGlobal Group, LLC Account - 375020979998 - Routing Number 026009593 Bank of America, NA - 222 Broadway - New York, New York USA 10038 | F34: SUBTOTAL | G34: =IF(SUM(G19:G32)>0,SUM(G19:G32),"") -> 6000
F35: SALES TAX
F36: TOTAL | G36: =IF(SUM(G34)>0,SUM((G34*G35)+G34),"") -> 6000
F38: =IF(SUM(F36)>0,SUM((F36*F37)+F36),"") -> 

Sheet AGGTAEMSR 017-21
A3: AviaGlobal Group, LLC
A4: 33210 North 12th Street | D4: INVOICE NO. | E4: 017-21 | K4: =UPPER(TEXT(E5,"DDMMMYY"))&"/ "&E6&" "&E4 -> 03MAY21/ TAEMSR 017-21
A5: Phoenix, Arizona USA 85085-7708 | D5: DATE | E5: 2021-05-03
A6: +1.623.229.3995 | C6: CUSTOMER ID | E6: TAEMSR
A7: hal.adams@aviaglobalgroup.com
A9: TO | B9: Daniel Grosch, CEO | D9: SHIP TO | E9: Daniel Grosch, CEO
B10: Thommen Aircraft Equipment AG | E10: Thommen Aircraft Equipment AG
B11: Hofackerstrasse 48 | E11: Hofackerstrasse 48
B12: 4132 Muttenz, Switzerland | E12: 4132 Muttenz, Switzerland
B13: +41 61 965 22 22 | E13: +41 61 965 22 22
A15: AGG Acct POC | B15: Customer PO Reference | C15: SHIPPING METHOD | D15: SHIPPING TERMS | E15: DELIVERY DATE | F15: PAYMENT TERMS | G15: DUE DATE
A16: Lee Carlson | B16: Agmt 02FEB2021 | F16: Net 10 Days | G16: 2021-05-14
A18: QTY | B18: ITEM # | C18: DESCRIPTION | E18: UNIT PRICE | F18: DISCOUNT | G18: LINE TOTAL
A19: 1 | B19: Report | C19: Market assessment, product requirements per agreement | E19: 6000 | G19: 6000
G20: =IF(SUM(A20)>0,SUM((A20*E20)-F20),"") -> 
D34: TOTAL DISCOUNT | F34: =IF(SUM(F19:F33)>0,SUM(F19:F33),"") -> 
A35: Payment by Check in US Dollars - Payable to AviaGlobal Group, LLC Payment by International Wire in US Dollars Pay to the order of Bank of America, NA – AviaGlobal Group, LLC Account - 375020979998 - SWIFT Code BOFAUS3N Bank of America, NA - 555 California Street - San Francisco, CA USA 94104 | F35: SUBTOTAL | G35: =IF(SUM(G19:G33)>0,SUM(G19:G33),"") -> 6000
F36: SALES TAX
F37: TOTAL | G37: =IF(SUM(G35)>0,SUM((G35*G36)+G35),"") -> 6000
F39: =IF(SUM(F37)>0,SUM((F37*F38)+F37),"") -> 

Sheet AGGPAS Inv 018 13MAY21
A3: AviaGlobal Group, LLC
A4: 33210 North 12th Street | D4: INVOICE NO. | E4: 018-21 | K4: =UPPER(TEXT(E5,"DDMMMYY"))&"/ "&E6&" "&E4 -> 13MAY21/ PASRI 018-21
A5: Phoenix, Arizona USA 85085-7708 | D5: DATE | E5: 2021-05-13
A6: +1.623.434.1750 | C6: CUSTOMER ID | E6: PASRI
A7: hal.adams@aviaglobalgroup.com
A9: TO | B9: Jessica Power | D9: SHIP TO | E9: Jessica Power
B10: Power Aviation Strategies | E10: Power Aviation Strategies
B11: 52 Tom Harvey Road | E11: 52 Tom Harvey Road
B12: Westerly, RI 02891 | E12: Westerly, RI 02891
B13: 1-774-571-7293 | E13: 1-774-571-7293
A15: AGG Acct POC | B15: Customer PO Reference | C15: SHIPPING METHOD | D15: SHIPPING TERMS | E15: DELIVERY DATE | F15: PAYMENT TERMS | G15: DUE DATE
A16: Lee Carlson | B16: Verbal Agmt | C16: eFile | E16: ASAP | F16: On Reciept | G16: 23 May 2021
A18: QTY | B18: ITEM # | C18: DESCRIPTION | E18: UNIT PRICE | F18: DISCOUNT | G18: LINE TOTAL
A19: 3 | B19: Data Extraction | C19: FAA Data - customer specification | E19: 85 | G19: =IF(SUM(A19)>0,SUM((A19*E19)-F19),"") -> 255
G20: =IF(SUM(A20)>0,SUM((A20*E20)-F20),"") -> 
D34: TOTAL DISCOUNT | F34: =IF(SUM(F19:F33)>0,SUM(F19:F33),"") -> 
A35: Payment by Check in US Dollars - Payable to AviaGlobal Group, LLC Payment by ACH - Account Number 375020979998, Routing Number 072000805 Payment by Domestic USA Wire in US Dollars Pay to the order of Bank of America, NA – AviaGlobal Group, LLC Account - 375020979998 - Routing Number 026009593 Bank of America, NA - 222 Broadway - New York, New York USA 10038 | F35: SUBTOTAL | G35: =IF(SUM(G19:G33)>0,SUM(G19:G33),"") -> 255
F36: SALES TAX
F37: TOTAL | G37: =IF(SUM(G35)>0,SUM((G35*G36)+G35),"") -> 255
F39: =IF(SUM(F37)>0,SUM((F37*F38)+F37),"") -> 

Sheet AGGPERAPA Inv 019-21 15MAY21
A3: AviaGlobal Group, LLC
A4: 33210 North 12th Street | D4: INVOICE NO. | E4: 019-21 | K4: =UPPER(TEXT(E5,"DDMMMYY"))&"/ "&E6&" "&E4 -> 15MAY21/ PERAPA 019-21
A5: Phoenix, Arizona USA 85085-7708 | D5: DATE | E5: 2021-05-15
A6: +1.623.229.3995 | C6: CUSTOMER ID | E6: PERAPA
A7: hal.adams@aviaglobalgroup.com
A9: TO | B9: David Rankin | D9: SHIP TO | E9: David Rankin
B10: Peregrine Avionics, LLC | E10: Peregrine Avionics, LLC
B11: 7385 S Peoria St Unit C4 | E11: 7385 S Peoria St Unit C4
B12: Egnlewood, CO USA 80112 | E12: Egnlewood, CO USA 80112
B13: 303-325-3873 | E13: 303-325-3873
A15: AGG Acct POC | B15: Customer PO Reference | C15: SHIPPING METHOD | D15: SHIPPING TERMS | E15: DELIVERY DATE | F15: PAYMENT TERMS | G15: DUE DATE
A16: L. Carlson | B16: AGG Mktg Agmt 10JUL20 | F16: Per Mktg Agmt | G16: 01 June 2021
A18: QTY | B18: ITEM # | C18: DESCRIPTION | E18: UNIT PRICE | F18: DISCOUNT | G18: LINE TOTAL
A19: 1 | C19: Monthly Retainer | E19: 6000 | G19: =IF(SUM(A19)>0,SUM((A19*E19)-F19),"") -> 6000
G20: =IF(SUM(A20)>0,SUM((A20*E20)-F20),"") -> 
D33: TOTAL DISCOUNT | F33: =IF(SUM(F19:F32)>0,SUM(F19:F32),"") -> 
A34: Payment by Check in US Dollars - Payable to AviaGlobal Group, LLC Payment by ACH - Account Number 375020979998, Routing Number 072000805 Payment by Domestic USA Wire in US Dollars Pay to the order of Bank of America, NA – AviaGlobal Group, LLC Account - 375020979998 - Routing Number 026009593 Bank of America, NA - 222 Broadway - New York, New York USA 10038 | F34: SUBTOTAL | G34: =IF(SUM(G19:G32)>0,SUM(G19:G32),"") -> 6000
F35: SALES TAX
F36: TOTAL | G36: =IF(SUM(G34)>0,SUM((G34*G35)+G34),"") -> 6000
F38: =IF(SUM(F36)>0,SUM((F36*F37)+F36),"") -> 

Sheet AGGPERAPA Inv 020-21 15JUN21
A3: AviaGlobal Group, LLC
A4: 33210 North 12th Street | D4: INVOICE NO. | E4: 020-21 | K4: =UPPER(TEXT(E5,"DDMMMYY"))&"/ "&E6&" "&E4 -> 15JUN21/ PERAPA 020-21
A5: Phoenix, Arizona USA 85085-7708 | D5: DATE | E5: 2021-06-15
A6: +1.623.229.3995 | C6: CUSTOMER ID | E6: PERAPA
A7: hal.adams@aviaglobalgroup.com
A9: TO | B9: David Rankin | D9: SHIP TO | E9: David Rankin
B10: Peregrine Avionics, LLC | E10: Peregrine Avionics, LLC
B11: 7385 S Peoria St Unit C4 | E11: 7385 S Peoria St Unit C4
B12: Egnlewood, CO USA 80112 | E12: Egnlewood, CO USA 80112
B13: 303-325-3873 | E13: 303-325-3873
A15: AGG Acct POC | B15: Customer PO Reference | C15: SHIPPING METHOD | D15: SHIPPING TERMS | E15: DELIVERY DATE | F15: PAYMENT TERMS | G15: DUE DATE
A16: L. Carlson | B16: AGG Mktg Agmt 04JUNE2021 | F16: Per Mktg Agmt | G16: 01 July 2021
A18: QTY | B18: ITEM # | C18: DESCRIPTION | E18: UNIT PRICE | F18: DISCOUNT | G18: LINE TOTAL
A19: 1 | C19: Monthly Retainer | E19: 1500 | G19: 1500
C20: PA www site sustainment | G20: =IF(SUM(A20)>0,SUM((A20*E20)-F20),"") -> 
D33: TOTAL DISCOUNT | F33: =IF(SUM(F19:F32)>0,SUM(F19:F32),"") -> 
A34: Payment by Check in US Dollars - Payable to AviaGlobal Group, LLC Payment by ACH - Account Number 375020979998, Routing Number 072000805 Payment by Domestic USA Wire in US Dollars Pay to the order of Bank of America, NA – AviaGlobal Group, LLC Account - 375020979998 - Routing Number 026009593 Bank of America, NA - 222 Broadway - New York, New York USA 10038 | F34: SUBTOTAL | G34: =IF(SUM(G19:G32)>0,SUM(G19:G32),"") -> 1500
F35: SALES TAX
F36: TOTAL | G36: =IF(SUM(G34)>H340,SUM((G34*G35)+G34),"") -> 1500
F38: =IF(SUM(F36)>0,SUM((F36*F37)+F36),"") -> 

Sheet AGGPERAPA Inv 021-21 15JUN21
A3: AviaGlobal Group, LLC
A4: 33210 North 12th Street | D4: INVOICE NO. | E4: 021-21 | K4: =UPPER(TEXT(E5,"DDMMMYY"))&"/ "&E6&" "&E4 -> 15JUN21/ PERAPA 021-21
A5: Phoenix, Arizona USA 85085-7708 | D5: DATE | E5: 2021-06-15
A6: +1.623.229.3995 | C6: CUSTOMER ID | E6: PERAPA
A7: hal.adams@aviaglobalgroup.com
A9: TO | B9: David Rankin | D9: SHIP TO | E9: David Rankin
B10: Peregrine Avionics, LLC | E10: Peregrine Avionics, LLC
B11: 7385 S Peoria St Unit C4 | E11: 7385 S Peoria St Unit C4
B12: Egnlewood, CO USA 80112 | E12: Egnlewood, CO USA 80112
B13: 303-325-3873 | E13: 303-325-3873
A15: AGG Acct POC | B15: Customer PO Reference | C15: SHIPPING METHOD | D15: SHIPPING TERMS | E15: DELIVERY DATE | F15: PAYMENT TERMS | G15: DUE DATE
A16: L. Carlson | B16: AGG Mktg Agmt 04JUNE2021 | F16: Per Mktg Agmt | G16: 01 July 2021
A18: QTY | B18: ITEM # | C18: DESCRIPTION | E18: UNIT PRICE | F18: DISCOUNT | G18: LINE TOTAL
A19: 1 | C19: April Mailchip subscription | E19: 52.99 | G19: =IF(SUM(A19)>0,SUM((A19*E19)-F19),"") -> 52.99
A20: 1 | C20: May Mailchimp subscription | E20: 52.99 | G20: =IF(SUM(A20)>0,SUM((A20*E20)-F20),"") -> 52.99
G21: =IF(SUM(A21)>0,SUM((A21*E21)-F21),"") -> 
D33: TOTAL DISCOUNT | F33: =IF(SUM(F19:F32)>0,SUM(F19:F32),"") -> 
A34: Payment by Check in US Dollars - Payable to AviaGlobal Group, LLC Payment by ACH - Account Number 375020979998, Routing Number 072000805 Payment by Domestic USA Wire in US Dollars Pay to the order of Bank of America, NA – AviaGlobal Group, LLC Account - 375020979998 - Routing Number 026009593 Bank of America, NA - 222 Broadway - New York, New York USA 10038 | F34: SUBTOTAL | G34: =IF(SUM(G19:G32)>0,SUM(G19:G32),"") -> 105.98
F35: SALES TAX
F36: TOTAL | G36: =IF(SUM(G34)>H340,SUM((G34*G35)+G34),"") -> 105.98
F38: =IF(SUM(F36)>0,SUM((F36*F37)+F36),"") -> 

Sheet AGGPERAPA ER Inv 022-21 01JUL21
A3: AviaGlobal Group, LLC
A4: 33210 North 12th Street | D4: INVOICE NO. | E4: 022-21 | K4: =UPPER(TEXT(E5,"DDMMMYY"))&"/ "&E6&" "&E4 -> 01JUL21/ PERAPA 022-21
A5: Phoenix, Arizona USA 85085-7708 | D5: DATE | E5: 2021-07-01
A6: +1.623.229.3995 | C6: CUSTOMER ID | E6: PERAPA
A7: hal.adams@aviaglobalgroup.com
A9: TO | B9: David Rankin | D9: SHIP TO | E9: David Rankin
B10: Peregrine Avionics, LLC | E10: Peregrine Avionics, LLC
B11: 7385 S Peoria St Unit C4 | E11: 7385 S Peoria St Unit C4
B12: Egnlewood, CO USA 80112 | E12: Egnlewood, CO USA 80112
B13: 303-325-3873 | E13: 303-325-3873
A15: AGG Acct POC | B15: Customer PO Reference | C15: SHIPPING METHOD | D15: SHIPPING TERMS | E15: DELIVERY DATE | F15: PAYMENT TERMS | G15: DUE DATE
A16: L. Carlson | B16: AGG MktgSupport - AEA 21 | F16: Per Rquest | G16: 01 July 2021
A18: QTY | B18: ITEM # | C18: DESCRIPTION | E18: UNIT PRICE | F18: DISCOUNT | G18: LINE TOTAL
A19: 3 | C19: Daily AGG Support Fee | E19: 1000 | G19: =IF(SUM(A19)>0,SUM((A19*E19)-F19),"") -> 3000
A20: 1 | C20: AGG Expenses - AEA 21 | E20: 2692.3 | G20: =IF(SUM(A20)>0,SUM((A20*E20)-F20),"") -> 2692.3
C21: (Per attached L Carlson AGG Exp | G21: =IF(SUM(A21)>0,SUM((A21*E21)-F21),"") -> 
C22: Report 210628 - LRC ADSB-BG AEA
C23: Peregrine - with receipts)
D33: TOTAL DISCOUNT | F33: =IF(SUM(F19:F32)>0,SUM(F19:F32),"") -> 
A34: Payment by Check in US Dollars - Payable to AviaGlobal Group, LLC Payment by ACH - Account Number 375020979998, Routing Number 072000805 Payment by Domestic USA Wire in US Dollars Pay to the order of Bank of America, NA – AviaGlobal Group, LLC Account - 375020979998 - Routing Number 026009593 Bank of America, NA - 222 Broadway - New York, New York USA 10038 | F34: SUBTOTAL | G34: =IF(SUM(G19:G32)>0,SUM(G19:G32),"") -> 5692.3
F35: SALES TAX
F36: TOTAL | G36: =IF(SUM(G34)>H340,SUM((G34*G35)+G34),"") -> 5692.3
F38: =IF(SUM(F36)>0,SUM((F36*F37)+F36),"") -> 

Sheet AGGPERAPA Inv 023-21 15JUL21
A3: AviaGlobal Group, LLC
A4: 33210 North 12th Street | D4: INVOICE NO. | E4: 023-21 | K4: =UPPER(TEXT(E5,"DDMMMYY"))&"/ "&E6&" "&E4 -> 15JUL21/ PERAPA 023-21
A5: Phoenix, Arizona USA 85085-7708 | D5: DATE | E5: 2021-07-15
A6: +1.623.229.3995 | C6: CUSTOMER ID | E6: PERAPA
A7: hal.adams@aviaglobalgroup.com
A9: TO | B9: David Rankin | D9: SHIP TO | E9: David Rankin
B10: Peregrine Avionics, LLC | E10: Peregrine Avionics, LLC
B11: 7385 S Peoria St Unit C4 | E11: 7385 S Peoria St Unit C4
B12: Egnlewood, CO USA 80112 | E12: Egnlewood, CO USA 80112
B13: 303-325-3873 | E13: 303-325-3873
A15: AGG Acct POC | B15: Customer PO Reference | C15: SHIPPING METHOD | D15: SHIPPING TERMS | E15: DELIVERY DATE | F15: PAYMENT TERMS | G15: DUE DATE
A16: L. Carlson | B16: AGG Mktg Agmt 04JUNE2021 | F16: Per Mktg Agmt | G16: 01 August 2021
A18: QTY | B18: ITEM # | C18: DESCRIPTION | E18: UNIT PRICE | F18: DISCOUNT | G18: LINE TOTAL
A19: 1 | C19: Monthly Retainer | E19: 1500 | G19: 1500
C20: PA www site sustainment | G20: =IF(SUM(A20)>0,SUM((A20*E20)-F20),"") -> 
D33: TOTAL DISCOUNT | F33: =IF(SUM(F19:F32)>0,SUM(F19:F32),"") -> 
A34: Payment by Check in US Dollars - Payable to AviaGlobal Group, LLC Payment by ACH - Account Number 375020979998, Routing Number 072000805 Payment by Domestic USA Wire in US Dollars Pay to the order of Bank of America, NA – AviaGlobal Group, LLC Account - 375020979998 - Routing Number 026009593 Bank of America, NA - 222 Broadway - New York, New York USA 10038 | F34: SUBTOTAL | G34: =IF(SUM(G19:G32)>0,SUM(G19:G32),"") -> 1500
F35: SALES TAX
F36: TOTAL | G36: =IF(SUM(G34)>H340,SUM((G34*G35)+G34),"") -> 1500
F38: =IF(SUM(F36)>0,SUM((F36*F37)+F36),"") -> 

Sheet AGGPERAPA Inv 024-21 01SEP21
A3: AviaGlobal Group, LLC
A4: 33210 North 12th Street | D4: INVOICE NO. | E4: 024-21 | K4: =UPPER(TEXT(E5,"DDMMMYY"))&"/ "&E6&" "&E4 -> 15AUG21/ PERAPA 024-21
A5: Phoenix, Arizona USA 85085-7708 | D5: DATE | E5: 2021-08-15
A6: +1.623.229.3995 | C6: CUSTOMER ID | E6: PERAPA
A7: hal.adams@aviaglobalgroup.com
A9: TO | B9: David Rankin | D9: SHIP TO | E9: David Rankin
B10: Peregrine Avionics, LLC | E10: Peregrine Avionics, LLC
B11: 7385 S Peoria St Unit C4 | E11: 7385 S Peoria St Unit C4
B12: Egnlewood, CO USA 80112 | E12: Egnlewood, CO USA 80112
B13: 303-325-3873 | E13: 303-325-3873
A15: AGG Acct POC | B15: Customer PO Reference | C15: SHIPPING METHOD | D15: SHIPPING TERMS | E15: DELIVERY DATE | F15: PAYMENT TERMS | G15: DUE DATE
A16: L. Carlson | B16: AGG Mktg Agmt 04JUNE2021 | F16: Per Mktg Agmt | G16: 01 September 2021
A18: QTY | B18: ITEM # | C18: DESCRIPTION | E18: UNIT PRICE | F18: DISCOUNT | G18: LINE TOTAL
A19: 1 | C19: Monthly Retainer | E19: 1500 | G19: 1500
C20: PA www site sustainment | G20: =IF(SUM(A20)>0,SUM((A20*E20)-F20),"") -> 
D33: TOTAL DISCOUNT | F33: =IF(SUM(F19:F32)>0,SUM(F19:F32),"") -> 
A34: Payment by Check in US Dollars - Payable to AviaGlobal Group, LLC Payment by ACH - Account Number 375020979998, Routing Number 072000805 Payment by Domestic USA Wire in US Dollars Pay to the order of Bank of America, NA – AviaGlobal Group, LLC Account - 375020979998 - Routing Number 026009593 Bank of America, NA - 222 Broadway - New York, New York USA 10038 | F34: SUBTOTAL | G34: =IF(SUM(G19:G32)>0,SUM(G19:G32),"") -> 1500
F35: SALES TAX
F36: TOTAL | G36: =IF(SUM(G34)>H340,SUM((G34*G35)+G34),"") -> 1500
F38: =IF(SUM(F36)>0,SUM((F36*F37)+F36),"") -> 

Sheet AGGPERAPA Inv 025-21 15SEP21
A3: AviaGlobal Group, LLC
A4: 33210 North 12th Street | D4: INVOICE NO. | E4: 025-21 | K4: =UPPER(TEXT(E5,"DDMMMYY"))&"/ "&E6&" "&E4 -> 15SEP21/ PERAPA 025-21
A5: Phoenix, Arizona USA 85085-7708 | D5: DATE | E5: 2021-09-15
A6: +1.623.229.3995 | C6: CUSTOMER ID | E6: PERAPA
A7: hal.adams@aviaglobalgroup.com
A9: TO | B9: David Rankin | D9: SHIP TO | E9: David Rankin
B10: Peregrine Avionics, LLC | E10: Peregrine Avionics, LLC
B11: 7385 S Peoria St Unit C4 | E11: 7385 S Peoria St Unit C4
B12: Egnlewood, CO USA 80112 | E12: Egnlewood, CO USA 80112
B13: 303-325-3873 | E13: 303-325-3873
A15: AGG Acct POC | B15: Customer PO Reference | C15: SHIPPING METHOD | D15: SHIPPING TERMS | E15: DELIVERY DATE | F15: PAYMENT TERMS | G15: DUE DATE
A16: L. Carlson | B16: AGG Mktg Agmt 04JUNE2021 | F16: Per Mktg Agmt | G16: 01 October 2021
A18: QTY | B18: ITEM # | C18: DESCRIPTION | E18: UNIT PRICE | F18: DISCOUNT | G18: LINE TOTAL
A19: 1 | C19: Monthly Retainer | E19: 1500 | G19: 1500
C20: PA www site sustainment | G20: =IF(SUM(A20)>0,SUM((A20*E20)-F20),"") -> 
D33: TOTAL DISCOUNT | F33: =IF(SUM(F19:F32)>0,SUM(F19:F32),"") -> 
A34: Payment by Check in US Dollars - Payable to AviaGlobal Group, LLC Payment by ACH - Account Number 375020979998, Routing Number 072000805 Payment by Domestic USA Wire in US Dollars Pay to the order of Bank of America, NA – AviaGlobal Group, LLC Account - 375020979998 - Routing Number 026009593 Bank of America, NA - 222 Broadway - New York, New York USA 10038 | F34: SUBTOTAL | G34: =IF(SUM(G19:G32)>0,SUM(G19:G32),"") -> 1500
F35: SALES TAX
F36: TOTAL | G36: =IF(SUM(G34)>H340,SUM((G34*G35)+G34),"") -> 1500
F38: =IF(SUM(F36)>0,SUM((F36*F37)+F36),"") -> 

Sheet AGGPERAPA Inv 026-21 15OCT-21
A3: AviaGlobal Group, LLC
A4: 33210 North 12th Street | D4: INVOICE NO. | E4: 026-21 | K4: =UPPER(TEXT(E5,"DDMMMYY"))&"/ "&E6&" "&E4 -> 15OCT21/ PERAPA 026-21
A5: Phoenix, Arizona USA 85085-7708 | D5: DATE | E5: 2021-10-15
A6: +1.623.229.3995 | C6: CUSTOMER ID | E6: PERAPA
A7: hal.adams@aviaglobalgroup.com
A9: TO | B9: David Rankin | D9: SHIP TO | E9: David Rankin
B10: Peregrine Avionics, LLC | E10: Peregrine Avionics, LLC
B11: 7385 S Peoria St Unit C4 | E11: 7385 S Peoria St Unit C4
B12: Egnlewood, CO USA 80112 | E12: Egnlewood, CO USA 80112
B13: 303-325-3873 | E13: 303-325-3873
A15: AGG Acct POC | B15: Customer PO Reference | C15: SHIPPING METHOD | D15: SHIPPING TERMS | E15: DELIVERY DATE | F15: PAYMENT TERMS | G15: DUE DATE
A16: L. Carlson | B16: AGG Mktg Agmt 04JUNE2021 | F16: Per Mktg Agmt | G16: 01November 2021
A18: QTY | B18: ITEM # | C18: DESCRIPTION | E18: UNIT PRICE | F18: DISCOUNT | G18: LINE TOTAL
A19: 1 | C19: Monthly Retainer | E19: 1500 | G19: 1500
C20: PA www site sustainment | G20: =IF(SUM(A20)>0,SUM((A20*E20)-F20),"") -> 
D33: TOTAL DISCOUNT | F33: =IF(SUM(F19:F32)>0,SUM(F19:F32),"") -> 
A34: Payment by Check in US Dollars - Payable to AviaGlobal Group, LLC Payment by ACH - Account Number 375020979998, Routing Number 072000805 Payment by Domestic USA Wire in US Dollars Pay to the order of Bank of America, NA – AviaGlobal Group, LLC Account - 375020979998 - Routing Number 026009593 Bank of America, NA - 222 Broadway - New York, New York USA 10038 | F34: SUBTOTAL | G34: =IF(SUM(G19:G32)>0,SUM(G19:G32),"") -> 1500
F35: SALES TAX
F36: TOTAL | G36: =IF(SUM(G34)>H340,SUM((G34*G35)+G34),"") -> 1500
F38: =IF(SUM(F36)>0,SUM((F36*F37)+F36),"") -> 

Sheet AGGRAMIGH ER Inv 027-21
A3: AviaGlobal Group, LLC
A4: 33210 North 12th Street | D4: INVOICE NO. | E4: 027-21 | K4: =UPPER(TEXT(E5,"DDMMMYY"))&"/ "&E6&" "&E4 -> 05NOV21/ RAMGH 027-21
A5: Phoenix, Arizona USA 85085-7708 | D5: DATE | E5: 2021-11-05
A6: +1.623.434.1750 | C6: CUSTOMER ID | E6: RAMGH
A7: hal.adams@aviaglobalgroup.com
A9: TO | B9: Attn: Robert Payne, General Manager | D9: SHIP TO | E9: Attn: Robert Payne, General Manager
B10: R.A. Miller Industries, Inc. (RAMI) | E10: R.A. Miller Industries, Inc. (RAMI)
B11: 14500 168th Avenue | E11: 14500 168th Avenue
B12: Grand Haven, Michigan USA 49417 | E12: Grand Haven, Michigan USA 49417
B13: +1.616.842.9450 | E13: +1.616.842.9450
A15: AGG Acct POC | B15: Customer PO Reference | C15: SHIPPING METHOD | D15: SHIPPING TERMS | E15: DELIVERY DATE | F15: PAYMENT TERMS | G15: DUE DATE
A16: F. Colliver | B16: AGG Consulting Agmt 20OCT2021 | F16: Per Consulting Agreement | G16: 15 November 2021
A17: QTY | B17: ITEM # | C17: DESCRIPTION | E17: UNIT PRICE | F17: DISCOUNT | G17: LINE TOTAL
A18: 1 | B18: Finder's Fee | C18: EU M&A Support/ Becker France | E18: 15000 | G18: =IF(SUM(A18)>0,SUM((A18*E18)-F18),"") -> 15000
C19: Net 10, ACH USD per agreement | G19: =IF(SUM(A19)>0,SUM((A19*E19)-F19),"") -> 
D33: TOTAL DISCOUNT | F33: =IF(SUM(F18:F32)>0,SUM(F18:F32),"") -> 
A34: Payment by Check in US Dollars - Payable to AviaGlobal Group, LLC Payment by ACH - Account Number 375020979998, Routing Number 072000805 Payment by Domestic USA Wire in US Dollars Pay to the order of Bank of America, NA – AviaGlobal Group, LLC Account - 375020979998 - Routing Number 026009593 Bank of America, NA - 222 Broadway - New York, New York USA 10038 | F34: SUBTOTAL | G34: =IF(SUM(G18:G32)>0,SUM(G18:G32),"") -> 15000
F35: SALES TAX
F36: TOTAL | G36: =IF(SUM(G34)>0,SUM((G34*G35)+G34),"") -> 15000

Sheet AGGPERAPA ERInv 028-21 12NOV21
A3: AviaGlobal Group, LLC
A4: 33210 North 12th Street | D4: INVOICE NO. | E4: 028-21 | K4: =UPPER(TEXT(E5,"DDMMMYY"))&"/ "&E6&" "&E4 -> 12NOV21/ PERAPA 028-21
A5: Phoenix, Arizona USA 85085-7708 | D5: DATE | E5: 2021-11-12
A6: +1.623.229.3995 | C6: CUSTOMER ID | E6: PERAPA
A7: hal.adams@aviaglobalgroup.com
A9: TO | B9: David Rankin | D9: SHIP TO | E9: David Rankin
B10: Peregrine Avionics, LLC | E10: Peregrine Avionics, LLC
B11: 7385 S Peoria St Unit C4 | E11: 7385 S Peoria St Unit C4
B12: Egnlewood, CO USA 80112 | E12: Egnlewood, CO USA 80112
B13: 303-325-3873 | E13: 303-325-3873
A15: AGG Acct POC | B15: Customer PO Reference | C15: SHIPPING METHOD | D15: SHIPPING TERMS | E15: DELIVERY DATE | F15: PAYMENT TERMS | G15: DUE DATE
A16: L. Carlson | B16: AGG Mktg Agmt 04JUNE2021 | F16: Per Mktg Agmt | G16: 26 November 2021
A18: QTY | B18: ITEM # | C18: DESCRIPTION | E18: UNIT PRICE | F18: DISCOUNT | G18: LINE TOTAL
A19: 1 | B19: Monthly Fee | C19: June Mailchip subscription | E19: 52.99 | G19: =IF(SUM(A19)>0,SUM((A19*E19)-F19),"") -> 52.99
A20: 1 | B20: Monthly Fee | C20: July Mailchimp subscription | E20: 52.99 | G20: =IF(SUM(A20)>0,SUM((A20*E20)-F20),"") -> 52.99
A21: 1 | B21: Monthly Fee | C21: August Mailchimp subscription | E21: 52.99 | G21: =IF(SUM(A21)>0,SUM((A21*E21)-F21),"") -> 52.99
A22: 1 | B22: Monthly Fee | C22: September Mailchimp subscription | E22: 52.99 | G22: =IF(SUM(A22)>0,SUM((A22*E22)-F22),"") -> 52.99
A23: 1 | B23: Monthly Fee | C23: October Mailchimp subscription | E23: 52.99 | G23: =IF(SUM(A23)>H220,SUM((A23*E23)-F23),"") -> 52.99
A24: 1 | B24: WWW Pictures | C24: Shutterstock SSTK-00A52-AC54 | E24: 125 | G24: =IF(SUM(A24)>H20,SUM((A24*E24)-F24),"") -> 125
G25: =IF(SUM(A25)>0,SUM((A25*E25)-F25),"") -> 
C28: (Per Attached Summary, Receipts)
D33: TOTAL DISCOUNT | F33: =IF(SUM(F19:F32)>0,SUM(F19:F32),"") -> 
A34: Payment by Check in US Dollars - Payable to AviaGlobal Group, LLC Payment by ACH - Account Number 375020979998, Routing Number 072000805 Payment by Domestic USA Wire in US Dollars Pay to the order of Bank of America, NA – AviaGlobal Group, LLC Account - 375020979998 - Routing Number 026009593 Bank of America, NA - 222 Broadway - New York, New York USA 10038 | F34: SUBTOTAL | G34: =IF(SUM(G19:G32)>0,SUM(G19:G32),"") -> 389.95
F35: SALES TAX
F36: TOTAL | G36: =IF(SUM(G34)>H340,SUM((G34*G35)+G34),"") -> 389.95
F38: =IF(SUM(F36)>0,SUM((F36*F37)+F36),"") -> 

Sheet AGGPERAPA Inv 029-21 15NOV21
A3: AviaGlobal Group, LLC
A4: 33210 North 12th Street | D4: INVOICE NO. | E4: 029-21
A5: Phoenix, Arizona USA 85085-7708 | D5: DATE | E5: 2021-11-15
A6: +1.623.229.3995 | C6: CUSTOMER ID | E6: PERAPA
A7: hal.adams@aviaglobalgroup.com
A9: TO | B9: David Rankin | D9: SHIP TO | E9: David Rankin
B10: Peregrine Avionics, LLC | E10: Peregrine Avionics, LLC
B11: 7385 S Peoria St Unit C4 | E11: 7385 S Peoria St Unit C4
B12: Egnlewood, CO USA 80112 | E12: Egnlewood, CO USA 80112
B13: 303-325-3873 | E13: 303-325-3873
A15: AGG Acct POC | B15: Customer PO Reference | C15: SHIPPING METHOD | D15: SHIPPING TERMS | E15: DELIVERY DATE | F15: PAYMENT TERMS | G15: DUE DATE
A16: L. Carlson | B16: AGG Mktg Agmt 04JUNE2021 | F16: Per Mktg Agmt | G16: 01 December 2021
A18: QTY | B18: ITEM # | C18: DESCRIPTION | E18: UNIT PRICE | F18: DISCOUNT | G18: LINE TOTAL
A19: 1 | C19: Monthly Retainer | E19: 1500 | G19: 1500
C20: PA www site sustainment | G20: =IF(SUM(A20)>0,SUM((A20*E20)-F20),"") -> 
D33: TOTAL DISCOUNT | F33: =IF(SUM(F19:F32)>0,SUM(F19:F32),"") -> 
A34: Payment by Check in US Dollars - Payable to AviaGlobal Group, LLC Payment by ACH - Account Number 375020979998, Routing Number 072000805 Payment by Domestic USA Wire in US Dollars Pay to the order of Bank of America, NA – AviaGlobal Group, LLC Account - 375020979998 - Routing Number 026009593 Bank of America, NA - 222 Broadway - New York, New York USA 10038 | F34: SUBTOTAL | G34: =IF(SUM(G19:G32)>0,SUM(G19:G32),"") -> 1500
F35: SALES TAX
F36: TOTAL | G36: =IF(SUM(G34)>H340,SUM((G34*G35)+G34),"") -> 1500
F38: =IF(SUM(F36)>0,SUM((F36*F37)+F36),"") -> 

Sheet AGGPAS Inv 030-21 22NOV21
A3: AviaGlobal Group, LLC
A4: 33210 North 12th Street | D4: INVOICE NO. | E4: 030-21 | K4: =UPPER(TEXT(E5,"DDMMMYY"))&"/ "&E6&" "&E4 -> 22NOV21/ PASRI 030-21
A5: Phoenix, Arizona USA 85085-7708 | D5: DATE | E5: 2021-11-22
A6: +1.623.434.1750 | C6: CUSTOMER ID | E6: PASRI
A7: hal.adams@aviaglobalgroup.com
A9: TO | B9: Jessica Power | D9: SHIP TO | E9: Jessica Power
B10: Power Aviation Strategies | E10: Power Aviation Strategies
B11: 52 Tom Harvey Road | E11: 52 Tom Harvey Road
B12: Westerly, RI 02891 | E12: Westerly, RI 02891
B13: 1-774-571-7293 | E13: 1-774-571-7293
A15: AGG Acct POC | B15: Customer PO Reference | C15: SHIPPING METHOD | D15: SHIPPING TERMS | E15: DELIVERY DATE | F15: PAYMENT TERMS | G15: DUE DATE
A16: Lee Carlson | B16: Verbal Agmt | C16: eFile | E16: ASAP | F16: On Reciept | G16: 30 November 2021
A18: QTY | B18: ITEM # | C18: DESCRIPTION | E18: UNIT PRICE | F18: DISCOUNT | G18: LINE TOTAL
A19: 3 | B19: Data Extraction | C19: FAA Pilot Data Extraction for NE Region - US | E19: 500 | G19: 500
G20: =IF(SUM(A20)>0,SUM((A20*E20)-F20),"") -> 
D32: TOTAL DISCOUNT | F32: =IF(SUM(F19:F31)>0,SUM(F19:F31),"") -> 
A33: Payment by Check in US Dollars - Payable to AviaGlobal Group, LLC Payment by ACH - Account Number 375020979998, Routing Number 072000805 Payment by Domestic USA Wire in US Dollars Pay to the order of Bank of America, NA – AviaGlobal Group, LLC Account - 375020979998 - Routing Number 026009593 Bank of America, NA - 222 Broadway - New York, New York USA 10038 | F33: SUBTOTAL | G33: =IF(SUM(G19:G31)>0,SUM(G19:G31),"") -> 500
F34: SALES TAX
F35: TOTAL | G35: =IF(SUM(G33)>0,SUM((G33*G34)+G33),"") -> 500
F37: =IF(SUM(F35)>0,SUM((F35*F36)+F35),"") -> 

Sheet AGGPERAPA Inv 030-21 15DEC21
A3: AviaGlobal Group, LLC
A4: 33210 North 12th Street | D4: INVOICE NO. | E4: 030-21
A5: Phoenix, Arizona USA 85085-7708 | D5: DATE | E5: 2021-12-15
A6: +1.623.229.3995 | C6: CUSTOMER ID | E6: PERAPA
A7: hal.adams@aviaglobalgroup.com
A9: TO | B9: David Rankin | D9: SHIP TO | E9: David Rankin
B10: Peregrine Avionics, LLC | E10: Peregrine Avionics, LLC
B11: 7385 S Peoria St Unit C4 | E11: 7385 S Peoria St Unit C4
B12: Egnlewood, CO USA 80112 | E12: Egnlewood, CO USA 80112
B13: 303-325-3873 | E13: 303-325-3873
A15: AGG Acct POC | B15: Customer PO Reference | C15: SHIPPING METHOD | D15: SHIPPING TERMS | E15: DELIVERY DATE | F15: PAYMENT TERMS | G15: DUE DATE
A16: L. Carlson | B16: AGG Mktg Agmt 04JUNE2021 | F16: Per Mktg Agmt | G16: 01 January 2022
A18: QTY | B18: ITEM # | C18: DESCRIPTION | E18: UNIT PRICE | F18: DISCOUNT | G18: LINE TOTAL
A19: 1 | C19: Monthly Retainer | E19: 1500 | G19: 1500
C20: PA www site sustainment | G20: =IF(SUM(A20)>0,SUM((A20*E20)-F20),"") -> 
D33: TOTAL DISCOUNT | F33: =IF(SUM(F19:F32)>0,SUM(F19:F32),"") -> 
A34: Payment by Check in US Dollars - Payable to AviaGlobal Group, LLC Payment by ACH - Account Number 375020979998, Routing Number 072000805 Payment by Domestic USA Wire in US Dollars Pay to the order of Bank of America, NA – AviaGlobal Group, LLC Account - 375020979998 - Routing Number 026009593 Bank of America, NA - 222 Broadway - New York, New York USA 10038 | F34: SUBTOTAL | G34: =IF(SUM(G19:G32)>0,SUM(G19:G32),"") -> 1500
F35: SALES TAX
F36: TOTAL | G36: =IF(SUM(G34)>H340,SUM((G34*G35)+G34),"") -> 1500
F38: =IF(SUM(F36)>0,SUM((F36*F37)+F36),"") -> 

Sheet AGGPERAPA ERInv 031-21 16DEC21
A3: AviaGlobal Group, LLC
A4: 33210 North 12th Street | D4: INVOICE NO. | E4: 031-21 | K4: =UPPER(TEXT(E5,"DDMMMYY"))&"/ "&E6&" "&E4 -> 16DEC21/ PERAPA 031-21
A5: Phoenix, Arizona USA 85085-7708 | D5: DATE | E5: 2021-12-16
A6: +1.623.229.3995 | C6: CUSTOMER ID | E6: PERAPA
A7: hal.adams@aviaglobalgroup.com
A9: TO | B9: David Rankin | D9: SHIP TO | E9: David Rankin
B10: Peregrine Avionics, LLC | E10: Peregrine Avionics, LLC
B11: 7385 S Peoria St Unit C4 | E11: 7385 S Peoria St Unit C4
B12: Egnlewood, CO USA 80112 | E12: Egnlewood, CO USA 80112
B13: 303-325-3873 | E13: 303-325-3873
A15: AGG Acct POC | B15: Customer PO Reference | C15: SHIPPING METHOD | D15: SHIPPING TERMS | E15: DELIVERY DATE | F15: PAYMENT TERMS | G15: DUE DATE
A16: L. Carlson | B16: AGG Mktg Agmt 04JUNE2021 | F16: Per Mktg Agmt | G16: 26 November 2021
A18: QTY | B18: ITEM # | C18: DESCRIPTION | E18: UNIT PRICE | F18: DISCOUNT | G18: LINE TOTAL
A19: 1 | B19: Monthly Fee | C19: Nov Mailchip subscription | E19: 47.69 | G19: 47.69
C20: (Per Attached Summary, Receipts)
G25: =IF(SUM(A25)>0,SUM((A25*E25)-F25),"") -> 
D33: TOTAL DISCOUNT | F33: =IF(SUM(F19:F32)>0,SUM(F19:F32),"") -> 
A34: Payment by Check in US Dollars - Payable to AviaGlobal Group, LLC Payment by ACH - Account Number 375020979998, Routing Number 072000805 Payment by Domestic USA Wire in US Dollars Pay to the order of Bank of America, NA – AviaGlobal Group, LLC Account - 375020979998 - Routing Number 026009593 Bank of America, NA - 222 Broadway - New York, New York USA 10038 | F34: SUBTOTAL | G34: =IF(SUM(G19:G32)>0,SUM(G19:G32),"") -> 47.69
F35: SALES TAX
F36: TOTAL | G36: =IF(SUM(G34)>H340,SUM((G34*G35)+G34),"") -> 47.69
F38: =IF(SUM(F36)>0,SUM((F36*F37)+F36),"") -> 

Sheet AGGPERAPA Inv 001-22 15JAN22
A3: AviaGlobal Group, LLC
A4: 33210 North 12th Street | D4: INVOICE NO. | E4: 001-22
A5: Phoenix, Arizona USA 85085-7708 | D5: DATE | E5: 2022-01-15
A6: +1.623.229.3995 | C6: CUSTOMER ID | E6: PERAPA
A7: hal.adams@aviaglobalgroup.com
A9: TO | B9: David Rankin | D9: SHIP TO | E9: David Rankin
B10: Peregrine Avionics, LLC | E10: Peregrine Avionics, LLC
B11: 7385 S Peoria St Unit C4 | E11: 7385 S Peoria St Unit C4
B12: Egnlewood, CO USA 80112 | E12: Egnlewood, CO USA 80112
B13: 303-325-3873 | E13: 303-325-3873
A15: AGG Acct POC | B15: Customer PO Reference | C15: SHIPPING METHOD | D15: SHIPPING TERMS | E15: DELIVERY DATE | F15: PAYMENT TERMS | G15: DUE DATE
A16: Hal Adams | B16: AGG Mktg Agmt 04JUNE2021 | F16: Per Mktg Agmt | G16: 01 February 2022
A18: QTY | B18: ITEM # | C18: DESCRIPTION | E18: UNIT PRICE | F18: DISCOUNT | G18: LINE TOTAL
A19: 1 | C19: Monthly Retainer | E19: 1500 | G19: 1500
C20: PA www site sustainment | G20: =IF(SUM(A20)>0,SUM((A20*E20)-F20),"") -> 
D33: TOTAL DISCOUNT | F33: =IF(SUM(F19:F32)>0,SUM(F19:F32),"") -> 
A34: Payment by Check in US Dollars - Payable to AviaGlobal Group, LLC Payment by ACH - Account Number 375020979998, Routing Number 072000805 Payment by Domestic USA Wire in US Dollars Pay to the order of Bank of America, NA – AviaGlobal Group, LLC Account - 375020979998 - Routing Number 026009593 Bank of America, NA - 222 Broadway - New York, New York USA 10038 | F34: SUBTOTAL | G34: =IF(SUM(G19:G32)>0,SUM(G19:G32),"") -> 1500
F35: SALES TAX
F36: TOTAL | G36: =IF(SUM(G34)>H340,SUM((G34*G35)+G34),"") -> 1500
F38: =IF(SUM(F36)>0,SUM((F36*F37)+F36),"") -> 

Sheet AGGPERAPA Inv 002-22 15FEB22
A3: AviaGlobal Group, LLC
A4: 33210 North 12th Street | D4: INVOICE NO. | E4: 002-22
A5: Phoenix, Arizona USA 85085-7708 | D5: DATE | E5: 2021-02-15
A6: +1.623.229.3995 | C6: CUSTOMER ID | E6: PERAPA
A7: hal.adams@aviaglobalgroup.com
A9: TO | B9: David Rankin | D9: SHIP TO | E9: David Rankin
B10: Peregrine Avionics, LLC | E10: Peregrine Avionics, LLC
B11: 7385 S Peoria St Unit C4 | E11: 7385 S Peoria St Unit C4
B12: Egnlewood, CO USA 80112 | E12: Egnlewood, CO USA 80112
B13: 303-325-3873 | E13: 303-325-3873
A15: AGG Acct POC | B15: Customer PO Reference | C15: SHIPPING METHOD | D15: SHIPPING TERMS | E15: DELIVERY DATE | F15: PAYMENT TERMS | G15: DUE DATE
A16: Hal Adams | B16: AGG Mktg Agmt 12JAN2022 (Ammended) | F16: Per Mktg Agmt | G16: 01 March 2022
A18: QTY | B18: ITEM # | C18: DESCRIPTION | E18: UNIT PRICE | F18: DISCOUNT | G18: LINE TOTAL
A19: 1 | C19: Monthly Retainer | E19: 3000 | G19: =IF(SUM(A19)>J170,SUM((A19*E19)-F19),"") -> 3000
C20: PA www site Enhancement | G20: =IF(SUM(A20)>0,SUM((A20*E20)-F20),"") -> 
D33: TOTAL DISCOUNT | F33: =IF(SUM(F19:F32)>0,SUM(F19:F32),"") -> 
A34: Payment by Check in US Dollars - Payable to AviaGlobal Group, LLC Payment by ACH - Account Number 375020979998, Routing Number 072000805 Payment by Domestic USA Wire in US Dollars Pay to the order of Bank of America, NA – AviaGlobal Group, LLC Account - 375020979998 - Routing Number 026009593 Bank of America, NA - 222 Broadway - New York, New York USA 10038 | F34: SUBTOTAL | G34: =IF(SUM(G19:G32)>0,SUM(G19:G32),"") -> 3000
F35: SALES TAX
F36: TOTAL | G36: =IF(SUM(G34)>H340,SUM((G34*G35)+G34),"") -> 3000
F38: =IF(SUM(F36)>0,SUM((F36*F37)+F36),"") -> 

Sheet AGGPERAPA ERInv 003-22 15FEB22
A3: AviaGlobal Group, LLC
A4: 33210 North 12th Street | D4: INVOICE NO. | E4: 003-22 | K4: =UPPER(TEXT(E5,"DDMMMYY"))&"/ "&E6&" "&E4 -> 21FEB22/ PERAPA 003-22
A5: Phoenix, Arizona USA 85085-7708 | D5: DATE | E5: 2022-02-21
A6: +1.623.229.3995 | C6: CUSTOMER ID | E6: PERAPA
A7: hal.adams@aviaglobalgroup.com
A9: TO | B9: David Rankin | D9: SHIP TO | E9: David Rankin
B10: Peregrine Avionics, LLC | E10: Peregrine Avionics, LLC
B11: 7385 S Peoria St Unit C4 | E11: 7385 S Peoria St Unit C4
B12: Egnlewood, CO USA 80112 | E12: Egnlewood, CO USA 80112
B13: 303-325-3873 | E13: 303-325-3873
A15: AGG Acct POC | B15: Customer PO Reference | C15: SHIPPING METHOD | D15: SHIPPING TERMS | E15: DELIVERY DATE | F15: PAYMENT TERMS | G15: DUE DATE
A16: H. Adams | B16: AGG Mktg Agmt 12JAN2022 (Ammended) | F16: Per Mktg Agmt | G16: 21 Feb 2022
A18: QTY | B18: ITEM # | C18: DESCRIPTION | E18: UNIT PRICE | F18: DISCOUNT | G18: LINE TOTAL
A19: 1 | B19: Owner/ Operators Listing | C19: G150 Contact Listing | E19: 850 | G19: =E19-F19 -> 850
B20: (G150 C&C) | C20: (Per Attached Receipt)
G22: =IF(SUM(A22)>0,SUM((A22*E22)-F22),"") -> 
D30: TOTAL DISCOUNT | F30: =IF(SUM(F19:F29)>0,SUM(F19:F29),"") -> 
A31: Payment by Check in US Dollars - Payable to AviaGlobal Group, LLC Payment by ACH - Account Number 375020979998, Routing Number 072000805 Payment by Domestic USA Wire in US Dollars Pay to the order of Bank of America, NA – AviaGlobal Group, LLC Account - 375020979998 - Routing Number 026009593 Bank of America, NA - 222 Broadway - New York, New York USA 10038 | F31: SUBTOTAL | G31: =IF(SUM(G19:G29)>0,SUM(G19:G29),"") -> 850
F32: SALES TAX
F33: TOTAL | G33: =IF(SUM(G31)>H337,SUM((G31*G32)+G31),"") -> 850
F35: =IF(SUM(F33)>0,SUM((F33*F34)+F33),"") -> 

Sheet AGGPERAPA Inv 004-22 15MAR22
A3: AviaGlobal Group, LLC
A4: 33210 North 12th Street | D4: INVOICE NO. | E4: 004-22
A5: Phoenix, Arizona USA 85085-7708 | D5: DATE | E5: 2022-03-15
A6: +1.623.229.3995 | C6: CUSTOMER ID | E6: PERAPA
A7: hal.adams@aviaglobalgroup.com
A9: TO | B9: David Rankin | D9: SHIP TO | E9: David Rankin
B10: Peregrine Avionics, LLC | E10: Peregrine Avionics, LLC
B11: 7385 S Peoria St Unit C4 | E11: 7385 S Peoria St Unit C4
B12: Egnlewood, CO USA 80112 | E12: Egnlewood, CO USA 80112
B13: 303-325-3873 | E13: 303-325-3873
A15: AGG Acct POC | B15: Customer PO Reference | C15: SHIPPING METHOD | D15: SHIPPING TERMS | E15: DELIVERY DATE | F15: PAYMENT TERMS | G15: DUE DATE
A16: Hal Adams | B16: AGG Mktg Agmt 12JAN2022 (Ammended) | F16: Per Mktg Agmt | G16: 01 April 2022
A18: QTY | B18: ITEM # | C18: DESCRIPTION | E18: UNIT PRICE | F18: DISCOUNT | G18: LINE TOTAL
A19: 1 | C19: Monthly Retainer | E19: 3000 | G19: =IF(SUM(A19)>J170,SUM((A19*E19)-F19),"") -> 3000
C20: PA www site Enhancement | G20: =IF(SUM(A20)>0,SUM((A20*E20)-F20),"") -> 
D33: TOTAL DISCOUNT | F33: =IF(SUM(F19:F32)>0,SUM(F19:F32),"") -> 
A34: Payment by Check in US Dollars - Payable to AviaGlobal Group, LLC Payment by ACH - Account Number 375020979998, Routing Number 072000805 Payment by Domestic USA Wire in US Dollars Pay to the order of Bank of America, NA – AviaGlobal Group, LLC Account - 375020979998 - Routing Number 026009593 Bank of America, NA - 222 Broadway - New York, New York USA 10038 | F34: SUBTOTAL | G34: =IF(SUM(G19:G32)>0,SUM(G19:G32),"") -> 3000
F35: SALES TAX
F36: TOTAL | G36: =IF(SUM(G34)>H340,SUM((G34*G35)+G34),"") -> 3000
F38: =IF(SUM(F36)>0,SUM((F36*F37)+F36),"") -> 

Sheet AGGPERAPA ERInv 005-22 15MAR22
A3: AviaGlobal Group, LLC
A4: 33210 North 12th Street | D4: INVOICE NO. | E4: 005-22 | K4: =UPPER(TEXT(E5,"DDMMMYY"))&"/ "&E6&" "&E4 -> 15MAR22/ PERAPA 005-22
A5: Phoenix, Arizona USA 85085-7708 | D5: DATE | E5: 2022-03-15
A6: +1.623.229.3995 | C6: CUSTOMER ID | E6: PERAPA
A7: hal.adams@aviaglobalgroup.com
A9: TO | B9: David Rankin | D9: SHIP TO | E9: David Rankin
B10: Peregrine Avionics, LLC | E10: Peregrine Avionics, LLC
B11: 7385 S Peoria St Unit C4 | E11: 7385 S Peoria St Unit C4
B12: Egnlewood, CO USA 80112 | E12: Egnlewood, CO USA 80112
B13: 303-325-3873 | E13: 303-325-3873
A15: AGG Acct POC | B15: Customer PO Reference | C15: SHIPPING METHOD | D15: SHIPPING TERMS | E15: DELIVERY DATE | F15: PAYMENT TERMS | G15: DUE DATE
A16: H. Adams | B16: AGG Mktg Agmt 12JAN2022 (Ammended) | F16: Per Mktg Agmt | G16: 15 March 2022
A18: QTY | B18: ITEM # | C18: DESCRIPTION | E18: UNIT PRICE | F18: DISCOUNT | G18: LINE TOTAL
A19: 1 | B19: Mailchimp | C19: Mailchimp Dues/ Subscription | E19: 106.69 | G19: =E19-F19 -> 106.69
C20: (Per Attached Receipts)
G22: =IF(SUM(A22)>0,SUM((A22*E22)-F22),"") -> 
D30: TOTAL DISCOUNT | F30: =IF(SUM(F19:F29)>0,SUM(F19:F29),"") -> 
A31: Payment by Check in US Dollars - Payable to AviaGlobal Group, LLC Payment by ACH - Account Number 375020979998, Routing Number 072000805 Payment by Domestic USA Wire in US Dollars Pay to the order of Bank of America, NA – AviaGlobal Group, LLC Account - 375020979998 - Routing Number 026009593 Bank of America, NA - 222 Broadway - New York, New York USA 10038 | F31: SUBTOTAL | G31: =IF(SUM(G19:G29)>0,SUM(G19:G29),"") -> 106.69
F32: SALES TAX
F33: TOTAL | G33: =IF(SUM(G31)>H337,SUM((G31*G32)+G31),"") -> 106.69
F35: =IF(SUM(F33)>0,SUM((F33*F34)+F33),"") -> 

Sheet AGGPERAPA ERInv 006-22 23MAR22
A3: AviaGlobal Group, LLC
A4: 33210 North 12th Street | D4: INVOICE NO. | E4: 006-22 | K4: =UPPER(TEXT(E5,"DDMMMYY"))&"/ "&E6&" "&E4 -> 23MAR22/ PERAPA 006-22
A5: Phoenix, Arizona USA 85085-7708 | D5: DATE | E5: 2022-03-23
A6: +1.623.229.3995 | C6: CUSTOMER ID | E6: PERAPA
A7: hal.adams@aviaglobalgroup.com
A9: TO | B9: David Rankin | D9: SHIP TO | E9: David Rankin
B10: Peregrine Avionics, LLC | E10: Peregrine Avionics, LLC
B11: 7385 S Peoria St Unit C4 | E11: 7385 S Peoria St Unit C4
B12: Egnlewood, CO USA 80112 | E12: Egnlewood, CO USA 80112
B13: 303-325-3873 | E13: 303-325-3873
A15: AGG Acct POC | B15: Customer PO Reference | C15: SHIPPING METHOD | D15: SHIPPING TERMS | E15: DELIVERY DATE | F15: PAYMENT TERMS | G15: DUE DATE
A16: H. Adams | B16: AGG Mktg Agmt 12JAN2022 (Ammended) | F16: Per Mktg Agmt | G16: 23 March 2022
A18: QTY | B18: ITEM # | C18: DESCRIPTION | E18: UNIT PRICE | F18: DISCOUNT | G18: LINE TOTAL
A19: 1 | B19: Mailing Materials | C19: G150 STC Camgpaign Brochure Mailing | E19: 450.41 | G19: =E19-F19 -> 450.41
C20: (Per Attached ER & Receipts)
C21: 220323 LRCADS_BD ER 06-2022
G22: =IF(SUM(A22)>0,SUM((A22*E22)-F22),"") -> 
D30: TOTAL DISCOUNT | F30: =IF(SUM(F19:F29)>0,SUM(F19:F29),"") -> 
A31: Payment by Check in US Dollars - Payable to AviaGlobal Group, LLC Payment by ACH - Account Number 375020979998, Routing Number 072000805 Payment by Domestic USA Wire in US Dollars Pay to the order of Bank of America, NA – AviaGlobal Group, LLC Account - 375020979998 - Routing Number 026009593 Bank of America, NA - 222 Broadway - New York, New York USA 10038 | F31: SUBTOTAL | G31: =IF(SUM(G19:G29)>0,SUM(G19:G29),"") -> 450.41
F32: SALES TAX
F33: TOTAL | G33: =IF(SUM(G31)>H337,SUM((G31*G32)+G31),"") -> 450.41
F35: =IF(SUM(F33)>0,SUM((F33*F34)+F33),"") -> 

Sheet AGGPERAPA Inv 007-22 18MAR22
A3: AviaGlobal Group, LLC
A4: 33210 North 12th Street | D4: INVOICE NO. | E4: 007-22
A5: Phoenix, Arizona USA 85085-7708 | D5: DATE | E5: 2022-04-18
A6: +1.623.229.3995 | C6: CUSTOMER ID | E6: PERAPA
A7: hal.adams@aviaglobalgroup.com
A9: TO | B9: David Rankin | D9: SHIP TO | E9: David Rankin
B10: Peregrine Avionics, LLC | E10: Peregrine Avionics, LLC
B11: 7385 S Peoria St Unit C4 | E11: 7385 S Peoria St Unit C4
B12: Egnlewood, CO USA 80112 | E12: Egnlewood, CO USA 80112
B13: 303-325-3873 | E13: 303-325-3873
A15: AGG Acct POC | B15: Customer PO Reference | C15: SHIPPING METHOD | D15: SHIPPING TERMS | E15: DELIVERY DATE | F15: PAYMENT TERMS | G15: DUE DATE
A16: Hal Adams | B16: AGG Mktg Agmt 12JAN2022 (Ammended) | F16: Per Mktg Agmt | G16: 01 May 2022
A18: QTY | B18: ITEM # | C18: DESCRIPTION | E18: UNIT PRICE | F18: DISCOUNT | G18: LINE TOTAL
A19: 1 | C19: Monthly Retainer | E19: 3000 | G19: =IF(SUM(A19)>J170,SUM((A19*E19)-F19),"") -> 3000
C20: PA www site Enhancement | G20: =IF(SUM(A20)>0,SUM((A20*E20)-F20),"") -> 
D33: TOTAL DISCOUNT | F33: =IF(SUM(F19:F32)>0,SUM(F19:F32),"") -> 
A34: Payment by Check in US Dollars - Payable to AviaGlobal Group, LLC Payment by ACH - Account Number 375020979998, Routing Number 072000805 Payment by Domestic USA Wire in US Dollars Pay to the order of Bank of America, NA – AviaGlobal Group, LLC Account - 375020979998 - Routing Number 026009593 Bank of America, NA - 222 Broadway - New York, New York USA 10038 | F34: SUBTOTAL | G34: =IF(SUM(G19:G32)>0,SUM(G19:G32),"") -> 3000
F35: SALES TAX
F36: TOTAL | G36: =IF(SUM(G34)>H340,SUM((G34*G35)+G34),"") -> 3000
F38: =IF(SUM(F36)>0,SUM((F36*F37)+F36),"") -> 

Sheet AGGPERAPA Inv 008-22 26MAY22
A3: AviaGlobal Group, LLC
A4: 33210 North 12th Street | D4: INVOICE NO. | E4: 008-22
A5: Phoenix, Arizona USA 85085-7708 | D5: DATE | E5: 2022-05-26
A6: +1.623.229.3995 | C6: CUSTOMER ID | E6: PERAPA
A7: hal.adams@aviaglobalgroup.com
A9: TO | B9: David Rankin | D9: SHIP TO | E9: David Rankin
B10: Peregrine Avionics, LLC | E10: Peregrine Avionics, LLC
B11: 7385 S Peoria St Unit C4 | E11: 7385 S Peoria St Unit C4
B12: Egnlewood, CO USA 80112 | E12: Egnlewood, CO USA 80112
B13: 303-325-3873 | E13: 303-325-3873
A15: AGG Acct POC | B15: Customer PO Reference | C15: SHIPPING METHOD | D15: SHIPPING TERMS | E15: DELIVERY DATE | F15: PAYMENT TERMS | G15: DUE DATE
A16: Hal Adams | B16: AGG Mktg Agmt 12JAN2022 (Ammended) | F16: Per Mktg Agmt | G16: 01 June 2022
A18: QTY | B18: ITEM # | C18: DESCRIPTION | E18: UNIT PRICE | F18: DISCOUNT | G18: LINE TOTAL
A19: 1 | C19: Monthly Retainer | E19: 3000 | G19: =IF(SUM(A19)>J170,SUM((A19*E19)-F19),"") -> 3000
C20: PA www site Enhancement | G20: =IF(SUM(A20)>0,SUM((A20*E20)-F20),"") -> 
D33: TOTAL DISCOUNT | F33: =IF(SUM(F19:F32)>0,SUM(F19:F32),"") -> 
A34: Payment by Check in US Dollars - Payable to AviaGlobal Group, LLC Payment by ACH - Account Number 375020979998, Routing Number 072000805 Payment by Domestic USA Wire in US Dollars Pay to the order of Bank of America, NA – AviaGlobal Group, LLC Account - 375020979998 - Routing Number 026009593 Bank of America, NA - 222 Broadway - New York, New York USA 10038 | F34: SUBTOTAL | G34: =IF(SUM(G19:G32)>0,SUM(G19:G32),"") -> 3000
F35: SALES TAX
F36: TOTAL | G36: =IF(SUM(G34)>H340,SUM((G34*G35)+G34),"") -> 3000
F38: =IF(SUM(F36)>0,SUM((F36*F37)+F36),"") -> 

Sheet AGGPERAPA Inv 009-22 16JUN22
A3: AviaGlobal Group, LLC
A4: 33210 North 12th Street | D4: INVOICE NO. | E4: 009-22
A5: Phoenix, Arizona USA 85085-7708 | D5: DATE | E5: 2022-06-16
A6: +1.623.229.3995 | C6: CUSTOMER ID | E6: PERAPA
A7: hal.adams@aviaglobalgroup.com
A9: TO | B9: David Rankin | D9: SHIP TO | E9: David Rankin
B10: Peregrine Avionics, LLC | E10: Peregrine Avionics, LLC
B11: 7385 S Peoria St Unit C4 | E11: 7385 S Peoria St Unit C4
B12: Egnlewood, CO USA 80112 | E12: Egnlewood, CO USA 80112
B13: 303-325-3873 | E13: 303-325-3873
A15: AGG Acct POC | B15: Customer PO Reference | C15: SHIPPING METHOD | D15: SHIPPING TERMS | E15: DELIVERY DATE | F15: PAYMENT TERMS | G15: DUE DATE
A16: Hal Adams | B16: AGG Mktg Agmt 12JAN2022 (Ammended) | F16: Per Mktg Agmt | G16: 01 July 2022
A18: QTY | B18: ITEM # | C18: DESCRIPTION | E18: UNIT PRICE | F18: DISCOUNT | G18: LINE TOTAL
A19: 1 | C19: Monthly Retainer | E19: 3000 | G19: =IF(SUM(A19)>J170,SUM((A19*E19)-F19),"") -> 3000
C20: PA www site Enhancement | G20: =IF(SUM(A20)>0,SUM((A20*E20)-F20),"") -> 
D33: TOTAL DISCOUNT | F33: =IF(SUM(F19:F32)>0,SUM(F19:F32),"") -> 
A34: Payment by Check in US Dollars - Payable to AviaGlobal Group, LLC Payment by ACH - Account Number 375020979998, Routing Number 072000805 Payment by Domestic USA Wire in US Dollars Pay to the order of Bank of America, NA – AviaGlobal Group, LLC Account - 375020979998 - Routing Number 026009593 Bank of America, NA - 222 Broadway - New York, New York USA 10038 | F34: SUBTOTAL | G34: =IF(SUM(G19:G32)>0,SUM(G19:G32),"") -> 3000
F35: SALES TAX
F36: TOTAL | G36: =IF(SUM(G34)>H340,SUM((G34*G35)+G34),"") -> 3000
F38: =IF(SUM(F36)>0,SUM((F36*F37)+F36),"") -> 

Sheet AGGPERAPA Inv 010-22 15JUL22
A3: AviaGlobal Group, LLC | M3: 2022-07-05
A4: 33210 North 12th Street | D4: INVOICE NO. | E4: 010-22
A5: Phoenix, Arizona USA 85085-7708 | D5: DATE | E5: 2022-07-15
A6: +1.623.229.3995 | C6: CUSTOMER ID | E6: PERAPA
A7: hal.adams@aviaglobalgroup.com
A9: TO | B9: David Rankin | D9: SHIP TO | E9: David Rankin
B10: Peregrine Avionics, LLC | E10: Peregrine Avionics, LLC
B11: 7385 S Peoria St Unit C4 | E11: 7385 S Peoria St Unit C4
B12: Egnlewood, CO USA 80112 | E12: Egnlewood, CO USA 80112
B13: 303-325-3873 | E13: 303-325-3873
A15: AGG Acct POC | B15: Customer PO Reference | C15: SHIPPING METHOD | D15: SHIPPING TERMS | E15: DELIVERY DATE | F15: PAYMENT TERMS | G15: DUE DATE
A16: Hal Adams | B16: AGG Mktg Agmt 12JAN2022 (Ammended) | F16: Per Mktg Agmt | G16: 01 August 2022
A18: QTY | B18: ITEM # | C18: DESCRIPTION | E18: UNIT PRICE | F18: DISCOUNT | G18: LINE TOTAL
A19: 1 | C19: Monthly Retainer | E19: 3000 | G19: =IF(SUM(A19)>J167,SUM((A19*E19)-F19),"") -> 3000
C20: PA www site Enhancement | G20: =IF(SUM(A20)>0,SUM((A20*E20)-F20),"") -> 
C22: NOTE: This last services invoice per the AGG/ Peregrine Mktg Agmt of 12JAN2022
D30: TOTAL DISCOUNT | F30: =IF(SUM(F19:F29)>0,SUM(F19:F29),"") -> 
A31: Payment by Check in US Dollars - Payable to AviaGlobal Group, LLC Payment by ACH - Account Number 375020979998, Routing Number 072000805 Payment by Domestic USA Wire in US Dollars Pay to the order of Bank of America, NA – AviaGlobal Group, LLC Account - 375020979998 - Routing Number 026009593 Bank of America, NA - 222 Broadway - New York, New York USA 10038 | F31: SUBTOTAL | G31: =IF(SUM(G19:G29)>0,SUM(G19:G29),"") -> 3000
F32: SALES TAX
F33: TOTAL | G33: =IF(SUM(G31)>H337,SUM((G31*G32)+G31),"") -> 3000
F35: =IF(SUM(F33)>0,SUM((F33*F34)+F33),"") -> 

Sheet AGGPERAPA ERInv 011-22 15JUL22
A3: AviaGlobal Group, LLC
A4: 33210 North 12th Street | D4: INVOICE NO. | E4: 011-22 | K4: =UPPER(TEXT(E5,"DDMMMYY"))&"/ "&E6&" "&E4 -> 15JUL22/ PERAPA 011-22
A5: Phoenix, Arizona USA 85085-7708 | D5: DATE | E5: 2022-07-15
A6: +1.623.229.3995 | C6: CUSTOMER ID | E6: PERAPA
A7: hal.adams@aviaglobalgroup.com
A9: TO | B9: David Rankin | D9: SHIP TO | E9: David Rankin
B10: Peregrine Avionics, LLC | E10: Peregrine Avionics, LLC
B11: 7385 S Peoria St Unit C4 | E11: 7385 S Peoria St Unit C4
B12: Egnlewood, CO USA 80112 | E12: Egnlewood, CO USA 80112
B13: 303-325-3873 | E13: 303-325-3873
A15: AGG Acct POC | B15: Customer PO Reference | C15: SHIPPING METHOD | D15: SHIPPING TERMS | E15: DELIVERY DATE | F15: PAYMENT TERMS | G15: DUE DATE
A16: H. Adams | B16: AGG Mktg Agmt 12JAN2022 (Ammended) | F16: Per Mktg Agmt | G16: 15 JULY 2022
A18: QTY | B18: ITEM # | C18: DESCRIPTION | E18: UNIT PRICE | F18: DISCOUNT | G18: LINE TOTAL
A19: 1 | B19: Online Subscriptions, WWW Support | C19: Online Subscriptions, WWW Support per attached ER | E19: 194.99 | G19: =E19-F19 -> 194.99
C20: (Per Attached ER & Receipts)
C21: 220624 LRCADS_BD ER 09-2022
G22: =IF(SUM(A22)>0,SUM((A22*E22)-F22),"") -> 
D30: TOTAL DISCOUNT | F30: =IF(SUM(F19:F29)>0,SUM(F19:F29),"") -> 
A31: Payment by Check in US Dollars - Payable to AviaGlobal Group, LLC Payment by ACH - Account Number 375020979998, Routing Number 072000805 Payment by Domestic USA Wire in US Dollars Pay to the order of Bank of America, NA – AviaGlobal Group, LLC Account - 375020979998 - Routing Number 026009593 Bank of America, NA - 222 Broadway - New York, New York USA 10038 | F31: SUBTOTAL | G31: =IF(SUM(G19:G29)>0,SUM(G19:G29),"") -> 194.99
F32: SALES TAX
F33: TOTAL | G33: =IF(SUM(G31)>H337,SUM((G31*G32)+G31),"") -> 194.99
F35: =IF(SUM(F33)>0,SUM((F33*F34)+F33),"") -> 

Sheet AGGPERAPA Inv 012-22 15AUG22
A3: AviaGlobal Group, LLC | M3: 2022-07-05
A4: 33210 North 12th Street | D4: INVOICE NO. | E4: 012-22
A5: Phoenix, Arizona USA 85085-7708 | D5: DATE | E5: 2022-09-01
A6: +1.623.229.3995 | C6: CUSTOMER ID | E6: PERAPA
A7: hal.adams@aviaglobalgroup.com
A9: TO | B9: David Rankin | D9: SHIP TO | E9: David Rankin
B10: Peregrine Avionics, LLC | E10: Peregrine Avionics, LLC
B11: 7385 S Peoria St Unit C4 | E11: 7385 S Peoria St Unit C4
B12: Egnlewood, CO USA 80112 | E12: Egnlewood, CO USA 80112
B13: 303-325-3873 | E13: 303-325-3873
A15: AGG Acct POC | B15: Customer PO Reference | C15: SHIPPING METHOD | D15: SHIPPING TERMS | E15: DELIVERY DATE | F15: PAYMENT TERMS | G15: DUE DATE
A16: Hal Adams | B16: AGG WWW Support for Peregrine | F16: As Invoiced | G16: 01 September 2022
A18: QTY | B18: ITEM # | C18: DESCRIPTION | E18: UNIT PRICE | F18: DISCOUNT | G18: LINE TOTAL
A19: 1 | C19: Services | E19: 2000 | G19: =IF(SUM(A19)>J167,SUM((A19*E19)-F19),"") -> 2000
C20: PA www site Maintenance | G20: =IF(SUM(A20)>0,SUM((A20*E20)-F20),"") -> 
C22: NOTE: Month-to-month invoice for Pereginre www site maint.
D30: TOTAL DISCOUNT | F30: =IF(SUM(F19:F29)>0,SUM(F19:F29),"") -> 
A31: Payment by Check in US Dollars - Payable to AviaGlobal Group, LLC Payment by ACH - Account Number 375020979998, Routing Number 072000805 Payment by Domestic USA Wire in US Dollars Pay to the order of Bank of America, NA – AviaGlobal Group, LLC Account - 375020979998 - Routing Number 026009593 Bank of America, NA - 222 Broadway - New York, New York USA 10038 | F31: SUBTOTAL | G31: =IF(SUM(G19:G29)>0,SUM(G19:G29),"") -> 2000
F32: SALES TAX
F33: TOTAL | G33: =IF(SUM(G31)>H337,SUM((G31*G32)+G31),"") -> 2000
F35: =IF(SUM(F33)>0,SUM((F33*F34)+F33),"") -> 

Sheet AGGPERAPA Inv 013-22 15SEP22
A3: AviaGlobal Group, LLC | M3: 2022-07-05
A4: 33210 North 12th Street | D4: INVOICE NO. | E4: 013-22
A5: Phoenix, Arizona USA 85085-7708 | D5: DATE | E5: 2022-10-01
A6: +1.623.229.3995 | C6: CUSTOMER ID | E6: PERAPA
A7: hal.adams@aviaglobalgroup.com
A9: TO | B9: David Rankin | D9: SHIP TO | E9: David Rankin
B10: Peregrine Avionics, LLC | E10: Peregrine Avionics, LLC
B11: 7385 S Peoria St Unit C4 | E11: 7385 S Peoria St Unit C4
B12: Egnlewood, CO USA 80112 | E12: Egnlewood, CO USA 80112
B13: 303-325-3873 | E13: 303-325-3873
A15: AGG Acct POC | B15: Customer PO Reference | C15: SHIPPING METHOD | D15: SHIPPING TERMS | E15: DELIVERY DATE | F15: PAYMENT TERMS | G15: DUE DATE
A16: Hal Adams | B16: AGG WWW Support for Peregrine | F16: As Invoiced | G16: 01 October 2022
A18: QTY | B18: ITEM # | C18: DESCRIPTION | E18: UNIT PRICE | F18: DISCOUNT | G18: LINE TOTAL
A19: 1 | C19: Services | E19: 2000 | G19: =IF(SUM(A19)>J167,SUM((A19*E19)-F19),"") -> 2000
C20: PA www site Maintenance | G20: =IF(SUM(A20)>0,SUM((A20*E20)-F20),"") -> 
C22: NOTE: Month-to-month invoice for Pereginre www site maint.
D30: TOTAL DISCOUNT | F30: =IF(SUM(F19:F29)>0,SUM(F19:F29),"") -> 
A31: Payment by Check in US Dollars - Payable to AviaGlobal Group, LLC Payment by ACH - Account Number 375020979998, Routing Number 072000805 Payment by Domestic USA Wire in US Dollars Pay to the order of Bank of America, NA – AviaGlobal Group, LLC Account - 375020979998 - Routing Number 026009593 Bank of America, NA - 222 Broadway - New York, New York USA 10038 | F31: SUBTOTAL | G31: =IF(SUM(G19:G29)>0,SUM(G19:G29),"") -> 2000
F32: SALES TAX
F33: TOTAL | G33: =IF(SUM(G31)>H337,SUM((G31*G32)+G31),"") -> 2000
F35: =IF(SUM(F33)>0,SUM((F33*F34)+F33),"") -> 

Sheet AGGPERAPA Inv 014-22 15OCT22
A3: AviaGlobal Group, LLC | M3: 2022-07-05
A4: 33210 North 12th Street | D4: INVOICE NO. | E4: 014-22
A5: Phoenix, Arizona USA 85085-7708 | D5: DATE | E5: 2022-11-01
A6: +1.623.229.3995 | C6: CUSTOMER ID | E6: PERAPA
A7: hal.adams@aviaglobalgroup.com
A9: TO | B9: David Rankin | D9: SHIP TO | E9: David Rankin
B10: Peregrine Avionics, LLC | E10: Peregrine Avionics, LLC
B11: 7385 S Peoria St Unit C4 | E11: 7385 S Peoria St Unit C4
B12: Egnlewood, CO USA 80112 | E12: Egnlewood, CO USA 80112
B13: 303-325-3873 | E13: 303-325-3873
A15: AGG Acct POC | B15: Customer PO Reference | C15: SHIPPING METHOD | D15: SHIPPING TERMS | E15: DELIVERY DATE | F15: PAYMENT TERMS | G15: DUE DATE
A16: Hal Adams | B16: AGG WWW Support for Peregrine | F16: As Invoiced | G16: 01 November 2022
A18: QTY | B18: ITEM # | C18: DESCRIPTION | E18: UNIT PRICE | F18: DISCOUNT | G18: LINE TOTAL
A19: 1 | C19: Services | E19: 2000 | G19: =IF(SUM(A19)>J167,SUM((A19*E19)-F19),"") -> 2000
C20: PA www site Maintenance | G20: =IF(SUM(A20)>0,SUM((A20*E20)-F20),"") -> 
C22: NOTE: Month-to-month invoice for Pereginre www site maint.
D30: TOTAL DISCOUNT | F30: =IF(SUM(F19:F29)>0,SUM(F19:F29),"") -> 
A31: Payment by Check in US Dollars - Payable to AviaGlobal Group, LLC Payment by ACH - Account Number 375020979998, Routing Number 072000805 Payment by Domestic USA Wire in US Dollars Pay to the order of Bank of America, NA – AviaGlobal Group, LLC Account - 375020979998 - Routing Number 026009593 Bank of America, NA - 222 Broadway - New York, New York USA 10038 | F31: SUBTOTAL | G31: =IF(SUM(G19:G29)>0,SUM(G19:G29),"") -> 2000
F32: SALES TAX
F33: TOTAL | G33: =IF(SUM(G31)>H337,SUM((G31*G32)+G31),"") -> 2000
F35: =IF(SUM(F33)>0,SUM((F33*F34)+F33),"") -> 

Sheet AGGPERAPA ERInv 015-22 10NOV22
A3: AviaGlobal Group, LLC
A4: 33210 North 12th Street | D4: INVOICE NO. | E4: 015-22 | K4: =UPPER(TEXT(E5,"DDMMMYY"))&"/ "&E6&" "&E4 -> 10NOV22/ PERAPA 015-22
A5: Phoenix, Arizona USA 85085-7708 | D5: DATE | E5: 2022-11-10
A6: +1.623.229.3995 | C6: CUSTOMER ID | E6: PERAPA
A7: hal.adams@aviaglobalgroup.com
A9: TO | B9: David Rankin | D9: SHIP TO | E9: David Rankin
B10: Peregrine Avionics, LLC | E10: Peregrine Avionics, LLC
B11: 7385 S Peoria St Unit C4 | E11: 7385 S Peoria St Unit C4
B12: Egnlewood, CO USA 80112 | E12: Egnlewood, CO USA 80112
B13: 303-325-3873 | E13: 303-325-3873
A15: AGG Acct POC | B15: Customer PO Reference | C15: SHIPPING METHOD | D15: SHIPPING TERMS | E15: DELIVERY DATE | F15: PAYMENT TERMS | G15: DUE DATE
A16: H. Adams | B16: AGG Mktg Agmt 12JAN2022 (Ammended) | F16: Per Mktg Agmt | G16: 10 November 2022
A18: QTY | B18: ITEM # | C18: DESCRIPTION | E18: UNIT PRICE | F18: DISCOUNT | G18: LINE TOTAL
A19: 1 | B19: Online Subscriptions, WWW Support | C19: Online Subscriptions, WWW Support per attached ER | E19: 236 | G19: =E19-F19 -> 236
C20: (Per Attached ER & Receipts)
C21: 221020 LRC ADS_BG ER Peregrine - LRC ADS_BG ER AGG Billable 03-2022
G22: =IF(SUM(A22)>0,SUM((A22*E22)-F22),"") -> 
D29: TOTAL DISCOUNT | F29: =IF(SUM(F19:F28)>0,SUM(F19:F28),"") -> 
A30: Payment by Check in US Dollars - Payable to AviaGlobal Group, LLC Payment by ACH - Account Number 375020979998, Routing Number 072000805 Payment by Domestic USA Wire in US Dollars Pay to the order of Bank of America, NA – AviaGlobal Group, LLC Account - 375020979998 - Routing Number 026009593 Bank of America, NA - 222 Broadway - New York, New York USA 10038 | F30: SUBTOTAL | G30: =IF(SUM(G19:G28)>0,SUM(G19:G28),"") -> 236
F31: SALES TAX
F32: TOTAL | G32: =IF(SUM(G30)>H336,SUM((G30*G31)+G30),"") -> 236
F34: =IF(SUM(F32)>0,SUM((F32*F33)+F32),"") -> 

Sheet AGGPERAPA Inv 016-22 02DEC22
A3: AviaGlobal Group, LLC
A4: 33210 North 12th Street | D4: INVOICE NO. | E4: 016-22
A5: Phoenix, Arizona USA 85085-7708 | D5: DATE | E5: 2022-12-02
A6: +1.623.229.3995 | C6: CUSTOMER ID | E6: PERAPA
A7: hal.adams@aviaglobalgroup.com
A9: TO | B9: David Rankin | D9: SHIP TO | E9: David Rankin
B10: Peregrine Avionics, LLC | E10: Peregrine Avionics, LLC
B11: 7385 S Peoria St Unit C4 | E11: 7385 S Peoria St Unit C4
B12: Egnlewood, CO USA 80112 | E12: Egnlewood, CO USA 80112
B13: 303-325-3873 | E13: 303-325-3873
A15: AGG Acct POC | B15: Customer PO Reference | C15: SHIPPING METHOD | D15: SHIPPING TERMS | E15: DELIVERY DATE | F15: PAYMENT TERMS | G15: DUE DATE
A16: Hal Adams | B16: AGG WWW Support for Peregrine | F16: As Invoiced | G16: 01 December 2022
A18: QTY | B18: ITEM # | C18: DESCRIPTION | E18: UNIT PRICE | F18: DISCOUNT | G18: LINE TOTAL
A19: 1 | C19: Nov 2022 Services | E19: 2000 | G19: =IF(SUM(A19)>J167,SUM((A19*E19)-F19),"") -> 2000
C20: PA www site Maintenance | G20: =IF(SUM(A20)>0,SUM((A20*E20)-F20),"") -> 
C22: NOTE: Month-to-month invoice for Pereginre www site maint.
D30: TOTAL DISCOUNT | F30: =IF(SUM(F19:F29)>0,SUM(F19:F29),"") -> 
A31: Payment by Check in US Dollars - Payable to AviaGlobal Group, LLC Payment by ACH - Account Number 375020979998, Routing Number 072000805 Payment by Domestic USA Wire in US Dollars Pay to the order of Bank of America, NA – AviaGlobal Group, LLC Account - 375020979998 - Routing Number 026009593 Bank of America, NA - 222 Broadway - New York, New York USA 10038 | F31: SUBTOTAL | G31: =IF(SUM(G19:G29)>0,SUM(G19:G29),"") -> 2000
F32: SALES TAX
F33: TOTAL | G33: =IF(SUM(G31)>H337,SUM((G31*G32)+G31),"") -> 2000
F35: =IF(SUM(F33)>0,SUM((F33*F34)+F33),"") -> 

Sheet AGGPERAPA ERInv 017-22 02DEC22
A3: AviaGlobal Group, LLC
A4: 33210 North 12th Street | D4: INVOICE NO. | E4: 017-22 | K4: =UPPER(TEXT(E5,"DDMMMYY"))&"/ "&E6&" "&E4 -> 02DEC22/ PERAPA 017-22
A5: Phoenix, Arizona USA 85085-7708 | D5: DATE | E5: 2022-12-02
A6: +1.623.229.3995 | C6: CUSTOMER ID | E6: PERAPA
A7: hal.adams@aviaglobalgroup.com
A9: TO | B9: David Rankin | D9: SHIP TO | E9: David Rankin
B10: Peregrine Avionics, LLC | E10: Peregrine Avionics, LLC
B11: 7385 S Peoria St Unit C4 | E11: 7385 S Peoria St Unit C4
B12: Egnlewood, CO USA 80112 | E12: Egnlewood, CO USA 80112
B13: 303-325-3873 | E13: 303-325-3873
A15: AGG Acct POC | B15: Customer PO Reference | C15: SHIPPING METHOD | D15: SHIPPING TERMS | E15: DELIVERY DATE | F15: PAYMENT TERMS | G15: DUE DATE
A16: H. Adams | B16: AGG Mktg Agmt 12JAN2022 (Ammended) | F16: Per Mktg Agmt | G16: 02 December2022
A18: QTY | B18: ITEM # | C18: DESCRIPTION | E18: UNIT PRICE | F18: DISCOUNT | G18: LINE TOTAL
A19: 1 | B19: Online Subscriptions, WWW Support | C19: Online Subscriptions, WWW Support per attached ER | E19: 59 | G19: =E19-F19 -> 59
C20: (Per Attached ER & Receipts)
C21: 221201 LRC ADS_BG ER Peregrine - LRC ADS_BG ER AGG Billable 14-2022
G22: =IF(SUM(A22)>0,SUM((A22*E22)-F22),"") -> 
D29: TOTAL DISCOUNT | F29: =IF(SUM(F19:F28)>0,SUM(F19:F28),"") -> 
A30: Payment by Check in US Dollars - Payable to AviaGlobal Group, LLC Payment by ACH - Account Number 375020979998, Routing Number 072000805 Payment by Domestic USA Wire in US Dollars Pay to the order of Bank of America, NA – AviaGlobal Group, LLC Account - 375020979998 - Routing Number 026009593 Bank of America, NA - 222 Broadway - New York, New York USA 10038 | F30: SUBTOTAL | G30: =IF(SUM(G19:G28)>0,SUM(G19:G28),"") -> 59
F31: SALES TAX
F32: TOTAL | G32: =IF(SUM(G30)>H336,SUM((G30*G31)+G30),"") -> 59
F34: =IF(SUM(F32)>0,SUM((F32*F33)+F32),"") -> 

Sheet AGGPERAPA ERInv 018-22 02DEC22
A3: AviaGlobal Group, LLC
A4: 33210 North 12th Street | D4: INVOICE NO. | E4: 018-22 | K4: =UPPER(TEXT(E5,"DDMMMYY"))&"/ "&E6&" "&E4 -> 02DEC22/ PERAPA 018-22
A5: Phoenix, Arizona USA 85085-7708 | D5: DATE | E5: 2022-12-02
A6: +1.623.229.3995 | C6: CUSTOMER ID | E6: PERAPA
A7: hal.adams@aviaglobalgroup.com
A9: TO | B9: David Rankin | D9: SHIP TO | E9: David Rankin
B10: Peregrine Avionics, LLC | E10: Peregrine Avionics, LLC
B11: 7385 S Peoria St Unit C4 | E11: 7385 S Peoria St Unit C4
B12: Egnlewood, CO USA 80112 | E12: Egnlewood, CO USA 80112
B13: 303-325-3873 | E13: 303-325-3873
A15: AGG Acct POC | B15: Customer PO Reference | C15: SHIPPING METHOD | D15: SHIPPING TERMS | E15: DELIVERY DATE | F15: PAYMENT TERMS | G15: DUE DATE
A16: H. Adams | B16: AGG Mktg Agmt 12JAN2022 (Ammended) | F16: Per Mktg Agmt | G16: 02 December2022
A18: QTY | B18: ITEM # | C18: DESCRIPTION | E18: UNIT PRICE | F18: DISCOUNT | G18: LINE TOTAL
A19: 1 | B19: Online Subscriptions, WWW Support | C19: Online Subscriptions, WWW Support per attached ER | E19: 768.61 | G19: =E19-F19 -> 768.61
C20: (Per Attached ER & Receipts)
C21: 221201 FWC ER Peregrine Billable EOY-2022
G22: =IF(SUM(A22)>0,SUM((A22*E22)-F22),"") -> 
D29: TOTAL DISCOUNT | F29: =IF(SUM(F19:F28)>0,SUM(F19:F28),"") -> 
A30: Payment by Check in US Dollars - Payable to AviaGlobal Group, LLC Payment by ACH - Account Number 375020979998, Routing Number 072000805 Payment by Domestic USA Wire in US Dollars Pay to the order of Bank of America, NA – AviaGlobal Group, LLC Account - 375020979998 - Routing Number 026009593 Bank of America, NA - 222 Broadway - New York, New York USA 10038 | F30: SUBTOTAL | G30: =IF(SUM(G19:G28)>0,SUM(G19:G28),"") -> 768.61
F31: SALES TAX
F32: TOTAL | G32: =IF(SUM(G30)>H336,SUM((G30*G31)+G30),"") -> 768.61
F34: =IF(SUM(F32)>0,SUM((F32*F33)+F32),"") -> 

Sheet AGGPERAPA Inv 019-22 15DEC22
A3: AviaGlobal Group, LLC
A4: 33210 North 12th Street | D4: INVOICE NO. | E4: 019-22 | K4: =UPPER(TEXT(E5,"DDMMMYY"))&"/ "&E6&" "&E4 -> 15DEC22/ PERAPA 019-22
A5: Phoenix, Arizona USA 85085-7708 | D5: DATE | E5: 2022-12-15
A6: +1.623.229.3995 | C6: CUSTOMER ID | E6: PERAPA
A7: hal.adams@aviaglobalgroup.com
A9: TO | B9: David Rankin | D9: SHIP TO | E9: David Rankin
B10: Peregrine Avionics, LLC | E10: Peregrine Avionics, LLC
B11: 7385 S Peoria St Unit C4 | E11: 7385 S Peoria St Unit C4
B12: Egnlewood, CO USA 80112 | E12: Egnlewood, CO USA 80112
B13: 303-325-3873 | E13: 303-325-3873
A15: AGG Acct POC | B15: Customer PO Reference | C15: SHIPPING METHOD | D15: SHIPPING TERMS | E15: DELIVERY DATE | F15: PAYMENT TERMS | G15: DUE DATE
A16: H. Adams | B16: AGG Mktg Agmt 12JAN2022 (Ammended) | F16: Per Mktg Agmt | G16: 01 January 2023
A18: QTY | B18: ITEM # | C18: DESCRIPTION | E18: UNIT PRICE | F18: DISCOUNT | G18: LINE TOTAL
A19: 1 | B19: Online Subscriptions, WWW Support | C19: Online Subscriptions, WWW Support per attached ER | E19: 2000 | G19: =E19-F19 -> 2000
C20: (Per Attached ER & Receipts)
C21: 221201 FWC ER Peregrine Billable EOY-2022
G22: =IF(SUM(A22)>0,SUM((A22*E22)-F22),"") -> 
D29: TOTAL DISCOUNT | F29: =IF(SUM(F19:F28)>0,SUM(F19:F28),"") -> 
A30: Payment by Check in US Dollars - Payable to AviaGlobal Group, LLC Payment by ACH - Account Number 375020979998, Routing Number 072000805 Payment by Domestic USA Wire in US Dollars Pay to the order of Bank of America, NA – AviaGlobal Group, LLC Account - 375020979998 - Routing Number 026009593 Bank of America, NA - 222 Broadway - New York, New York USA 10038 | F30: SUBTOTAL | G30: =IF(SUM(G19:G28)>0,SUM(G19:G28),"") -> 2000
F31: SALES TAX
F32: TOTAL | G32: =IF(SUM(G30)>H336,SUM((G30*G31)+G30),"") -> 2000
F34: =IF(SUM(F32)>0,SUM((F32*F33)+F32),"") -> 

Sheet AGGPERAPA ER Inv 020-22 26DEC22
A3: AviaGlobal Group, LLC
A4: 33210 North 12th Street | D4: INVOICE NO. | E4: 020-22 | K4: =UPPER(TEXT(E5,"DDMMMYY"))&"/ "&E6&" "&E4 -> 26DEC22/ PERAPA 020-22
A5: Phoenix, Arizona USA 85085-7708 | D5: DATE | E5: 2022-12-26
A6: +1.623.229.3995 | C6: CUSTOMER ID | E6: PERAPA
A7: hal.adams@aviaglobalgroup.com
A9: TO | B9: David Rankin | D9: SHIP TO | E9: David Rankin
B10: Peregrine Avionics, LLC | E10: Peregrine Avionics, LLC
B11: 7385 S Peoria St Unit C4 | E11: 7385 S Peoria St Unit C4
B12: Egnlewood, CO USA 80112 | E12: Egnlewood, CO USA 80112
B13: 303-325-3873 | E13: 303-325-3873
A15: AGG Acct POC | B15: Customer PO Reference | C15: SHIPPING METHOD | D15: SHIPPING TERMS | E15: DELIVERY DATE | F15: PAYMENT TERMS | G15: DUE DATE
A16: H. Adams | B16: AGG Mktg Agmt 12JAN2022 (Ammended) | F16: Per Mktg Agmt | G16: 02 December2022
A18: QTY | B18: ITEM # | C18: DESCRIPTION | E18: UNIT PRICE | F18: DISCOUNT | G18: LINE TOTAL
A19: 1 | B19: Online Subscriptions, WWW Support | C19: Online Subscriptions, WWW Support per attached ER | E19: 441.97 | G19: =E19-F19 -> 441.97
C20: (Per Attached ER & Receipts)
C21: 221221 FWC ER Peregrine Billable 1Q22
G22: =IF(SUM(A22)>0,SUM((A22*E22)-F22),"") -> 
D29: TOTAL DISCOUNT | F29: =IF(SUM(F19:F28)>0,SUM(F19:F28),"") -> 
A30: Payment by Check in US Dollars - Payable to AviaGlobal Group, LLC Payment by ACH - Account Number 375020979998, Routing Number 072000805 Payment by Domestic USA Wire in US Dollars Pay to the order of Bank of America, NA – AviaGlobal Group, LLC Account - 375020979998 - Routing Number 026009593 Bank of America, NA - 222 Broadway - New York, New York USA 10038 | F30: SUBTOTAL | G30: =IF(SUM(G19:G28)>0,SUM(G19:G28),"") -> 441.97
F31: SALES TAX
F32: TOTAL | G32: =IF(SUM(G30)>H336,SUM((G30*G31)+G30),"") -> 441.97
F34: =IF(SUM(F32)>0,SUM((F32*F33)+F32),"") -> 

Sheet AGGPERAPA Inv 001-23 15Jan23
A3: AviaGlobal Group, LLC
A4: 33210 N 12th St | D4: INVOICE NO. | E4: =LEFT(SUBSTITUTE(RIGHT(CELL("filename"),LEN(CELL("filename"))-FIND("]",CELL("filename"))),"AGG"&$E$6&" Inv ",""),SEARCH(" ",SUBSTITUTE(RIGHT(CELL("filename"),LEN(CELL("filename"))-FIND("]",CELL("filename"))),"AGG"&$E$6&" Inv ",""))-1) -> 006-24 | K4: =UPPER(TEXT(E5,"DDMMMYY"))&"/ "&E6&" "&E4 -> 15JUN24/ PERAPA 006-24
A5: Phoenix, Arizona USA 85085-7708 | D5: DATE | E5: =DATEVALUE(SUBSTITUTE(RIGHT(CELL("filename"),LEN(CELL("filename"))-FIND("]",CELL("filename"))),"AGG"&$E$6&" Inv "&$E$4&" ","")) -> 2024-06-15
A6: +1.623.229.3995 | C6: CUSTOMER ID | E6: PERAPA
A7: lee.carlson@aviaglobalgroup.com
A9: TO | B9: David Rankin | D9: SHIP TO | E9: David Rankin
B10: Peregrine Avionics, LLC | E10: Peregrine Avionics, LLC
B11: 7385 S Peoria St Unit C4 | E11: 7385 S Peoria St Unit C4
B12: Englewood, CO USA 80112 | E12: Englewood, CO USA 80112
B13: 303-325-3873 | E13: 303-325-3873
A15: AGG Acct POC | B15: Customer PO Reference | C15: SHIPPING METHOD | D15: SHIPPING TERMS | E15: DELIVERY DATE | F15: PAYMENT TERMS | G15: DUE DATE
A16: L. Carlson | B16: AGG Mktg Agmt 12JAN2022 (Amended) | F16: Per Mktg Agmt | G16: =DATE(YEAR(EDATE($E$5,1)),MONTH(EDATE($E$5,1)),1) -> 2024-07-01
A18: QTY | B18: ITEM # | C18: DESCRIPTION | E18: UNIT PRICE | F18: DISCOUNT | G18: LINE TOTAL
A19: 1 | B19: WWW Support | C19: December 2022 WWW Support | E19: 2000 | G19: =E19-F19 -> 2000
G22: =IF(SUM(A22)>0,SUM((A22*E22)-F22),"") -> 
D29: TOTAL DISCOUNT | F29: =IF(SUM(F19:F28)>0,SUM(F19:F28),"") -> 
A30: Payment by Check in US Dollars - Payable to AviaGlobal Group, LLC Payment by ACH - Account Number 375020979998, Routing Number 072000805 Payment by Domestic USA Wire in US Dollars Pay to the order of Bank of America, NA – AviaGlobal Group, LLC Account - 375020979998 - Routing Number 026009593 Bank of America, NA - 222 Broadway - New York, New York USA 10038 | F30: SUBTOTAL | G30: =IF(SUM(G19:G28)>0,SUM(G19:G28),"") -> 2000
F31: SALES TAX
F32: TOTAL | G32: =IF(SUM(G30)>H336,SUM((G30*G31)+G30),"") -> 2000
F34: =IF(SUM(F32)>0,SUM((F32*F33)+F32),"") -> 

Sheet AGGPERAPA Inv 002-23 20Feb23
A3: AviaGlobal Group, LLC
A4: 866 Washtenaw St NE | D4: INVOICE NO. | E4: 002-23 | K4: =UPPER(TEXT(E5,"DDMMMYY"))&"/ "&E6&" "&E4 -> 20FEB23/ PERAPA 002-23
A5: Grand Rapids, MI 49505-4846 | D5: DATE | E5: 2023-02-20
A6: +1 (616) 558-7622 | C6: CUSTOMER ID | E6: PERAPA
A7: lee.carlson@aviaglobalgroup.com
A9: TO | B9: David Rankin | D9: SHIP TO | E9: David Rankin
B10: Peregrine Avionics, LLC | E10: Peregrine Avionics, LLC
B11: 7385 S Peoria St Unit C4 | E11: 7385 S Peoria St Unit C4
B12: Englewood, CO USA 80112 | E12: Englewood, CO USA 80112
B13: 303-325-3873 | E13: 303-325-3873
A15: AGG Acct POC | B15: Customer PO Reference | C15: SHIPPING METHOD | D15: SHIPPING TERMS | E15: DELIVERY DATE | F15: PAYMENT TERMS | G15: DUE DATE
A16: L. Carlson | B16: AGG Mktg Agmt 12JAN2022 (Amended) | F16: Per Mktg Agmt | G16: 2023-03-01
A18: QTY | B18: ITEM # | C18: DESCRIPTION | E18: UNIT PRICE | F18: DISCOUNT | G18: LINE TOTAL
A19: 1 | B19: WWW Support | C19: January 2023 WWW Support | E19: 2000 | G19: =E19-F19 -> 2000
A20: 1 | B20: Mailchimp | C20: Monthly Subscription Jan 2023 MC17521714 | E20: 69 | G20: =E20-F20 -> 69
A21: 1 | B21: Mailchimp | C21: Monthly Subscription Feb 2023 MC17730474 | E21: 69 | G21: =E21-F21 -> 69
G22: =IF(SUM(A22)>0,SUM((A22*E22)-F22),"") -> 
G23: =IF(SUM(A23)>0,SUM((A23*E23)-F23),"") -> 
G24: =IF(SUM(A24)>0,SUM((A24*E24)-F24),"") -> 
G25: =IF(SUM(A25)>0,SUM((A25*E25)-F25),"") -> 
G26: =IF(SUM(A26)>0,SUM((A26*E26)-F26),"") -> 
D27: TOTAL DISCOUNT | F27: =IF(SUM(F20:F26)>0,SUM(F20:F26),"") -> 
A28: Payment by Check in US Dollars - Payable to AviaGlobal Group, LLC Payment by ACH - Account Number 375020979998, Routing Number 072000805 Payment by Domestic USA Wire in US Dollars Pay to the order of Bank of America, NA – AviaGlobal Group, LLC Account - 375020979998 - Routing Number 026009593 Bank of America, NA - 222 Broadway - New York, New York USA 10038 | F28: SUBTOTAL | G28: =IF(SUM(G19:G26)>0,SUM(G19:G26),"") -> 2138
F29: SALES TAX
F30: TOTAL | G30: =IF(SUM(G28)>H334,SUM((G28*G29)+G28),"") -> 2138
F32: =IF(SUM(F30)>0,SUM((F30*F31)+F30),"") -> 

Sheet AGGPERAPA Inv 003-23 20Feb23
A3: AviaGlobal Group, LLC
A4: 866 Washtenaw St NE | D4: INVOICE NO. | E4: 003-23 | K4: =UPPER(TEXT(E5,"DDMMMYY"))&"/ "&E6&" "&E4 -> 20FEB23/ PERAPA 003-23
A5: Grand Rapids, MI 49505-4846 | D5: DATE | E5: 2023-02-20
A6: +1 (616) 558-7622 | C6: CUSTOMER ID | E6: PERAPA
A7: lee.carlson@aviaglobalgroup.com
A9: TO | B9: David Rankin | D9: SHIP TO | E9: David Rankin
B10: Peregrine Avionics, LLC | E10: Peregrine Avionics, LLC
B11: 7385 S Peoria St Unit C4 | E11: 7385 S Peoria St Unit C4
B12: Englewood, CO USA 80112 | E12: Englewood, CO USA 80112
B13: 303-325-3873 | E13: 303-325-3873
A15: AGG Acct POC | B15: Customer PO Reference | C15: SHIPPING METHOD | D15: SHIPPING TERMS | E15: DELIVERY DATE | F15: PAYMENT TERMS | G15: DUE DATE
A16: L. Carlson | B16: AGG Mktg Agmt 12JAN2022 (Amended) | F16: Per Mktg Agmt | G16: 2023-03-01
A18: QTY | B18: ITEM # | C18: DESCRIPTION | E18: UNIT PRICE | F18: DISCOUNT | G18: LINE TOTAL
A19: 1 | B19: G150 Marketing | C19: Sales commission | E19: 2000 | G19: =E19-F19 -> 2000
G20: =IF(SUM(A20)>0,SUM((A20*E20)-F20),"") -> 
D30: TOTAL DISCOUNT | F30: =IF(SUM(F20:F29)>0,SUM(F20:F29),"") -> 
A31: Payment by Check in US Dollars - Payable to AviaGlobal Group, LLC Payment by ACH - Account Number 375020979998, Routing Number 072000805 Payment by Domestic USA Wire in US Dollars Pay to the order of Bank of America, NA – AviaGlobal Group, LLC Account - 375020979998 - Routing Number 026009593 Bank of America, NA - 222 Broadway - New York, New York USA 10038 | F31: SUBTOTAL | G31: =IF(SUM(G19:G29)>0,SUM(G19:G29),"") -> 2000
F32: SALES TAX
F33: TOTAL | G33: =IF(SUM(G31)>H337,SUM((G31*G32)+G31),"") -> 2000
F35: =IF(SUM(F33)>0,SUM((F33*F34)+F33),"") -> 

Sheet AGGPERAPA Inv 004-23 17Mar23
A3: AviaGlobal Group, LLC
A4: 866 Washtenaw St NE | D4: INVOICE NO. | E4: 004-23 | K4: =UPPER(TEXT(E5,"DDMMMYY"))&"/ "&E6&" "&E4 -> 17MAR23/ PERAPA 004-23
A5: Grand Rapids, MI 49505-4846 | D5: DATE | E5: 2023-03-17
A6: +1 (616) 532-7129 | C6: CUSTOMER ID | E6: PERAPA
A7: michele.carlson@aviaglobalgroup.com
A9: TO | B9: David Rankin | D9: SHIP TO | E9: David Rankin
B10: Peregrine Avionics, LLC | E10: Peregrine Avionics, LLC
B11: 7385 S Peoria St Unit C4 | E11: 7385 S Peoria St Unit C4
B12: Englewood, CO USA 80112 | E12: Englewood, CO USA 80112
B13: 303-325-3873 | E13: 303-325-3873
A15: AGG Acct POC | B15: Customer PO Reference | C15: SHIPPING METHOD | D15: SHIPPING TERMS | E15: DELIVERY DATE | F15: PAYMENT TERMS | G15: DUE DATE
A16: M. Carlson | B16: AGG Mktg Agmt 12JAN2022 (Amended) | F16: Per Mktg Agmt | G16: 2023-04-01
A18: QTY | B18: ITEM # | C18: DESCRIPTION | E18: UNIT PRICE | F18: DISCOUNT | G18: LINE TOTAL
A19: 1 | B19: Expenses | C19: Mailchimp MC17309841 | E19: 59 | G19: =E19-F19 -> 59
A20: 1 | B20: Website Tools | C20: Elementor - Web Authoring tool | E20: 49 | G20: =IF(SUM(A20)>0,SUM((A20*E20)-F20),"") -> 49
A21: 1 | B21: Website Tools | C21: Really Simple SSL | E21: 23.2 | G21: 23.2
A22: 1 | B22: Website Tools | C22: Complianz - Worldwide compliance | E22: 45 | G22: 45
A23: 1 | B23: Website Tools | C23: Intl Transaction fee | E23: 1.35 | G23: 1.35
A24: 1 | B24: Website Tools | C24: Intl Transaction fee | E24: 0.7 | G24: 0.7
A25: 1 | B25: WWW Support | C25: February 2023 WWW Support | E25: 2000 | G25: 2000
A26: 1 | B26: Website Tools | C26: AISEO Semper Plugins -SEO Tool | E26: 99 | G26: 99
A27: 1 | B27: Website Tools | C27: Monster Insights - Web Tool | E27: 199 | G27: 199
D29: TOTAL DISCOUNT | F29: =IF(SUM(F20:F28)>0,SUM(F20:F28),"") -> 
A30: Payment by Check in US Dollars - Payable to AviaGlobal Group, LLC Payment by ACH - Account Number 375020979998, Routing Number 072000805 Payment by Domestic USA Wire in US Dollars Pay to the order of Bank of America, NA – AviaGlobal Group, LLC Account - 375020979998 - Routing Number 026009593 Bank of America, NA - 222 Broadway - New York, New York USA 10038 | F30: SUBTOTAL | G30: =IF(SUM(G19:G28)>0,SUM(G19:G28),"") -> 2476.25
F31: SALES TAX
F32: TOTAL | G32: =IF(SUM(G30)>H336,SUM((G30*G31)+G30),"") -> 2476.25
F34: =IF(SUM(F32)>0,SUM((F32*F33)+F32),"") -> 

Sheet AGGPERAPA Inv 005-23 15 Apr23
A3: AviaGlobal Group, LLC
A4: 866 Washtenaw St NE | D4: INVOICE NO. | E4: 005-23 | K4: =UPPER(TEXT(E5,"DDMMMYY"))&"/ "&E6&" "&E4 -> 15APR23/ PERAPA 005-23
A5: Grand Rapids, MI 49505-4846 | D5: DATE | E5: 2023-04-15
A6: +1 (616) 532-7129 | C6: CUSTOMER ID | E6: PERAPA
A7: michele.carlson@aviaglobalgroup.com
A9: TO | B9: David Rankin | D9: SHIP TO | E9: David Rankin
B10: Peregrine Avionics, LLC | E10: Peregrine Avionics, LLC
B11: 7385 S Peoria St Unit C4 | E11: 7385 S Peoria St Unit C4
B12: Englewood, CO USA 80112 | E12: Englewood, CO USA 80112
B13: 303-325-3873 | E13: 303-325-3873
A15: AGG Acct POC | B15: Customer PO Reference | C15: SHIPPING METHOD | D15: SHIPPING TERMS | E15: DELIVERY DATE | F15: PAYMENT TERMS | G15: DUE DATE
A16: M. Carlson | B16: AGG Mktg Agmt 12JAN2022 (Amended) | F16: Per Mktg Agmt | G16: 2023-05-01
A18: QTY | B18: ITEM # | C18: DESCRIPTION | E18: UNIT PRICE | F18: DISCOUNT | G18: LINE TOTAL
A19: 1 | B19: Expenses | C19: Mailchimp MC17945494 | E19: 69 | G19: =IF(SUM(A19)>0,SUM((A19*E19)-F19),"") -> 69
A20: 1 | B20: WWW Support | C20: March 2023 WWW Support | E20: 2000 | G20: 2000
A21: 1 | B21: Images | C21: Shutterstock CS-02A3A-5C35 | E21: 39.2 | G21: 39.2
A22: 1 | B22: Website Plugin | C22: Loginizer Plugin 944361 | E22: 24 | G22: 24
A23: 1 | B23: Website Plugin | C23: Intl Transaction Fee | E23: 0.72 | G23: 0.72
A24: 1 | B24: Website Plugin | C24: News Ticker Plugin 48516875 | E24: 13.03 | G24: 13.03
D30: TOTAL DISCOUNT | F30: =IF(SUM(F20:F29)>0,SUM(F20:F29),"") -> 
A31: Payment by Check in US Dollars - Payable to AviaGlobal Group, LLC Payment by ACH - Account Number 375020979998, Routing Number 072000805 Payment by Domestic USA Wire in US Dollars Pay to the order of Bank of America, NA – AviaGlobal Group, LLC Account - 375020979998 - Routing Number 026009593 Bank of America, NA - 222 Broadway - New York, New York USA 10038 | F31: SUBTOTAL | G31: =IF(SUM(G19:G29)>0,SUM(G19:G29),"") -> 2145.95
F32: SALES TAX
F33: TOTAL | G33: =IF(SUM(G31)>H337,SUM((G31*G32)+G31),"") -> 2145.95
F35: =IF(SUM(F33)>0,SUM((F33*F34)+F33),"") -> 

Sheet AGGPERAPA Inv 006-23 15May23
A3: AviaGlobal Group, LLC
A4: 866 Washtenaw St NE | D4: INVOICE NO. | E4: 006-23 | K4: =UPPER(TEXT(E5,"DDMMMYY"))&"/ "&E6&" "&E4 -> 15MAY23/ PERAPA 006-23
A5: Grand Rapids, MI 49505-4846 | D5: DATE | E5: 2023-05-15
A6: +1 (616) 532-7129 | C6: CUSTOMER ID | E6: PERAPA
A7: michele.carlson@aviaglobalgroup.com
A9: TO | B9: David Rankin | D9: SHIP TO | E9: David Rankin
B10: Peregrine Avionics, LLC | E10: Peregrine Avionics, LLC
B11: 7385 S Peoria St Unit C4 | E11: 7385 S Peoria St Unit C4
B12: Englewood, CO USA 80112 | E12: Englewood, CO USA 80112
B13: 303-325-3873 | E13: 303-325-3873
A15: AGG Acct POC | B15: Customer PO Reference | C15: SHIPPING METHOD | D15: SHIPPING TERMS | E15: DELIVERY DATE | F15: PAYMENT TERMS | G15: DUE DATE
A16: M. Carlson | B16: AGG Mktg Agmt 12JAN2022 (Amended) | F16: Per Mktg Agmt | G16: 2023-06-01
A18: QTY | B18: ITEM # | C18: DESCRIPTION | E18: UNIT PRICE | F18: DISCOUNT | G18: LINE TOTAL
A19: 1 | B19: Expenses | C19: Mailchimp MC18166806 | E19: 69 | G19: =IF(SUM(A19)>0,SUM((A19*E19)-F19),"") -> 69
A20: 1 | B20: WWW Support | C20: April 2023 WWW Support | E20: 2000 | G20: =IF(SUM(A20)>0,SUM((A20*E20)-F20),"") -> 2000
A21: 1 | B21: Website Plugin | C21: Crocoblock - JetElements | E21: 49 | G21: =IF(SUM(A21)>0,SUM((A21*E21)-F21),"") -> 49
D30: TOTAL DISCOUNT | F30: =IF(SUM(F20:F29)>0,SUM(F20:F29),"") -> 
A31: Payment by Check in US Dollars - Payable to AviaGlobal Group, LLC Payment by ACH - Account Number 375020979998, Routing Number 072000805 Payment by Domestic USA Wire in US Dollars Pay to the order of Bank of America, NA – AviaGlobal Group, LLC Account - 375020979998 - Routing Number 026009593 Bank of America, NA - 222 Broadway - New York, New York USA 10038 | F31: SUBTOTAL | G31: =IF(SUM(G19:G29)>0,SUM(G19:G29),"") -> 2118
F32: SALES TAX
F33: TOTAL | G33: =IF(SUM(G31)>H337,SUM((G31*G32)+G31),"") -> 2118
F35: =IF(SUM(F33)>0,SUM((F33*F34)+F33),"") -> 

Sheet AGGPERAPA Inv 007-23 15Jun23
A3: AviaGlobal Group, LLC
A4: 866 Washtenaw St NE | D4: INVOICE NO. | E4: 007-23 | K4: =UPPER(TEXT(E5,"DDMMMYY"))&"/ "&E6&" "&E4 -> 15JUN23/ PERAPA 007-23
A5: Grand Rapids, MI 49505-4846 | D5: DATE | E5: 2023-06-15
A6: +1 (616) 532-7129 | C6: CUSTOMER ID | E6: PERAPA
A7: michele.carlson@aviaglobalgroup.com
A9: TO | B9: David Rankin | D9: SHIP TO | E9: David Rankin
B10: Peregrine Avionics, LLC | E10: Peregrine Avionics, LLC
B11: 7385 S Peoria St Unit C4 | E11: 7385 S Peoria St Unit C4
B12: Englewood, CO USA 80112 | E12: Englewood, CO USA 80112
B13: 303-325-3873 | E13: 303-325-3873
A15: AGG Acct POC | B15: Customer PO Reference | C15: SHIPPING METHOD | D15: SHIPPING TERMS | E15: DELIVERY DATE | F15: PAYMENT TERMS | G15: DUE DATE
A16: M. Carlson | B16: AGG Mktg Agmt 12JAN2022 (Amended) | F16: Per Mktg Agmt | G16: 2023-07-01
A17: 007-23
A18: QTY | B18: ITEM # | C18: DESCRIPTION | E18: UNIT PRICE | F18: DISCOUNT | G18: LINE TOTAL
A19: 1 | B19: Expenses | C19: Mailchimp MC18387798 | E19: 69 | G19: =IF(SUM(A19)>0,SUM((A19*E19)-F19),"") -> 69
A20: 1 | B20: WWW Support | C20: May 2023 WWW Support | E20: 2000 | G20: =IF(SUM(A20)>0,SUM((A20*E20)-F20),"") -> 2000
A21: 1 | B21: Website Plugin | C21: Download Monitor | E21: 159 | G21: =IF(SUM(A21)>0,SUM((A21*E21)-F21),"") -> 159
D30: TOTAL DISCOUNT | F30: =IF(SUM(F20:F29)>0,SUM(F20:F29),"") -> 
A31: Payment by Check in US Dollars - Payable to AviaGlobal Group, LLC Payment by ACH - Account Number 375020979998, Routing Number 072000805 Payment by Domestic USA Wire in US Dollars Pay to the order of Bank of America, NA – AviaGlobal Group, LLC Account - 375020979998 - Routing Number 026009593 Bank of America, NA - 222 Broadway - New York, New York USA 10038 | F31: SUBTOTAL | G31: =IF(SUM(G19:G29)>0,SUM(G19:G29),"") -> 2228
F32: SALES TAX
F33: TOTAL | G33: =IF(SUM(G31)>H337,SUM((G31*G32)+G31),"") -> 2228
F35: =IF(SUM(F33)>0,SUM((F33*F34)+F33),"") -> 

Sheet AGGPERAPA Inv 008-23 15Jul23
A3: AviaGlobal Group, LLC
A4: 866 Washtenaw St NE | D4: INVOICE NO. | E4: 008-23 | K4: =UPPER(TEXT(E5,"DDMMMYY"))&"/ "&E6&" "&E4 -> 15JUL23/ PERAPA 008-23
A5: Grand Rapids, MI 49505-4846 | D5: DATE | E5: 2023-07-15
A6: +1 (616) 532-7129 | C6: CUSTOMER ID | E6: PERAPA
A7: michele.carlson@aviaglobalgroup.com
A9: TO | B9: David Rankin | D9: SHIP TO | E9: David Rankin
B10: Peregrine Avionics, LLC | E10: Peregrine Avionics, LLC
B11: 7385 S Peoria St Unit C4 | E11: 7385 S Peoria St Unit C4
B12: Englewood, CO USA 80112 | E12: Englewood, CO USA 80112
B13: 303-325-3873 | E13: 303-325-3873
A15: AGG Acct POC | B15: Customer PO Reference | C15: SHIPPING METHOD | D15: SHIPPING TERMS | E15: DELIVERY DATE | F15: PAYMENT TERMS | G15: DUE DATE
A16: M. Carlson | B16: AGG Mktg Agmt 12JAN2022 (Amended) | F16: Per Mktg Agmt | G16: 2023-08-01
A18: QTY | B18: ITEM # | C18: DESCRIPTION | E18: UNIT PRICE | F18: DISCOUNT | G18: LINE TOTAL
A19: 1 | B19: Expenses | C19: Mailchimp MC18605982 | E19: 69 | G19: =IF(SUM(A19)>0,SUM((A19*E19)-F19),"") -> 69
A20: 1 | B20: WWW Support | C20: June 2023 WWW Support | E20: 2000 | G20: =IF(SUM(A20)>0,SUM((A20*E20)-F20),"") -> 2000
G21: =IF(SUM(A21)>0,SUM((A21*E21)-F21),"") -> 
D30: TOTAL DISCOUNT | F30: =IF(SUM(F20:F29)>0,SUM(F20:F29),"") -> 
A31: Payment by Check in US Dollars - Payable to AviaGlobal Group, LLC Payment by ACH - Account Number 375020979998, Routing Number 072000805 Payment by Domestic USA Wire in US Dollars Pay to the order of Bank of America, NA – AviaGlobal Group, LLC Account - 375020979998 - Routing Number 026009593 Bank of America, NA - 222 Broadway - New York, New York USA 10038 | F31: SUBTOTAL | G31: =IF(SUM(G19:G29)>0,SUM(G19:G29),"") -> 2069
F32: SALES TAX
F33: TOTAL | G33: =IF(SUM(G31)>H337,SUM((G31*G32)+G31),"") -> 2069
F35: =IF(SUM(F33)>0,SUM((F33*F34)+F33),"") -> 

Sheet AGGPERAPA Inv 009-23 15Aug23
A3: AviaGlobal Group, LLC
A4: 866 Washtenaw St NE | D4: INVOICE NO. | E4: 009-23 | K4: =UPPER(TEXT(E5,"DDMMMYY"))&"/ "&E6&" "&E4 -> 15AUG23/ PERAPA 009-23
A5: Grand Rapids, MI 49505-4846 | D5: DATE | E5: 2023-08-15
A6: +1 (616) 532-7129 | C6: CUSTOMER ID | E6: PERAPA
A7: m.carlson@aerospaceedge.com
A9: TO | B9: David Rankin | D9: SHIP TO | E9: David Rankin
B10: Peregrine Avionics, LLC | E10: Peregrine Avionics, LLC
B11: 7385 S Peoria St Unit C4 | E11: 7385 S Peoria St Unit C4
B12: Englewood, CO USA 80112 | E12: Englewood, CO USA 80112
B13: 303-325-3873 | E13: 303-325-3873
A15: AGG Acct POC | B15: Customer PO Reference | C15: SHIPPING METHOD | D15: SHIPPING TERMS | E15: DELIVERY DATE | F15: PAYMENT TERMS | G15: DUE DATE
A16: M. Carlson | B16: AGG Mktg Agmt 12JAN2022 (Amended) | F16: Per Mktg Agmt | G16: 2023-09-01
A18: QTY | B18: ITEM # | C18: DESCRIPTION | E18: UNIT PRICE | F18: DISCOUNT | G18: LINE TOTAL
A19: 1 | B19: Expenses | C19: Mailchimp MC18821094 | E19: 69 | G19: =IF(SUM(A19)>0,SUM((A19*E19)-F19),"") -> 69
A20: 1 | B20: WWW Support | C20: July 2023 WWW Support | E20: 2000 | G20: =IF(SUM(A20)>0,SUM((A20*E20)-F20),"") -> 2000
G21: =IF(SUM(A21)>0,SUM((A21*E21)-F21),"") -> 
D30: TOTAL DISCOUNT | F30: =IF(SUM(F20:F29)>0,SUM(F20:F29),"") -> 
A31: Payment by Check in US Dollars - Payable to AviaGlobal Group, LLC Payment by ACH - Account Number 375020979998, Routing Number 072000805 Payment by Domestic USA Wire in US Dollars Pay to the order of Bank of America, NA – AviaGlobal Group, LLC Account - 375020979998 - Routing Number 026009593 Bank of America, NA - 222 Broadway - New York, New York USA 10038 | F31: SUBTOTAL | G31: =IF(SUM(G19:G29)>0,SUM(G19:G29),"") -> 2069
F32: SALES TAX
F33: TOTAL | G33: =IF(SUM(G31)>H337,SUM((G31*G32)+G31),"") -> 2069
F35: =IF(SUM(F33)>0,SUM((F33*F34)+F33),"") -> 

Sheet AGGPERAPA Inv 010-23 15Sep23
A3: AviaGlobal Group, LLC
A4: 866 Washtenaw St NE | D4: INVOICE NO. | E4: 010-23 | K4: =UPPER(TEXT(E5,"DDMMMYY"))&"/ "&E6&" "&E4 -> 15SEP23/ PERAPA 010-23
A5: Grand Rapids, MI 49505-4846 | D5: DATE | E5: 2023-09-15
A6: +1 (616) 532-7129 | C6: CUSTOMER ID | E6: PERAPA
A7: m.carlson@aerospaceedge.com
A9: TO | B9: David Rankin | D9: SHIP TO | E9: David Rankin
B10: Peregrine Avionics, LLC | E10: Peregrine Avionics, LLC
B11: 7385 S Peoria St Unit C4 | E11: 7385 S Peoria St Unit C4
B12: Englewood, CO USA 80112 | E12: Englewood, CO USA 80112
B13: 303-325-3873 | E13: 303-325-3873
A15: AGG Acct POC | B15: Customer PO Reference | C15: SHIPPING METHOD | D15: SHIPPING TERMS | E15: DELIVERY DATE | F15: PAYMENT TERMS | G15: DUE DATE
A16: M. Carlson | B16: AGG Mktg Agmt 12JAN2022 (Amended) | F16: Per Mktg Agmt | G16: 2023-10-01
A18: QTY | B18: ITEM # | C18: DESCRIPTION | E18: UNIT PRICE | F18: DISCOUNT | G18: LINE TOTAL
A19: 1 | B19: Expenses | C19: Mailchimp MC19034002 | E19: 69 | G19: =IF(SUM(A19)>0,SUM((A19*E19)-F19),"") -> 69
A20: 1 | B20: WWW Support | C20: Aug 2023 WWW Support | E20: 2000 | G20: =IF(SUM(A20)>0,SUM((A20*E20)-F20),"") -> 2000
G21: =IF(SUM(A21)>0,SUM((A21*E21)-F21),"") -> 
D30: TOTAL DISCOUNT | F30: =IF(SUM(F20:F29)>0,SUM(F20:F29),"") -> 
A31: Payment by Check in US Dollars - Payable to AviaGlobal Group, LLC Payment by ACH - Account Number 375020979998, Routing Number 072000805 Payment by Domestic USA Wire in US Dollars Pay to the order of Bank of America, NA – AviaGlobal Group, LLC Account - 375020979998 - Routing Number 026009593 Bank of America, NA - 222 Broadway - New York, New York USA 10038 | F31: SUBTOTAL | G31: =IF(SUM(G19:G29)>0,SUM(G19:G29),"") -> 2069
F32: SALES TAX
F33: TOTAL | G33: =IF(SUM(G31)>H337,SUM((G31*G32)+G31),"") -> 2069
F35: =IF(SUM(F33)>0,SUM((F33*F34)+F33),"") -> 

Sheet AGGPERAPA Inv 011-23 15Oct23
A3: AviaGlobal Group, LLC
A4: 866 Washtenaw St NE | D4: INVOICE NO. | E4: 011-23 | K4: =UPPER(TEXT(E5,"DDMMMYY"))&"/ "&E6&" "&E4 -> 15OCT23/ PERAPA 011-23
A5: Grand Rapids, MI 49505-4846 | D5: DATE | E5: 2023-10-15
A6: +1 (616) 532-7129 | C6: CUSTOMER ID | E6: PERAPA
A7: m.carlson@aerospaceedge.com
A9: TO | B9: David Rankin | D9: SHIP TO | E9: David Rankin
B10: Peregrine Avionics, LLC | E10: Peregrine Avionics, LLC
B11: 7385 S Peoria St Unit C4 | E11: 7385 S Peoria St Unit C4
B12: Englewood, CO USA 80112 | E12: Englewood, CO USA 80112
B13: 303-325-3873 | E13: 303-325-3873
A15: AGG Acct POC | B15: Customer PO Reference | C15: SHIPPING METHOD | D15: SHIPPING TERMS | E15: DELIVERY DATE | F15: PAYMENT TERMS | G15: DUE DATE
A16: M. Carlson | B16: AGG Mktg Agmt 12JAN2022 (Amended) | F16: Per Mktg Agmt | G16: 2023-11-01
A18: QTY | B18: ITEM # | C18: DESCRIPTION | E18: UNIT PRICE | F18: DISCOUNT | G18: LINE TOTAL
A19: 1 | B19: Expenses | C19: Mailchimp MC19246418 | E19: 69 | G19: =IF(SUM(A19)>0,SUM((A19*E19)-F19),"") -> 69
A20: 1 | B20: WWW Support | C20: Sep 2023 WWW Support | E20: 2000 | G20: =IF(SUM(A20)>0,SUM((A20*E20)-F20),"") -> 2000
G21: =IF(SUM(A21)>0,SUM((A21*E21)-F21),"") -> 
D30: TOTAL DISCOUNT | F30: =IF(SUM(F20:F29)>0,SUM(F20:F29),"") -> 
A31: Payment by Check in US Dollars - Payable to AviaGlobal Group, LLC Payment by ACH - Account Number 375020979998, Routing Number 072000805 Payment by Domestic USA Wire in US Dollars Pay to the order of Bank of America, NA – AviaGlobal Group, LLC Account - 375020979998 - Routing Number 026009593 Bank of America, NA - 222 Broadway - New York, New York USA 10038 | F31: SUBTOTAL | G31: =IF(SUM(G19:G29)>0,SUM(G19:G29),"") -> 2069
F32: SALES TAX
F33: TOTAL | G33: =IF(SUM(G31)>H337,SUM((G31*G32)+G31),"") -> 2069
F35: =IF(SUM(F33)>0,SUM((F33*F34)+F33),"") -> 

Sheet AGGPERAPA Inv 012-23 15Nov23
A3: AviaGlobal Group, LLC
A4: 866 Washtenaw St NE | D4: INVOICE NO. | E4: 012-23 | K4: =UPPER(TEXT(E5,"DDMMMYY"))&"/ "&E6&" "&E4 -> 15NOV23/ PERAPA 012-23
A5: Grand Rapids, MI 49505-4846 | D5: DATE | E5: 2023-11-15
A6: +1 (616) 532-7129 | C6: CUSTOMER ID | E6: PERAPA
A7: m.carlson@aerospaceedge.com
A9: TO | B9: David Rankin | D9: SHIP TO | E9: David Rankin
B10: Peregrine Avionics, LLC | E10: Peregrine Avionics, LLC
B11: 7385 S Peoria St Unit C4 | E11: 7385 S Peoria St Unit C4
B12: Englewood, CO USA 80112 | E12: Englewood, CO USA 80112
B13: 303-325-3873 | E13: 303-325-3873
A15: AGG Acct POC | B15: Customer PO Reference | C15: SHIPPING METHOD | D15: SHIPPING TERMS | E15: DELIVERY DATE | F15: PAYMENT TERMS | G15: DUE DATE
A16: M. Carlson | B16: AGG Mktg Agmt 12JAN2022 (Amended) | F16: Per Mktg Agmt | G16: 2023-12-01
A18: QTY | B18: ITEM # | C18: DESCRIPTION | E18: UNIT PRICE | F18: DISCOUNT | G18: LINE TOTAL
A19: 1 | B19: Expenses | C19: Mailchimp MC19457770 | E19: 69 | G19: =IF(SUM(A19)>0,SUM((A19*E19)-F19),"") -> 69
A20: 1 | B20: WWW Support | C20: Oct 2023 WWW Support | E20: 2000 | G20: =IF(SUM(A20)>0,SUM((A20*E20)-F20),"") -> 2000
G21: =IF(SUM(A21)>0,SUM((A21*E21)-F21),"") -> 
D30: TOTAL DISCOUNT | F30: =IF(SUM(F20:F29)>0,SUM(F20:F29),"") -> 
A31: Payment by Check in US Dollars - Payable to AviaGlobal Group, LLC Payment by ACH - Account Number 375020979998, Routing Number 072000805 Payment by Domestic USA Wire in US Dollars Pay to the order of Bank of America, NA – AviaGlobal Group, LLC Account - 375020979998 - Routing Number 026009593 Bank of America, NA - 222 Broadway - New York, New York USA 10038 | F31: SUBTOTAL | G31: =IF(SUM(G19:G29)>0,SUM(G19:G29),"") -> 2069
F32: SALES TAX
F33: TOTAL | G33: =IF(SUM(G31)>H337,SUM((G31*G32)+G31),"") -> 2069
F35: =IF(SUM(F33)>0,SUM((F33*F34)+F33),"") -> 

Sheet AGGPERAPA Inv 013-23 31DEC23
A3: Aerospace Edge, LLC
A4: 866 Washtenaw St NE | D4: INVOICE NO. | E4: 013-23 | K4: =UPPER(TEXT(E5,"DDMMMYY"))&"/ "&E6&" "&E4 -> 31DEC23/ PERAPA 013-23
A5: Grand Rapids, MI 49505-4846 | D5: DATE | E5: 2023-12-31
A6: +1 (616) 532-7129 | C6: CUSTOMER ID | E6: PERAPA
A7: m.carlson@aerospaceedge.com
A9: TO | B9: David Rankin | D9: SHIP TO | E9: David Rankin
B10: Peregrine Avionics, LLC | E10: Peregrine Avionics, LLC
B11: 7385 S Peoria St Unit C4 | E11: 7385 S Peoria St Unit C4
B12: Englewood, CO USA 80112 | E12: Englewood, CO USA 80112
B13: 303-325-3873 | E13: 303-325-3873
A15: AGG Acct POC | B15: Customer PO Reference | C15: SHIPPING METHOD | D15: SHIPPING TERMS | E15: DELIVERY DATE | F15: PAYMENT TERMS | G15: DUE DATE
A16: M. Carlson | B16: AGG Mktg Agmt 12JAN2022 (Amended) | F16: Per Mktg Agmt | G16: 2024-01-15
A18: QTY | B18: ITEM # | C18: DESCRIPTION | E18: UNIT PRICE | F18: DISCOUNT | G18: LINE TOTAL
A19: 1 | B19: Expenses | C19: Mailchimp MC19670322 | E19: 69 | G19: =IF(SUM(A19)>0,SUM((A19*E19)-F19),"") -> 69
A20: 1 | B20: WWW Support | C20: Nov 2023 WWW Support | E20: 2000 | G20: =IF(SUM(A20)>0,SUM((A20*E20)-F20),"") -> 2000
A21: 1 | B21: WWW Tools | C21: DMARC services 2023 | E21: 78.75 | G21: =IF(SUM(A21)>0,SUM((A21*E21)-F21),"") -> 78.75
D30: TOTAL DISCOUNT | F30: =IF(SUM(F20:F29)>0,SUM(F20:F29),"") -> 
A31: Payment by Check in US Dollars - Payable to Aerospace Edge, LLC Payment by ACH - Account Number 5879038585, Routing Number 051400549 Payment by Domestic USA Wire in US Dollars Pay to the order of Wells Fargo Bank, N.A. – Aerospace Edge, LLC Account: 5879038585 - Routing Number: 121000248 Wells Fargo Bank, N.A., 420 Montgomery, San Francisco, CA 94104 | F31: SUBTOTAL | G31: =IF(SUM(G19:G29)>0,SUM(G19:G29),"") -> 2147.75
F32: SALES TAX
F33: TOTAL | G33: =IF(SUM(G31)>H337,SUM((G31*G32)+G31),"") -> 2147.75
F35: =IF(SUM(F33)>0,SUM((F33*F34)+F33),"") -> 
A38: THANK YOU FOR YOU BUSINESS
A39: AE 31DEC23 V 1.0

Sheet AGGPERAPA Inv 001-24 15JAN24
A3: Aerospace Edge, LLC
A4: 866 Washtenaw St NE | D4: INVOICE NO. | E4: 001-24 | K4: =UPPER(TEXT(E5,"DDMMMYY"))&"/ "&E6&" "&E4 -> 15JAN24/ PERAPA 001-24
A5: Grand Rapids, MI 49505-4846 | D5: DATE | E5: 2024-01-15
A6: +1 (616) 532-7129 | C6: CUSTOMER ID | E6: PERAPA
A7: m.carlson@aerospaceedge.com
A9: TO | B9: David Rankin | D9: SHIP TO | E9: David Rankin
B10: Peregrine Avionics, LLC | E10: Peregrine Avionics, LLC
B11: 7385 S Peoria St Unit C4 | E11: 7385 S Peoria St Unit C4
B12: Englewood, CO USA 80112 | E12: Englewood, CO USA 80112
B13: 303-325-3873 | E13: 303-325-3873
A15: AGG Acct POC | B15: Customer PO Reference | C15: SHIPPING METHOD | D15: SHIPPING TERMS | E15: DELIVERY DATE | F15: PAYMENT TERMS | G15: DUE DATE
A16: M. Carlson | B16: AGG Mktg Agmt 12JAN2022 (Amended) | F16: Per Mktg Agmt | G16: 2024-02-15
A18: QTY | B18: ITEM # | C18: DESCRIPTION | E18: UNIT PRICE | F18: DISCOUNT | G18: LINE TOTAL
A19: 1 | B19: Expenses | C19: Mailchimp MC19880374 | E19: 75 | G19: =IF(SUM(A19)>0,SUM((A19*E19)-F19),"") -> 75
A20: 1 | B20: WWW Support | C20: Dec 2023 WWW Support | E20: 2000 | G20: =IF(SUM(A20)>0,SUM((A20*E20)-F20),"") -> 2000
A21: 1 | B21: WWW Tools | C21: DMARC services 2023 omitted from payment on Invoice 013-23 | E21: 78.75
A22: 1 | B22: WWW Tools | C22: SSL Certificate IMH-314-144898-128 | E22: 124.99
G23: =IF(SUM(A23)>0,SUM((A23*E23)-F23),"") -> 
G24: =IF(SUM(A24)>0,SUM((A24*E24)-F24),"") -> 
G25: =IF(SUM(A25)>0,SUM((A25*E25)-F25),"") -> 
G26: =IF(SUM(A26)>0,SUM((A26*E26)-F26),"") -> 
G27: =IF(SUM(A27)>0,SUM((A27*E27)-F27),"") -> 
D28: TOTAL DISCOUNT | F28: =IF(SUM(F20:F27)>0,SUM(F20:F27),"") -> 
A29: Payment by Check in US Dollars - Payable to Aerospace Edge, LLC Payment by ACH - Account Number 5879038585, Routing Number 051400549 Payment by Domestic USA Wire in US Dollars Pay to the order of Wells Fargo Bank, N.A. – Aerospace Edge, LLC Account: 5879038585 - Routing Number: 121000248 Wells Fargo Bank, N.A., 420 Montgomery, San Francisco, CA 94104 | F29: SUBTOTAL | G29: =IF(SUM(G19:G27)>0,SUM(G19:G27),"") -> 2075
F30: SALES TAX
F31: TOTAL | G31: =IF(SUM(G29)>H335,SUM((G29*G30)+G29),"") -> 2075
F33: =IF(SUM(F31)>0,SUM((F31*F32)+F31),"") -> 
A36: THANK YOU FOR YOU BUSINESS
A37: AE 31DEC23 V 1.0

Sheet AGGPERAPA Inv 002-24 15FEB24
A3: Aerospace Edge, LLC
A4: 866 Washtenaw St NE | D4: INVOICE NO. | E4: 002-24 | K4: =UPPER(TEXT(E5,"DDMMMYY"))&"/ "&E6&" "&E4 -> 15FEB24/ PERAPA 002-24
A5: Grand Rapids, MI 49505-4846 | D5: DATE | E5: 2024-02-15
A6: +1 (616) 532-7129 | C6: CUSTOMER ID | E6: PERAPA
A7: m.carlson@aerospaceedge.com
A9: TO | B9: David Rankin | D9: SHIP TO | E9: David Rankin
B10: Peregrine Avionics, LLC | E10: Peregrine Avionics, LLC
B11: 7385 S Peoria St Unit C4 | E11: 7385 S Peoria St Unit C4
B12: Englewood, CO USA 80112 | E12: Englewood, CO USA 80112
B13: 303-325-3873 | E13: 303-325-3873
A15: AGG Acct POC | B15: Customer PO Reference | C15: SHIPPING METHOD | D15: SHIPPING TERMS | E15: DELIVERY DATE | F15: PAYMENT TERMS | G15: DUE DATE
A16: M. Carlson | B16: AGG Mktg Agmt 12JAN2022 (Amended) | F16: Per Mktg Agmt | G16: 2024-03-15
A18: QTY | B18: ITEM # | C18: DESCRIPTION | E18: UNIT PRICE | F18: DISCOUNT | G18: LINE TOTAL
A19: 1 | B19: Expenses | C19: Mailchimp MC20088462 | E19: 75 | G19: =IF(SUM(A19)>0,SUM((A19*E19)-F19),"") -> 75
A20: 1 | B20: WWW Support | C20: Jan 2024 WWW Support | E20: 2000 | G20: 2000
D30: TOTAL DISCOUNT | F30: =IF(SUM(F20:F29)>0,SUM(F20:F29),"") -> 
A31: Payment by Check in US Dollars - Payable to Aerospace Edge, LLC Payment by ACH - Account Number 5879038585, Routing Number 051400549 Payment by Domestic USA Wire in US Dollars Pay to the order of Wells Fargo Bank, N.A. – Aerospace Edge, LLC Account: 5879038585 - Routing Number: 121000248 Wells Fargo Bank, N.A., 420 Montgomery, San Francisco, CA 94104 | F31: SUBTOTAL | G31: =IF(SUM(G19:G29)>0,SUM(G19:G29),"") -> 2075
F32: SALES TAX
F33: TOTAL | G33: =IF(SUM(G31)>H337,SUM((G31*G32)+G31),"") -> 2075
F35: =IF(SUM(F33)>0,SUM((F33*F34)+F33),"") -> 
A38: THANK YOU FOR YOU BUSINESS
A39: AE 31DEC23 V 1.0

Sheet AGGPERAPA Inv 003-24 15MAR24
A3: Aerospace Edge, LLC
A4: 866 Washtenaw St NE | D4: INVOICE NO. | E4: =LEFT(SUBSTITUTE(RIGHT(CELL("filename"),LEN(CELL("filename"))-FIND("]",CELL("filename"))),"AGG"&$E$6&" Inv ",""),SEARCH(" ",SUBSTITUTE(RIGHT(CELL("filename"),LEN(CELL("filename"))-FIND("]",CELL("filename"))),"AGG"&$E$6&" Inv ",""))-1) -> 006-24 | K4: =UPPER(TEXT(E5,"DDMMMYY"))&"/ "&E6&" "&E4 -> 15JUN24/ PERAPA 006-24
A5: Grand Rapids, MI 49505-4846 | D5: DATE | E5: =DATEVALUE(SUBSTITUTE(RIGHT(CELL("filename"),LEN(CELL("filename"))-FIND("]",CELL("filename"))),"AGG"&$E$6&" Inv "&$E$4&" ","")) -> 2024-06-15
A6: +1 (616) 532-7129 | C6: CUSTOMER ID | E6: PERAPA
A7: m.carlson@aerospaceedge.com
A9: TO | B9: David Rankin | D9: SHIP TO | E9: David Rankin
B10: Peregrine Avionics, LLC | E10: Peregrine Avionics, LLC
B11: 7385 S Peoria St Unit C4 | E11: 7385 S Peoria St Unit C4
B12: Englewood, CO USA 80112 | E12: Englewood, CO USA 80112
B13: 303-325-3873 | E13: 303-325-3873
A15: AGG Acct POC | B15: Customer PO Reference | C15: SHIPPING METHOD | D15: SHIPPING TERMS | E15: DELIVERY DATE | F15: PAYMENT TERMS | G15: DUE DATE
A16: M. Carlson | B16: AGG Mktg Agmt 12JAN2022 (Amended) | F16: Per Mktg Agmt | G16: =DATE(YEAR(EDATE($E$5,1)),MONTH(EDATE($E$5,1)),15) -> 2024-07-15
A18: QTY | B18: ITEM # | C18: DESCRIPTION | E18: UNIT PRICE | F18: DISCOUNT | G18: LINE TOTAL
A19: 1 | B19: Expenses | C19: Mailchimp MC20297922 | E19: 75 | G19: =IF(SUM(A19)>0,SUM((A19*E19)-F19),"") -> 75
A20: 1 | B20: WWW Support | C20: Feb 2024 WWW Support | E20: 2000 | G20: 2000
A21: 1 | B21: WWW Tools | C21: Images - Shutterstock CS-09F54-1CD2 | E21: 23.2 | G21: 23.2
D29: TOTAL DISCOUNT | F29: =IF(SUM(F20:F28)>0,SUM(F20:F28),"") -> 
A30: Payment by Check in US Dollars - Payable to Aerospace Edge, LLC Payment by ACH - Account Number 5879038585, Routing Number 051400549 Payment by Domestic USA Wire in US Dollars Pay to the order of Wells Fargo Bank, N.A. – Aerospace Edge, LLC Account: 5879038585 - Routing Number: 121000248 Wells Fargo Bank, N.A., 420 Montgomery, San Francisco, CA 94104 | F30: SUBTOTAL | G30: =IF(SUM(G19:G28)>0,SUM(G19:G28),"") -> 2098.2
F31: SALES TAX
F32: TOTAL | G32: =IF(SUM(G30)>H336,SUM((G30*G31)+G30),"") -> 2098.2
F34: =IF(SUM(F32)>0,SUM((F32*F33)+F32),"") -> 
A37: THANK YOU FOR YOU BUSINESS
A38: AE 31DEC23 V 1.0

Sheet AGGPERAPA Inv 004-24 15APR24
A3: Aerospace Edge, LLC
A4: 866 Washtenaw St NE | D4: INVOICE NO. | E4: =LEFT(SUBSTITUTE(RIGHT(CELL("filename"),LEN(CELL("filename"))-FIND("]",CELL("filename"))),"AGG"&$E$6&" Inv ",""),SEARCH(" ",SUBSTITUTE(RIGHT(CELL("filename"),LEN(CELL("filename"))-FIND("]",CELL("filename"))),"AGG"&$E$6&" Inv ",""))-1) -> 006-24 | K4: =UPPER(TEXT(E5,"DDMMMYY"))&"/ "&E6&" "&E4 -> 15JUN24/ PERAPA 006-24
A5: Grand Rapids, MI 49505-4846 | D5: DATE | E5: =DATEVALUE(SUBSTITUTE(RIGHT(CELL("filename"),LEN(CELL("filename"))-FIND("]",CELL("filename"))),"AGG"&$E$6&" Inv "&$E$4&" ","")) -> 2024-06-15
A6: +1 (616) 532-7129 | C6: CUSTOMER ID | E6: PERAPA
A7: m.carlson@aerospaceedge.com
A9: TO | B9: David Rankin | D9: SHIP TO | E9: David Rankin
B10: Peregrine Avionics, LLC | E10: Peregrine Avionics, LLC
B11: 7385 S Peoria St Unit C4 | E11: 7385 S Peoria St Unit C4
B12: Englewood, CO USA 80112 | E12: Englewood, CO USA 80112
B13: 303-325-3873 | E13: 303-325-3873
A15: AGG Acct POC | B15: Customer PO Reference | C15: SHIPPING METHOD | D15: SHIPPING TERMS | E15: DELIVERY DATE | F15: PAYMENT TERMS | G15: DUE DATE
A16: M. Carlson | B16: AGG Mktg Agmt 12JAN2022 (Amended) | F16: Per Mktg Agmt | G16: =DATE(YEAR(EDATE($E$5,1)),MONTH(EDATE($E$5,1)),15) -> 2024-07-15
A18: QTY | B18: ITEM # | C18: DESCRIPTION | E18: UNIT PRICE | F18: DISCOUNT | G18: LINE TOTAL
A19: 1 | B19: Expenses | C19: Mailchimp MC20501058 | E19: 75 | G19: =IF(SUM(A19)>0,SUM((A19*E19)-F19),"") -> 75
A20: 1 | B20: WWW Support | C20: Mar 2024 WWW Support | E20: 2000 | G20: 2000
D30: TOTAL DISCOUNT | F30: =IF(SUM(F20:F29)>0,SUM(F20:F29),"") -> 
A31: Payment by Check in US Dollars - Payable to Aerospace Edge, LLC Payment by ACH - Account Number 5879038585, Routing Number 051400549 Payment by Domestic USA Wire in US Dollars Pay to the order of Wells Fargo Bank, N.A. – Aerospace Edge, LLC Account: 5879038585 - Routing Number: 121000248 Wells Fargo Bank, N.A., 420 Montgomery, San Francisco, CA 94104 | F31: SUBTOTAL | G31: =IF(SUM(G19:G29)>0,SUM(G19:G29),"") -> 2075
F32: SALES TAX
F33: TOTAL | G33: =IF(SUM(G31)>H335,SUM((G31*G32)+G31),"") -> 2075
F35: =IF(SUM(F33)>0,SUM((F33*F34)+F33),"") -> 
A38: THANK YOU FOR YOU BUSINESS
A39: AE 31DEC23 V 1.0

Sheet AGGPERAPA Inv 005-24 15MAY24
A3: Aerospace Edge, LLC
A4: 866 Washtenaw St NE | D4: INVOICE NO. | E4: =LEFT(SUBSTITUTE(RIGHT(CELL("filename"),LEN(CELL("filename"))-FIND("]",CELL("filename"))),"AGG"&$E$6&" Inv ",""),SEARCH(" ",SUBSTITUTE(RIGHT(CELL("filename"),LEN(CELL("filename"))-FIND("]",CELL("filename"))),"AGG"&$E$6&" Inv ",""))-1) -> 006-24 | K4: =UPPER(TEXT(E5,"DDMMMYY"))&"/ "&E6&" "&E4 -> 15JUN24/ PERAPA 006-24
A5: Grand Rapids, MI 49505-4846 | D5: DATE | E5: =DATEVALUE(SUBSTITUTE(RIGHT(CELL("filename"),LEN(CELL("filename"))-FIND("]",CELL("filename"))),"AGG"&$E$6&" Inv "&$E$4&" ","")) -> 2024-06-15
A6: +1 (616) 532-7129 | C6: CUSTOMER ID | E6: PERAPA
A7: m.carlson@aerospaceedge.com
A9: TO | B9: David Rankin | D9: SHIP TO | E9: David Rankin
B10: Peregrine Avionics, LLC | E10: Peregrine Avionics, LLC
B11: 7385 S Peoria St Unit C4 | E11: 7385 S Peoria St Unit C4
B12: Englewood, CO USA 80112 | E12: Englewood, CO USA 80112
B13: 303-325-3873 | E13: 303-325-3873
A15: AGG Acct POC | B15: Customer PO Reference | C15: SHIPPING METHOD | D15: SHIPPING TERMS | E15: DELIVERY DATE | F15: PAYMENT TERMS | G15: DUE DATE
A16: M. Carlson | B16: AGG Mktg Agmt 12JAN2022 (Amended) | F16: Per Mktg Agmt | G16: =DATE(YEAR(EDATE($E$5,1)),MONTH(EDATE($E$5,1)),15) -> 2024-07-15
A18: QTY | B18: ITEM # | C18: DESCRIPTION | E18: UNIT PRICE | F18: DISCOUNT | G18: LINE TOTAL
A19: 1 | B19: Expenses | C19: Mailchimp MC20709422 | E19: 75 | G19: =IF(SUM(A19)>0,SUM((A19*E19)-F19),"") -> 75
A20: 1 | B20: WWW Support | C20: Apr 2024 WWW Support | E20: 2000 | G20: 2000
D30: TOTAL DISCOUNT | F30: =IF(SUM(F20:F29)>0,SUM(F20:F29),"") -> 
A31: Payment by Check in US Dollars - Payable to Aerospace Edge, LLC Payment by ACH - Account Number 5879038585, Routing Number 051400549 Payment by Domestic USA Wire in US Dollars Pay to the order of Wells Fargo Bank, N.A. – Aerospace Edge, LLC Account: 5879038585 - Routing Number: 121000248 Wells Fargo Bank, N.A., 420 Montgomery, San Francisco, CA 94104 | F31: SUBTOTAL | G31: =IF(SUM(G19:G29)>0,SUM(G19:G29),"") -> 2075
F32: SALES TAX
F33: TOTAL | G33: =IF(SUM(G31)>H335,SUM((G31*G32)+G31),"") -> 2075
F35: =IF(SUM(F33)>0,SUM((F33*F34)+F33),"") -> 
A38: THANK YOU FOR YOU BUSINESS
A39: AE 31DEC23 V 1.0

Sheet AGGPERAPA Inv 006-24 15JUN24
A3: Aerospace Edge, LLC
A4: 866 Washtenaw St NE | D4: INVOICE NO. | E4: =LEFT(SUBSTITUTE(RIGHT(CELL("filename"),LEN(CELL("filename"))-FIND("]",CELL("filename"))),"AGG"&$E$6&" Inv ",""),SEARCH(" ",SUBSTITUTE(RIGHT(CELL("filename"),LEN(CELL("filename"))-FIND("]",CELL("filename"))),"AGG"&$E$6&" Inv ",""))-1) -> 006-24 | K4: =UPPER(TEXT(E5,"DDMMMYY"))&"/ "&E6&" "&E4 -> 15JUN24/ PERAPA 006-24
A5: Grand Rapids, MI 49505-4846 | D5: DATE | E5: =DATEVALUE(SUBSTITUTE(RIGHT(CELL("filename"),LEN(CELL("filename"))-FIND("]",CELL("filename"))),"AGG"&$E$6&" Inv "&$E$4&" ","")) -> 2024-06-15 | K5: =LEFT(SUBSTITUTE(RIGHT(CELL("filename"),LEN(CELL("filename"))-FIND("]",CELL("filename"))),"*"&" Inv ",""),SEARCH(" ",SUBSTITUTE(RIGHT(CELL("filename"),LEN(CELL("filename"))-FIND("]",CELL("filename"))),"*"&" Inv ",""))-1) -> AGGPERAPA
A6: +1 (616) 532-7129 | C6: CUSTOMER ID | E6: PERAPA
A7: m.carlson@aerospaceedge.com
A9: TO | B9: David Rankin | D9: SHIP TO | E9: David Rankin
B10: Peregrine Avionics, LLC | E10: Peregrine Avionics, LLC
B11: 7385 S Peoria St Unit C4 | E11: 7385 S Peoria St Unit C4
B12: Englewood, CO USA 80112 | E12: Englewood, CO USA 80112
B13: 303-325-3873 | E13: 303-325-3873
A15: AGG Acct POC | B15: Customer PO Reference | C15: SHIPPING METHOD | D15: SHIPPING TERMS | E15: DELIVERY DATE | F15: PAYMENT TERMS | G15: DUE DATE
A16: M. Carlson | B16: AGG Mktg Agmt 12JAN2022 (Amended) | F16: Per Mktg Agmt | G16: =DATE(YEAR(EDATE($E$5,1)),MONTH(EDATE($E$5,1)),15) -> 2024-07-15
A18: QTY | B18: ITEM # | C18: DESCRIPTION | E18: UNIT PRICE | F18: DISCOUNT | G18: LINE TOTAL
A19: 1 | B19: Expenses | C19: Mailchimp MC20910213 | E19: 75 | G19: =IF(SUM(A19)>0,SUM((A19*E19)-F19),"") -> 75
A20: 1 | B20: WWW Support | C20: May 2024 WWW Support | E20: 2000 | G20: 2000
D30: TOTAL DISCOUNT | F30: =IF(SUM(F20:F29)>0,SUM(F20:F29),"") -> 
A31: Payment by Check in US Dollars - Payable to Aerospace Edge, LLC Payment by ACH - Account Number 5879038585, Routing Number 051400549 Payment by Domestic USA Wire in US Dollars Pay to the order of Wells Fargo Bank, N.A. – Aerospace Edge, LLC Account: 5879038585 - Routing Number: 121000248 Wells Fargo Bank, N.A., 420 Montgomery, San Francisco, CA 94104 | F31: SUBTOTAL | G31: =IF(SUM(G19:G29)>0,SUM(G19:G29),"") -> 2075
F32: SALES TAX
F33: TOTAL | G33: =IF(SUM(G31)>H335,SUM((G31*G32)+G31),"") -> 2075
F35: =IF(SUM(F33)>0,SUM((F33*F34)+F33),"") -> 
A38: THANK YOU FOR YOU BUSINESS
A39: AE 31DEC23 V 1.0

Sheet AECOUNTERPT Inv 007-24 26JUN24
A3: Aerospace Edge, LLC
A4: 866 Washtenaw St NE | D4: INVOICE NO. | E4: =LEFT(SUBSTITUTE(RIGHT(CELL("filename"),LEN(CELL("filename"))-FIND("]",CELL("filename"))),"AE"&$E$6&" Inv ",""),SEARCH(" ",SUBSTITUTE(RIGHT(CELL("filename"),LEN(CELL("filename"))-FIND("]",CELL("filename"))),"AE"&$E$6&" Inv ",""))-1) -> AGGPERAPA
A5: Grand Rapids, MI 49505-4846 | D5: DATE | E5: =DATEVALUE(SUBSTITUTE(RIGHT(CELL("filename"),LEN(CELL("filename"))-FIND("]",CELL("filename"))),"AE"&$E$6&" Inv "&$E$4&" ","")) -> 
A6: +1 (616) 532-7129 | C6: CUSTOMER ID | E6: COUNTERPT
A7: m.carlson@aerospaceedge.com
A9: TO | B9: Collin Heller | D9: SHIP TO | E9: Collin Heller
B10: COUNTERPOINT MARKET INTELLIGENCE LTD | E10: COUNTERPOINT MARKET INTELLIGENCE LTD
B11: Suite12, The Mansion Chesterford | E11: Suite12, The Mansion Chesterford
B12: Research Park, Little Chesterford | E12: Research Park, Little Chesterford
B13: Saffron Walden, England, CB10 | E13: Saffron Walden, England, CB10
A15: AE Acct POC | B15: Customer PO Reference | C15: SHIPPING METHOD | D15: SHIPPING TERMS | E15: DELIVERY DATE | F15: PAYMENT TERMS | G15: DUE DATE
A16: M. Carlson | B16: AE - Counterpoint Contract 11-Jun-2024 | F16: Per Contract | G16: Upon Receipt
A18: QTY | B18: ITEM # | C18: DESCRIPTION | E18: UNIT PRICE | F18: DISCOUNT | G18: LINE TOTAL
A19: 1 | B19: Initial Payment | C19: Upon agreement of contract | E19: 2500 | G19: =IF(SUM(A19)>0,SUM((A19*E19)-F19),"") -> 2500
D31: TOTAL DISCOUNT | F31: =IF(SUM(F22:F30)>0,SUM(F22:F30),"") -> 
A32: Payment by Check in US Dollars - Payable to Aerospace Edge, LLC Payment by ACH - Account Number 5879038585, Routing Number 051400549 Payment by Domestic USA Wire in US Dollars Pay to the order of Wells Fargo Bank, N.A. – Aerospace Edge, LLC Account: 5879038585 - Routing Number: 121000248 Wells Fargo Bank, N.A., 420 Montgomery, San Francisco, CA 94104 | F32: SUBTOTAL | G32: =IF(SUM(G19:G30)>0,SUM(G19:G30),"") -> 2500
F33: SALES TAX
F34: TOTAL | G34: =IF(SUM(G32)>H336,SUM((G32*G33)+G32),"") -> 2500
F36: =IF(SUM(F34)>0,SUM((F34*F35)+F34),"") -> 
A39: THANK YOU FOR YOU BUSINESS
A40: AE 31DEC23 V 1.0

Sheet AEPERAPA Inv 008-24 15JUL24
A3: Aerospace Edge, LLC
A4: 866 Washtenaw St NE | D4: INVOICE NO. | E4: =LEFT(SUBSTITUTE(RIGHT(CELL("filename"),LEN(CELL("filename"))-FIND("]",CELL("filename"))),"AE"&$E$6&" Inv ",""),SEARCH(" ",SUBSTITUTE(RIGHT(CELL("filename"),LEN(CELL("filename"))-FIND("]",CELL("filename"))),"AE"&$E$6&" Inv ",""))-1) -> AGGPERAPA | K4: =UPPER(TEXT(E5,"DDMMMYY"))&"/ "&E6&" "&E4 -> 
A5: Grand Rapids, MI 49505-4846 | D5: DATE | E5: =DATEVALUE(SUBSTITUTE(RIGHT(CELL("filename"),LEN(CELL("filename"))-FIND("]",CELL("filename"))),"AE"&$E$6&" Inv "&$E$4&" ","")) ->  | K5: =LEFT(SUBSTITUTE(RIGHT(CELL("filename"),LEN(CELL("filename"))-FIND("]",CELL("filename"))),"*"&" Inv ",""),SEARCH(" ",SUBSTITUTE(RIGHT(CELL("filename"),LEN(CELL("filename"))-FIND("]",CELL("filename"))),"*"&" Inv ",""))-1) -> AGGPERAPA
A6: +1 (616) 532-7129 | C6: CUSTOMER ID | E6: PERAPA
A7: m.carlson@aerospaceedge.com
A9: TO | B9: David Rankin | D9: SHIP TO | E9: David Rankin
B10: Peregrine Avionics, LLC | E10: Peregrine Avionics, LLC
B11: 7385 S Peoria St Unit C4 | E11: 7385 S Peoria St Unit C4
B12: Englewood, CO USA 80112 | E12: Englewood, CO USA 80112
B13: 303-325-3873 | E13: 303-325-3873
A15: AE Acct POC | B15: Customer PO Reference | C15: SHIPPING METHOD | D15: SHIPPING TERMS | E15: DELIVERY DATE | F15: PAYMENT TERMS | G15: DUE DATE
A16: M. Carlson | B16: AGG Mktg Agmt 12JAN2022 (Amended) | F16: Per Mktg Agmt | G16: =DATE(YEAR(EDATE($E$5,1)),MONTH(EDATE($E$5,1)),15) -> 
A18: QTY | B18: ITEM # | C18: DESCRIPTION | E18: UNIT PRICE | F18: DISCOUNT | G18: LINE TOTAL
A19: 1 | B19: Expenses | C19: Mailchimp MC21115926 | E19: 75 | G19: =IF(SUM(A19)>0,SUM((A19*E19)-F19),"") -> 75
A20: 1 | B20: WWW Support | C20: June 2024 WWW Support | E20: 2000 | G20: 2000
D30: TOTAL DISCOUNT | F30: =IF(SUM(F20:F29)>0,SUM(F20:F29),"") -> 
A31: Payment by Check in US Dollars - Payable to Aerospace Edge, LLC Payment by ACH - Account Number 5879038585, Routing Number 051400549 Payment by Domestic USA Wire in US Dollars Pay to the order of Wells Fargo Bank, N.A. – Aerospace Edge, LLC Account: 5879038585 - Routing Number: 121000248 Wells Fargo Bank, N.A., 420 Montgomery, San Francisco, CA 94104 | F31: SUBTOTAL | G31: =IF(SUM(G19:G29)>0,SUM(G19:G29),"") -> 2075
F32: SALES TAX
F33: TOTAL | G33: =IF(SUM(G31)>H335,SUM((G31*G32)+G31),"") -> 2075
F35: =IF(SUM(F33)>0,SUM((F33*F34)+F33),"") -> 
A38: THANK YOU FOR YOU BUSINESS
A39: AE 31DEC23 V 1.0

Sheet AEPERAPA Inv 009-24 15AUG24
A3: Aerospace Edge, LLC
A4: 866 Washtenaw St NE | D4: INVOICE NO. | E4: =LEFT(SUBSTITUTE(RIGHT(CELL("filename"),LEN(CELL("filename"))-FIND("]",CELL("filename"))),"AE"&$E$6&" Inv ",""),SEARCH(" ",SUBSTITUTE(RIGHT(CELL("filename"),LEN(CELL("filename"))-FIND("]",CELL("filename"))),"AE"&$E$6&" Inv ",""))-1) -> AGGPERAPA | K4: =UPPER(TEXT(E5,"DDMMMYY"))&"/ "&E6&" "&E4 -> 
A5: Grand Rapids, MI 49505-4846 | D5: DATE | E5: =DATEVALUE(SUBSTITUTE(RIGHT(CELL("filename"),LEN(CELL("filename"))-FIND("]",CELL("filename"))),"AE"&$E$6&" Inv "&$E$4&" ","")) ->  | K5: =LEFT(SUBSTITUTE(RIGHT(CELL("filename"),LEN(CELL("filename"))-FIND("]",CELL("filename"))),"*"&" Inv ",""),SEARCH(" ",SUBSTITUTE(RIGHT(CELL("filename"),LEN(CELL("filename"))-FIND("]",CELL("filename"))),"*"&" Inv ",""))-1) -> AGGPERAPA
A6: +1 (616) 532-7129 | C6: CUSTOMER ID | E6: PERAPA
A7: m.carlson@aerospaceedge.com
A9: TO | B9: David Rankin | D9: SHIP TO | E9: David Rankin
B10: Peregrine Avionics, LLC | E10: Peregrine Avionics, LLC
B11: 7385 S Peoria St Unit C4 | E11: 7385 S Peoria St Unit C4
B12: Englewood, CO USA 80112 | E12: Englewood, CO USA 80112
B13: 303-325-3873 | E13: 303-325-3873
A15: AE Acct POC | B15: Customer PO Reference | C15: SHIPPING METHOD | D15: SHIPPING TERMS | E15: DELIVERY DATE | F15: PAYMENT TERMS | G15: DUE DATE
A16: M. Carlson | B16: AGG Mktg Agmt 12JAN2022 (Amended) | F16: Per Mktg Agmt | G16: =DATE(YEAR(EDATE($E$5,1)),MONTH(EDATE($E$5,1)),15) -> 
A18: QTY | B18: ITEM # | C18: DESCRIPTION | E18: UNIT PRICE | F18: DISCOUNT | G18: LINE TOTAL
A19: 1 | B19: Expenses | C19: Mailchimp MC21313542 | E19: 75 | G19: =IF(SUM(A19)>0,SUM((A19*E19)-F19),"") -> 75
A20: 1 | B20: WWW Support | C20: July 2024 WWW Support | E20: 2000 | G20: 2000
D30: TOTAL DISCOUNT | F30: =IF(SUM(F20:F29)>0,SUM(F20:F29),"") -> 
A31: Payment by Check in US Dollars - Payable to Aerospace Edge, LLC Payment by ACH - Account Number 5879038585, Routing Number 051400549 Payment by Domestic USA Wire in US Dollars Pay to the order of Wells Fargo Bank, N.A. – Aerospace Edge, LLC Account: 5879038585 - Routing Number: 121000248 Wells Fargo Bank, N.A., 420 Montgomery, San Francisco, CA 94104 | F31: SUBTOTAL | G31: =IF(SUM(G19:G29)>0,SUM(G19:G29),"") -> 2075
F32: SALES TAX
F33: TOTAL | G33: =IF(SUM(G31)>H335,SUM((G31*G32)+G31),"") -> 2075
F35: =IF(SUM(F33)>0,SUM((F33*F34)+F33),"") -> 
A38: THANK YOU FOR YOU BUSINESS
A39: AE 31DEC23 V 1.0

Sheet AECOUNTERPT Inv 010-24 16SEP24
A3: Aerospace Edge, LLC
A4: 866 Washtenaw St NE | D4: INVOICE NO. | E4: =LEFT(SUBSTITUTE(RIGHT(CELL("filename"),LEN(CELL("filename"))-FIND("]",CELL("filename"))),"AE"&$E$6&" Inv ",""),SEARCH(" ",SUBSTITUTE(RIGHT(CELL("filename"),LEN(CELL("filename"))-FIND("]",CELL("filename"))),"AE"&$E$6&" Inv ",""))-1) -> AGGPERAPA
A5: Grand Rapids, MI 49505-4846 | D5: DATE | E5: =DATEVALUE(SUBSTITUTE(RIGHT(CELL("filename"),LEN(CELL("filename"))-FIND("]",CELL("filename"))),"AE"&$E$6&" Inv "&$E$4&" ","")) -> 
A6: +1 (616) 532-7129 | C6: CUSTOMER ID | E6: COUNTERPT
A7: m.carlson@aerospaceedge.com
A9: TO | B9: Collin Heller | D9: SHIP TO | E9: Collin Heller
B10: COUNTERPOINT MARKET INTELLIGENCE LTD | E10: COUNTERPOINT MARKET INTELLIGENCE LTD
B11: Suite12, The Mansion Chesterford | E11: Suite12, The Mansion Chesterford
B12: Research Park, Little Chesterford | E12: Research Park, Little Chesterford
B13: Saffron Walden, England, CB10 | E13: Saffron Walden, England, CB10
A15: AE Acct POC | B15: Customer PO Reference | C15: SHIPPING METHOD | D15: SHIPPING TERMS | E15: DELIVERY DATE | F15: PAYMENT TERMS | G15: DUE DATE
A16: M. Carlson | B16: AE - Counterpoint Contract 11-Jun-2024 | F16: Per Contract | G16: Upon Receipt
A18: QTY | B18: ITEM # | C18: DESCRIPTION | E18: UNIT PRICE | F18: DISCOUNT | G18: LINE TOTAL
A19: 1 | B19: Completion Payment | C19: Upon publication of document | E19: 2500 | G19: =IF(SUM(A19)>0,SUM((A19*E19)-F19),"") -> 2500
D31: TOTAL DISCOUNT | F31: =IF(SUM(F22:F30)>0,SUM(F22:F30),"") -> 
A32: Payment by Check in US Dollars - Payable to Aerospace Edge, LLC Payment by ACH - Account Number 5879038585, Routing Number 051400549 Payment by Domestic USA Wire in US Dollars Pay to the order of Wells Fargo Bank, N.A. – Aerospace Edge, LLC Account: 5879038585 - Routing Number: 121000248 Wells Fargo Bank, N.A., 420 Montgomery, San Francisco, CA 94104 | F32: SUBTOTAL | G32: =IF(SUM(G19:G30)>0,SUM(G19:G30),"") -> 2500
F33: SALES TAX
F34: TOTAL | G34: =IF(SUM(G32)>H336,SUM((G32*G33)+G32),"") -> 2500
F36: =IF(SUM(F34)>0,SUM((F34*F35)+F34),"") -> 
A39: THANK YOU FOR YOU BUSINESS
A40: AE 31DEC23 V 1.0

Sheet AEPERAPA Inv 011-24 15SEP24
A3: Aerospace Edge, LLC
A4: 866 Washtenaw St NE | D4: INVOICE NO. | E4: =LEFT(SUBSTITUTE(RIGHT(CELL("filename"),LEN(CELL("filename"))-FIND("]",CELL("filename"))),"AE"&$E$6&" Inv ",""),SEARCH(" ",SUBSTITUTE(RIGHT(CELL("filename"),LEN(CELL("filename"))-FIND("]",CELL("filename"))),"AE"&$E$6&" Inv ",""))-1) -> AGGPERAPA | K4: =UPPER(TEXT(E5,"DDMMMYY"))&"/ "&E6&" "&E4 -> 
A5: Grand Rapids, MI 49505-4846 | D5: DATE | E5: =DATEVALUE(SUBSTITUTE(RIGHT(CELL("filename"),LEN(CELL("filename"))-FIND("]",CELL("filename"))),"AE"&$E$6&" Inv "&$E$4&" ","")) ->  | K5: =LEFT(SUBSTITUTE(RIGHT(CELL("filename"),LEN(CELL("filename"))-FIND("]",CELL("filename"))),"*"&" Inv ",""),SEARCH(" ",SUBSTITUTE(RIGHT(CELL("filename"),LEN(CELL("filename"))-FIND("]",CELL("filename"))),"*"&" Inv ",""))-1) -> AGGPERAPA
A6: +1 (616) 532-7129 | C6: CUSTOMER ID | E6: PERAPA
A7: m.carlson@aerospaceedge.com
A9: TO | B9: David Rankin | D9: SHIP TO | E9: David Rankin
B10: Peregrine Avionics, LLC | E10: Peregrine Avionics, LLC
B11: 7385 S Peoria St Unit C4 | E11: 7385 S Peoria St Unit C4
B12: Englewood, CO USA 80112 | E12: Englewood, CO USA 80112
B13: 303-325-3873 | E13: 303-325-3873
A15: AE Acct POC | B15: Customer PO Reference | C15: SHIPPING METHOD | D15: SHIPPING TERMS | E15: DELIVERY DATE | F15: PAYMENT TERMS | G15: DUE DATE
A16: M. Carlson | B16: AGG Mktg Agmt 12JAN2022 (Amended) | F16: Per Mktg Agmt | G16: =DATE(YEAR(EDATE($E$5,1)),MONTH(EDATE($E$5,1)),1) -> 
A18: QTY | B18: ITEM # | C18: DESCRIPTION | E18: UNIT PRICE | F18: DISCOUNT | G18: LINE TOTAL
A19: 1 | B19: Expenses | C19: Mailchimp MC21506366 | E19: 75 | G19: =IF(SUM(A19)>0,SUM((A19*E19)-F19),"") -> 75
A20: 1 | B20: WWW Support | C20: August 2024 WWW Support | E20: 2000 | G20: 2000
D30: TOTAL DISCOUNT | F30: =IF(SUM(F20:F29)>0,SUM(F20:F29),"") -> 
A31: Payment by Check in US Dollars - Payable to Aerospace Edge, LLC Payment by ACH - Account Number 5879038585, Routing Number 051400549 Payment by Domestic USA Wire in US Dollars Pay to the order of Wells Fargo Bank, N.A. – Aerospace Edge, LLC Account: 5879038585 - Routing Number: 121000248 Wells Fargo Bank, N.A., 420 Montgomery, San Francisco, CA 94104 | F31: SUBTOTAL | G31: =IF(SUM(G19:G29)>0,SUM(G19:G29),"") -> 2075
F32: SALES TAX
F33: TOTAL | G33: =IF(SUM(G31)>H335,SUM((G31*G32)+G31),"") -> 2075
F35: =IF(SUM(F33)>0,SUM((F33*F34)+F33),"") -> 
A38: THANK YOU FOR YOU BUSINESS
A39: AE 31DEC23 V 1.0

Sheet AEPERAPA Inv 012-24 15OCT24
A3: Aerospace Edge, LLC
A4: 866 Washtenaw St NE | D4: INVOICE NO. | E4: =LEFT(SUBSTITUTE(RIGHT(CELL("filename"),LEN(CELL("filename"))-FIND("]",CELL("filename"))),"AE"&$E$6&" Inv ",""),SEARCH(" ",SUBSTITUTE(RIGHT(CELL("filename"),LEN(CELL("filename"))-FIND("]",CELL("filename"))),"AE"&$E$6&" Inv ",""))-1) -> AGGPERAPA | K4: =UPPER(TEXT(E5,"DDMMMYY"))&"/ "&E6&" "&E4 -> 
A5: Grand Rapids, MI 49505-4846 | D5: DATE | E5: =DATEVALUE(SUBSTITUTE(RIGHT(CELL("filename"),LEN(CELL("filename"))-FIND("]",CELL("filename"))),"AE"&$E$6&" Inv "&$E$4&" ","")) ->  | K5: =LEFT(SUBSTITUTE(RIGHT(CELL("filename"),LEN(CELL("filename"))-FIND("]",CELL("filename"))),"*"&" Inv ",""),SEARCH(" ",SUBSTITUTE(RIGHT(CELL("filename"),LEN(CELL("filename"))-FIND("]",CELL("filename"))),"*"&" Inv ",""))-1) -> AGGPERAPA
A6: +1 (616) 532-7129 | C6: CUSTOMER ID | E6: PERAPA
A7: m.carlson@aerospaceedge.com
A9: TO | B9: David Rankin | D9: SHIP TO | E9: David Rankin
B10: Peregrine Avionics, LLC | E10: Peregrine Avionics, LLC
B11: 7385 S Peoria St Unit C4 | E11: 7385 S Peoria St Unit C4
B12: Englewood, CO USA 80112 | E12: Englewood, CO USA 80112
B13: 303-325-3873 | E13: 303-325-3873
A15: AE Acct POC | B15: Customer PO Reference | C15: SHIPPING METHOD | D15: SHIPPING TERMS | E15: DELIVERY DATE | F15: PAYMENT TERMS | G15: DUE DATE
A16: M. Carlson | B16: AGG Mktg Agmt 12JAN2022 (Amended) | F16: Per Mktg Agmt | G16: =DATE(YEAR(EDATE($E$5,1)),MONTH(EDATE($E$5,1)),1) -> 
A18: QTY | B18: ITEM # | C18: DESCRIPTION | E18: UNIT PRICE | F18: DISCOUNT | G18: LINE TOTAL
A19: 1 | B19: WWW Support | C19: September 2024 WWW Support | E19: 2000 | G19: =IF(SUM(A19)>0,SUM((A19*E19)-F19),"") -> 2000
G20: =IF(SUM(A20)>0,SUM((A20*E20)-F20),"") -> 
D31: TOTAL DISCOUNT | F31: =IF(SUM(F19:F30)>0,SUM(F19:F30),"") -> 
A32: Payment by Check in US Dollars - Payable to Aerospace Edge, LLC Payment by ACH - Account Number 5879038585, Routing Number 051400549 Payment by Domestic USA Wire in US Dollars Pay to the order of Wells Fargo Bank, N.A. – Aerospace Edge, LLC Account: 5879038585 - Routing Number: 121000248 Wells Fargo Bank, N.A., 420 Montgomery, San Francisco, CA 94104 | F32: SUBTOTAL | G32: =IF(SUM(G19:G30)>0,SUM(G19:G30),"") -> 2000
F33: SALES TAX
F34: TOTAL | G34: =IF(SUM(G32)>H336,SUM((G32*G33)+G32),"") -> 2000
B36: Invoice Status | F36: =IF(SUM(F34)>0,SUM((F34*F35)+F34),"") -> 
B37: >90 | C37: 60 | D37: 30
A39: THANK YOU FOR YOU BUSINESS
A40: AE 31DEC23 V 1.0

Sheet AECOUNTERPT Inv 013-24 22OCT24
A3: Aerospace Edge, LLC
A4: 866 Washtenaw St NE | D4: INVOICE NO. | E4: =LEFT(SUBSTITUTE(RIGHT(CELL("filename"),LEN(CELL("filename"))-FIND("]",CELL("filename"))),"AE"&$E$6&" Inv ",""),SEARCH(" ",SUBSTITUTE(RIGHT(CELL("filename"),LEN(CELL("filename"))-FIND("]",CELL("filename"))),"AE"&$E$6&" Inv ",""))-1) -> AGGPERAPA
A5: Grand Rapids, MI 49505-4846 | D5: DATE | E5: =DATEVALUE(SUBSTITUTE(RIGHT(CELL("filename"),LEN(CELL("filename"))-FIND("]",CELL("filename"))),"AE"&$E$6&" Inv "&$E$4&" ","")) -> 
A6: +1 (616) 532-7129 | C6: CUSTOMER ID | E6: COUNTERPT
A7: m.carlson@aerospaceedge.com
A9: TO | B9: Collin Heller | D9: SHIP TO | E9: Collin Heller
B10: COUNTERPOINT MARKET INTELLIGENCE LTD | E10: COUNTERPOINT MARKET INTELLIGENCE LTD
B11: Suite12, The Mansion Chesterford | E11: Suite12, The Mansion Chesterford
B12: Research Park, Little Chesterford | E12: Research Park, Little Chesterford
B13: Saffron Walden, England, CB10 | E13: Saffron Walden, England, CB10
A15: AE Acct POC | B15: Customer PO Reference | C15: SHIPPING METHOD | D15: SHIPPING TERMS | E15: DELIVERY DATE | F15: PAYMENT TERMS | G15: DUE DATE
A16: M. Carlson | B16: AE - Counterpoint Contract 11-Jun-2024 | F16: Per Contract | G16: Upon Receipt
A18: QTY | B18: ITEM # | C18: DESCRIPTION | E18: UNIT PRICE | F18: DISCOUNT | G18: LINE TOTAL
A19: 1 | B19: Collins | C19: AE 15% | E19: 547.2 | G19: =IF(SUM(A19)>0,SUM((A19*E19)-F19),"") -> 547.2
A20: 1 | B20: PJT | C20: AE 35% | E20: 1413.13 | G20: 1413.13
A21: 1 | B21: Airbus | C21: AE 15% | E21: 956 | G21: 956
D31: TOTAL DISCOUNT | F31: =IF(SUM(F22:F30)>0,SUM(F22:F30),"") -> 
A32: Payment by Check in US Dollars - Payable to Aerospace Edge, LLC Payment by ACH - Account Number 5879038585, Routing Number 051400549 Payment by Domestic USA Wire in US Dollars Pay to the order of Wells Fargo Bank, N.A. – Aerospace Edge, LLC Account: 5879038585 - Routing Number: 121000248 Wells Fargo Bank, N.A., 420 Montgomery, San Francisco, CA 94104 | F32: SUBTOTAL | G32: =IF(SUM(G19:G30)>0,SUM(G19:G30),"") -> 2916.33
F33: SALES TAX
F34: TOTAL | G34: =IF(SUM(G32)>H336,SUM((G32*G33)+G32),"") -> 2916.33
F36: =IF(SUM(F34)>0,SUM((F34*F35)+F34),"") -> 
A39: THANK YOU FOR YOU BUSINESS
A40: AE 31DEC23 V 1.0

Sheet AECOUNTERPT Inv 115-24 31OCT24
A3: Aerospace Edge, LLC
A4: 866 Washtenaw St NE | D4: INVOICE NO. | E4: =LEFT(SUBSTITUTE(RIGHT(CELL("filename"),LEN(CELL("filename"))-FIND("]",CELL("filename"))),"AE"&$E$6&" Inv ",""),SEARCH(" ",SUBSTITUTE(RIGHT(CELL("filename"),LEN(CELL("filename"))-FIND("]",CELL("filename"))),"AE"&$E$6&" Inv ",""))-1) -> AGGPERAPA
A5: Grand Rapids, MI 49505-4846 | D5: DATE | E5: =DATEVALUE(SUBSTITUTE(RIGHT(CELL("filename"),LEN(CELL("filename"))-FIND("]",CELL("filename"))),"AE"&$E$6&" Inv "&$E$4&" ","")) -> 
A6: +1 (616) 532-7129 | C6: CUSTOMER ID | E6: COUNTERPT
A7: m.carlson@aerospaceedge.com
A9: TO | B9: Collin Heller | D9: SHIP TO | E9: Collin Heller
B10: COUNTERPOINT MARKET INTELLIGENCE LTD | E10: COUNTERPOINT MARKET INTELLIGENCE LTD
B11: Suite12, The Mansion Chesterford | E11: Suite12, The Mansion Chesterford
B12: Research Park, Little Chesterford | E12: Research Park, Little Chesterford
B13: Saffron Walden, England, CB10 | E13: Saffron Walden, England, CB10
A15: AE Acct POC | B15: Customer PO Reference | C15: SHIPPING METHOD | D15: SHIPPING TERMS | E15: DELIVERY DATE | F15: PAYMENT TERMS | G15: DUE DATE
A16: M. Carlson | B16: AE - Counterpoint Contract 11-Jun-2024 | F16: Per Contract | G16: Upon Receipt
A18: QTY | B18: ITEM # | C18: DESCRIPTION | E18: UNIT PRICE | F18: DISCOUNT | G18: LINE TOTAL
A19: 1 | B19: Oliver Wyman | C19: AE 15% | E19: 641.25 | G19: =IF(SUM(A19)>0,SUM((A19*E19)-F19),"") -> 641.25
A20: 1 | B20: Moog | C20: AE 35% | E20: 641.25 | G20: 641.25
D31: TOTAL DISCOUNT | F31: =IF(SUM(F22:F30)>0,SUM(F22:F30),"") -> 
A32: Payment by Check in US Dollars - Payable to Aerospace Edge, LLC Payment by ACH - Account Number 5879038585, Routing Number 051400549 Payment by Domestic USA Wire in US Dollars Pay to the order of Wells Fargo Bank, N.A. – Aerospace Edge, LLC Account: 5879038585 - Routing Number: 121000248 Wells Fargo Bank, N.A., 420 Montgomery, San Francisco, CA 94104 | F32: SUBTOTAL | G32: =IF(SUM(G19:G30)>0,SUM(G19:G30),"") -> 1282.5
F33: SALES TAX
F34: TOTAL | G34: =IF(SUM(G32)>H336,SUM((G32*G33)+G32),"") -> 1282.5
F36: =IF(SUM(F34)>0,SUM((F34*F35)+F34),"") -> 
A39: THANK YOU FOR YOU BUSINESS
A40: AE 31DEC23 V 1.0

Sheet AEPERAPA Inv 014-24 15NOV24
A3: Aerospace Edge, LLC
A4: 866 Washtenaw St NE | D4: INVOICE NO. | E4: =LEFT(SUBSTITUTE(RIGHT(CELL("filename"),LEN(CELL("filename"))-FIND("]",CELL("filename"))),"AE"&$E$6&" Inv ",""),SEARCH(" ",SUBSTITUTE(RIGHT(CELL("filename"),LEN(CELL("filename"))-FIND("]",CELL("filename"))),"AE"&$E$6&" Inv ",""))-1) -> AGGPERAPA | K4: =UPPER(TEXT(E5,"DDMMMYY"))&"/ "&E6&" "&E4 -> 
A5: Grand Rapids, MI 49505-4846 | D5: DATE | E5: =DATEVALUE(SUBSTITUTE(RIGHT(CELL("filename"),LEN(CELL("filename"))-FIND("]",CELL("filename"))),"AE"&$E$6&" Inv "&$E$4&" ","")) ->  | K5: =LEFT(SUBSTITUTE(RIGHT(CELL("filename"),LEN(CELL("filename"))-FIND("]",CELL("filename"))),"*"&" Inv ",""),SEARCH(" ",SUBSTITUTE(RIGHT(CELL("filename"),LEN(CELL("filename"))-FIND("]",CELL("filename"))),"*"&" Inv ",""))-1) -> AGGPERAPA
A6: +1 (616) 532-7129 | C6: CUSTOMER ID | E6: PERAPA
A7: m.carlson@aerospaceedge.com
A9: TO | B9: David Rankin | D9: SHIP TO | E9: David Rankin
B10: Peregrine Avionics, LLC | E10: Peregrine Avionics, LLC
B11: 7385 S Peoria St Unit C4 | E11: 7385 S Peoria St Unit C4
B12: Englewood, CO USA 80112 | E12: Englewood, CO USA 80112
B13: 303-325-3873 | E13: 303-325-3873
A15: AE Acct POC | B15: Customer PO Reference | C15: SHIPPING METHOD | D15: SHIPPING TERMS | E15: DELIVERY DATE | F15: PAYMENT TERMS | G15: DUE DATE
A16: M. Carlson | B16: AGG Mktg Agmt 12JAN2022 (Amended) | F16: Per Mktg Agmt | G16: =DATE(YEAR(EDATE($E$5,1)),MONTH(EDATE($E$5,1)),1) -> 
A18: QTY | B18: ITEM # | C18: DESCRIPTION | E18: UNIT PRICE | F18: DISCOUNT | G18: LINE TOTAL
A19: 1 | B19: WWW Support | C19: October 2024 WWW Support | E19: 2000 | G19: =IF(SUM(A19)>0,SUM((A19*E19)-F19),"") -> 2000
D31: TOTAL DISCOUNT | F31: =IF(SUM(F19:F30)>0,SUM(F19:F30),"") -> 
A32: Payment by Check in US Dollars - Payable to Aerospace Edge, LLC Payment by ACH - Account Number 5879038585, Routing Number 051400549 Payment by Domestic USA Wire in US Dollars Pay to the order of Wells Fargo Bank, N.A. – Aerospace Edge, LLC Account: 5879038585 - Routing Number: 121000248 Wells Fargo Bank, N.A., 420 Montgomery, San Francisco, CA 94104 | F32: SUBTOTAL | G32: =IF(SUM(G19:G30)>0,SUM(G19:G30),"") -> 2000
F33: SALES TAX
F34: TOTAL | G34: =IF(SUM(G32)>H336,SUM((G32*G33)+G32),"") -> 2000
B36: Invoice Status | F36: =IF(SUM(F34)>0,SUM((F34*F35)+F34),"") -> 
B37: >90 | C37: 60 | D37: 30
A39: THANK YOU FOR YOU BUSINESS
A40: AE 31DEC23 V 1.0

Sheet AEPERAPA Inv 015-24 15DEC24
A3: Aerospace Edge, LLC
A4: 866 Washtenaw St NE | D4: INVOICE NO. | E4: =LEFT(SUBSTITUTE(RIGHT(CELL("filename"),LEN(CELL("filename"))-FIND("]",CELL("filename"))),"AE"&$E$6&" Inv ",""),SEARCH(" ",SUBSTITUTE(RIGHT(CELL("filename"),LEN(CELL("filename"))-FIND("]",CELL("filename"))),"AE"&$E$6&" Inv ",""))-1) -> AGGPERAPA | K4: =UPPER(TEXT(E5,"DDMMMYY"))&"/ "&E6&" "&E4 -> 
A5: Grand Rapids, MI 49505-4846 | D5: DATE | E5: =DATEVALUE(SUBSTITUTE(RIGHT(CELL("filename"),LEN(CELL("filename"))-FIND("]",CELL("filename"))),"AE"&$E$6&" Inv "&$E$4&" ","")) ->  | K5: =LEFT(SUBSTITUTE(RIGHT(CELL("filename"),LEN(CELL("filename"))-FIND("]",CELL("filename"))),"*"&" Inv ",""),SEARCH(" ",SUBSTITUTE(RIGHT(CELL("filename"),LEN(CELL("filename"))-FIND("]",CELL("filename"))),"*"&" Inv ",""))-1) -> AGGPERAPA
A6: +1 (616) 532-7129 | C6: CUSTOMER ID | E6: PERAPA
A7: m.carlson@aerospaceedge.com
A9: TO | B9: David Rankin | D9: SHIP TO | E9: David Rankin
B10: Peregrine Avionics, LLC | E10: Peregrine Avionics, LLC
B11: 7385 S Peoria St Unit C4 | E11: 7385 S Peoria St Unit C4
B12: Englewood, CO USA 80112 | E12: Englewood, CO USA 80112
B13: 303-325-3873 | E13: 303-325-3873
A15: AE Acct POC | B15: Customer PO Reference | C15: SHIPPING METHOD | D15: SHIPPING TERMS | E15: DELIVERY DATE | F15: PAYMENT TERMS | G15: DUE DATE
A16: M. Carlson | B16: AGG Mktg Agmt 12JAN2022 (Amended) | F16: Per Mktg Agmt | G16: =DATE(YEAR(EDATE($E$5,1)),MONTH(EDATE($E$5,1)),1) -> 
A18: QTY | B18: ITEM # | C18: DESCRIPTION | E18: UNIT PRICE | F18: DISCOUNT | G18: LINE TOTAL
A19: 1 | B19: WWW Support | C19: November 2024 WWW Support | E19: 2000 | G19: =IF(SUM(A19)>0,SUM((A19*E19)-F19),"") -> 2000
D31: TOTAL DISCOUNT | F31: =IF(SUM(F19:F30)>0,SUM(F19:F30),"") -> 
A32: Payment by Check in US Dollars - Payable to Aerospace Edge, LLC Payment by ACH - Account Number 5879038585, Routing Number 051400549 Payment by Domestic USA Wire in US Dollars Pay to the order of Wells Fargo Bank, N.A. – Aerospace Edge, LLC Account: 5879038585 - Routing Number: 121000248 Wells Fargo Bank, N.A., 420 Montgomery, San Francisco, CA 94104 | F32: SUBTOTAL | G32: =IF(SUM(G19:G30)>0,SUM(G19:G30),"") -> 2000
F33: SALES TAX
F34: TOTAL | G34: =IF(SUM(G32)>H336,SUM((G32*G33)+G32),"") -> 2000
B36: Invoice Status | F36: =IF(SUM(F34)>0,SUM((F34*F35)+F34),"") -> 
B37: >90 | C37: 60 | D37: 30
A39: THANK YOU FOR YOU BUSINESS
A40: AE 31DEC23 V 1.0

Sheet AEPERAPA Inv 016-24 19DEC24
A3: Aerospace Edge, LLC
A4: 866 Washtenaw St NE | D4: INVOICE NO. | E4: =LEFT(SUBSTITUTE(RIGHT(CELL("filename"),LEN(CELL("filename"))-FIND("]",CELL("filename"))),"AE"&$E$6&" Inv ",""),SEARCH(" ",SUBSTITUTE(RIGHT(CELL("filename"),LEN(CELL("filename"))-FIND("]",CELL("filename"))),"AE"&$E$6&" Inv ",""))-1) -> AGGPERAPA | K4: =UPPER(TEXT(E5,"DDMMMYY"))&"/ "&E6&" "&E4 -> 
A5: Grand Rapids, MI 49505-4846 | D5: DATE | E5: =DATEVALUE(SUBSTITUTE(RIGHT(CELL("filename"),LEN(CELL("filename"))-FIND("]",CELL("filename"))),"AE"&$E$6&" Inv "&$E$4&" ","")) ->  | K5: =LEFT(SUBSTITUTE(RIGHT(CELL("filename"),LEN(CELL("filename"))-FIND("]",CELL("filename"))),"*"&" Inv ",""),SEARCH(" ",SUBSTITUTE(RIGHT(CELL("filename"),LEN(CELL("filename"))-FIND("]",CELL("filename"))),"*"&" Inv ",""))-1) -> AGGPERAPA
A6: +1 (616) 532-7129 | C6: CUSTOMER ID | E6: PERAPA
A7: m.carlson@aerospaceedge.com
A9: TO | B9: David Rankin | D9: SHIP TO | E9: David Rankin
B10: Peregrine Avionics, LLC | E10: Peregrine Avionics, LLC
B11: 7385 S Peoria St Unit C4 | E11: 7385 S Peoria St Unit C4
B12: Englewood, CO USA 80112 | E12: Englewood, CO USA 80112
B13: 303-325-3873 | E13: 303-325-3873
A15: AE Acct POC | B15: Customer PO Reference | C15: SHIPPING METHOD | D15: SHIPPING TERMS | E15: DELIVERY DATE | F15: PAYMENT TERMS | G15: DUE DATE
A16: M. Carlson | B16: AGG Mktg Agmt 12JAN2022 (Amended) | F16: Per Mktg Agmt | G16: =DATE(YEAR(EDATE($E$5,1)),MONTH(EDATE($E$5,1)),1) -> 
A18: QTY | B18: ITEM # | C18: DESCRIPTION | E18: UNIT PRICE | F18: DISCOUNT | G18: LINE TOTAL
A19: 1 | B19: Site Hosting | C19: Hosting Server, Backup Manager, Hosting Domain, Dedicated IP Address & Server Certificate | E19: 562.5 | G19: =IF(SUM(A19)>0,SUM((A19*E19)-F19),"") -> 562.5
A20: 1 | B20: Site Hosting | C20: Peregrine Specific Tools + SSL Certificate for peregrine.aero | E20: 412.5 | G20: 412.5
A21: 1 | B21: Site Development | C21: WordPress Plugins: Crocoblock Jet Elements, Folders Plus, TablePress, PrimeSlider Pro | E21: 256.25 | G21: 256.25
A22: 1 | B22: Site Essential | C22: WordPress Plugins: AIOSEO Pro, Complianz Pro, Elementor Pro, Under Construction Page Pro | E22: 637.5 | G22: 637.5
A23: 1 | B23: Site Maintenance | C23: WordPress Plugins: Advanced Database Cleaner Pro, Go Live Update URLs Pro, Media Library Recovery Pro, Media Sync | E23: 237.5 | G23: 237.5
A24: 1 | B24: Site Security | C24: WordPress Plugins: Loginizer, Really Simple SSL Pro | E24: 137.5 | G24: 137.5
D25: TOTAL DISCOUNT | F25: =IF(SUM(F19:F24)>0,SUM(F19:F24),"") -> 
A26: Payment by Check in US Dollars - Payable to Aerospace Edge, LLC Payment by ACH - Account Number 5879038585, Routing Number 051400549 Payment by Domestic USA Wire in US Dollars Pay to the order of Wells Fargo Bank, N.A. – Aerospace Edge, LLC Account: 5879038585 - Routing Number: 121000248 Wells Fargo Bank, N.A., 420 Montgomery, San Francisco, CA 94104 | F26: SUBTOTAL | G26: =IF(SUM(G19:G24)>0,SUM(G19:G24),"") -> 2243.75
F27: SALES TAX
F28: TOTAL | G28: =IF(SUM(G26)>H330,SUM((G26*G27)+G26),"") -> 2243.75
B30: Invoice Status | F30: =IF(SUM(F28)>0,SUM((F28*F29)+F28),"") -> 
B31: >90 | C31: 60 | D31: 30
A33: THANK YOU FOR YOU BUSINESS
A34: AE 31DEC23 V 1.0

Sheet AECOUNTERPT Inv 017-24 31DEC24
A3: Aerospace Edge, LLC
A4: 866 Washtenaw St NE | D4: INVOICE NO. | E4: =LEFT(SUBSTITUTE(RIGHT(CELL("filename"),LEN(CELL("filename"))-FIND("]",CELL("filename"))),"AE"&$E$6&" Inv ",""),SEARCH(" ",SUBSTITUTE(RIGHT(CELL("filename"),LEN(CELL("filename"))-FIND("]",CELL("filename"))),"AE"&$E$6&" Inv ",""))-1) -> AGGPERAPA
A5: Grand Rapids, MI 49505-4846 | D5: DATE | E5: =DATEVALUE(SUBSTITUTE(RIGHT(CELL("filename"),LEN(CELL("filename"))-FIND("]",CELL("filename"))),"AE"&$E$6&" Inv "&$E$4&" ","")) -> 
A6: +1 (616) 532-7129 | C6: CUSTOMER ID | E6: COUNTERPT
A7: m.carlson@aerospaceedge.com
A9: TO | B9: Collin Heller | D9: SHIP TO | E9: Collin Heller
B10: COUNTERPOINT MARKET INTELLIGENCE LTD | E10: COUNTERPOINT MARKET INTELLIGENCE LTD
B11: Suite12, The Mansion Chesterford | E11: Suite12, The Mansion Chesterford
B12: Research Park, Little Chesterford | E12: Research Park, Little Chesterford
B13: Saffron Walden, England, CB10 | E13: Saffron Walden, England, CB10
A15: AE Acct POC | B15: Customer PO Reference | C15: SHIPPING METHOD | D15: SHIPPING TERMS | E15: DELIVERY DATE | F15: PAYMENT TERMS | G15: DUE DATE
A16: M. Carlson | B16: AE - Counterpoint Contract 11-Jun-2024 | F16: Per Contract | G16: Upon Receipt
A18: QTY | B18: ITEM # | C18: DESCRIPTION | E18: UNIT PRICE | F18: DISCOUNT | G18: LINE TOTAL
A19: 1 | B19: Diehl | C19: AE 35% | E19: 1496.25 | G19: =IF(SUM(A19)>0,SUM((A19*E19)-F19),"") -> 1496.25
A20: 1 | B20: Safran | C20: AE 15% | E20: 676.88 | G20: 676.88
D31: TOTAL DISCOUNT | F31: =IF(SUM(F22:F30)>0,SUM(F22:F30),"") -> 
A32: Payment by Check in US Dollars - Payable to Aerospace Edge, LLC Payment by ACH - Account Number 5879038585, Routing Number 051400549 Payment by Domestic USA Wire in US Dollars Pay to the order of Wells Fargo Bank, N.A. – Aerospace Edge, LLC Account: 5879038585 - Routing Number: 121000248 Wells Fargo Bank, N.A., 420 Montgomery, San Francisco, CA 94104 | F32: SUBTOTAL | G32: =IF(SUM(G19:G30)>0,SUM(G19:G30),"") -> 2173.13
F33: SALES TAX
F34: TOTAL | G34: =IF(SUM(G32)>H336,SUM((G32*G33)+G32),"") -> 2173.13
F36: =IF(SUM(F34)>0,SUM((F34*F35)+F34),"") -> 
A39: THANK YOU FOR YOU BUSINESS
A40: AE 31DEC23 V 1.0

Sheet AEPERAPA Inv 001-25 15JAN25
A3: Aerospace Edge, LLC
A4: 866 Washtenaw St NE | D4: INVOICE NO. | E4: =LEFT(SUBSTITUTE(RIGHT(CELL("filename"),LEN(CELL("filename"))-FIND("]",CELL("filename"))),"AE"&$E$6&" Inv ",""),SEARCH(" ",SUBSTITUTE(RIGHT(CELL("filename"),LEN(CELL("filename"))-FIND("]",CELL("filename"))),"AE"&$E$6&" Inv ",""))-1) -> AGGPERAPA | K4: =UPPER(TEXT(E5,"DDMMMYY"))&"/ "&E6&" "&E4 -> 
A5: Grand Rapids, MI 49505-4846 | D5: DATE | E5: =DATEVALUE(SUBSTITUTE(RIGHT(CELL("filename"),LEN(CELL("filename"))-FIND("]",CELL("filename"))),"AE"&$E$6&" Inv "&$E$4&" ","")) ->  | K5: =LEFT(SUBSTITUTE(RIGHT(CELL("filename"),LEN(CELL("filename"))-FIND("]",CELL("filename"))),"*"&" Inv ",""),SEARCH(" ",SUBSTITUTE(RIGHT(CELL("filename"),LEN(CELL("filename"))-FIND("]",CELL("filename"))),"*"&" Inv ",""))-1) -> AGGPERAPA
A6: +1 (616) 532-7129 | C6: CUSTOMER ID | E6: PERAPA
A7: m.carlson@aerospaceedge.com
A9: TO | B9: David Rankin | D9: SHIP TO | E9: David Rankin
B10: Peregrine Avionics, LLC | E10: Peregrine Avionics, LLC
B11: 7385 S Peoria St Unit C4 | E11: 7385 S Peoria St Unit C4
B12: Englewood, CO USA 80112 | E12: Englewood, CO USA 80112
B13: 303-325-3873 | E13: 303-325-3873
A15: AE Acct POC | B15: Customer PO Reference | C15: SHIPPING METHOD | D15: SHIPPING TERMS | E15: DELIVERY DATE | F15: PAYMENT TERMS | G15: DUE DATE
A16: M. Carlson | B16: AGG Mktg Agmt 12JAN2022 (Amended) | F16: Per Mktg Agmt | G16: On Receipt
A18: QTY | B18: ITEM # | C18: DESCRIPTION | E18: UNIT PRICE | F18: DISCOUNT | G18: LINE TOTAL
A19: 1 | B19: WWW Support | C19: December 2024 WWW Support | E19: 2000 | G19: =IF(SUM(A19)>0,SUM((A19*E19)-F19),"") -> 2000
A20: 1 | B20: WWW Support | C20: January 2025 WWW Support | E20: 2000 | G20: =IF(SUM(A20)>0,SUM((A20*E20)-F20),"") -> 2000
A21: 1 | B21: Prior Invoices | C21: Unpaid item from 001-23 (Mailchimp) | E21: 69 | G21: 69
A22: 1 | B22: Prior Invoices | C22: Unpaid item from 011-24 (Mailchimp) | E22: 75 | G22: 75
D28: TOTAL DISCOUNT | F28: =IF(SUM(F19:F27)>0,SUM(F19:F27),"") -> 
A29: Payment by Check in US Dollars - Payable to Aerospace Edge, LLC Payment by ACH - Account Number 5879038585, Routing Number 051400549 Payment by Domestic USA Wire in US Dollars Pay to the order of Wells Fargo Bank, N.A. – Aerospace Edge, LLC Account: 5879038585 - Routing Number: 121000248 Wells Fargo Bank, N.A., 420 Montgomery, San Francisco, CA 94104 | F29: SUBTOTAL | G29: =IF(SUM(G19:G27)>0,SUM(G19:G27),"") -> 4144
F30: SALES TAX
F31: TOTAL | G31: =IF(SUM(G29)>H333,SUM((G29*G30)+G29),"") -> 4144
B33: Invoice Status | F33: =IF(SUM(F31)>0,SUM((F31*F32)+F31),"") -> 
B34: >90 | C34: 60 | D34: 30
A36: THANK YOU FOR YOU BUSINESS
A37: AE 31DEC23 V 1.0
